Body,Body Name,Date,Transaction Number,Amount,Invoice Number,Supplier Name,Supplier ID,Vat Registration Number,Expense Area,Expense Type,Expense Code,BVACOP,Proclass,Extended Description,Expenditure Type
http://statistics.data.gov.uk/doc/local-authority/33,Norfolk County Council,03-Feb-11,2890568,513,,0PP Limited,65556,,Resources,Office Library Textbooks,40070,,,,Revenue
http://statistics.data.gov.uk/doc/local-authority/33,Norfolk County Council,04-Feb-11,2908201,1140,,1st Call Norfolk Taxis Ltd,168450,,Environment Transport & Development,Contract Transport  Hire,34900,,,,Revenue
http://statistics.data.gov.uk/doc/local-authority/33,Norfolk County Council,08-Feb-11,2912282,1260,,1st Call Norfolk Taxis Ltd,168450,,Environment Transport & Development,Contract Transport  Hire,34900,,,,Revenue
http://statistics.data.gov.uk/doc/local-authority/33,Norfolk County Council,18-Feb-11,2922762,920,,24 x 7 Ltd,412122,,Environment Transport & Development,Contract Transport  Hire,34900,,,,Revenue
http://statistics.data.gov.uk/doc/local-authority/33,Norfolk County Council,18-Feb-11,2922763,1540,,24 x 7 Ltd,412122,,Environment Transport & Development,Contract Transport  Hire,34900,,,,Revenue
http://statistics.data.gov.uk/doc/local-authority/33,Norfolk County Council,18-Feb-11,2922764,1600,,24 x 7 Ltd,412122,,Environment Transport & Development,Contract Transport  Hire,34900,,,,Revenue
http://statistics.data.gov.uk/doc/local-authority/33,Norfolk County Council,23-Feb-11,2914172,428.09,,24-7 Plumbing Heating & Services,98314,,Children's Services,Minor Building Repairs,A3800,,,,Revenue
http://statistics.data.gov.uk/doc/local-authority/33,Norfolk County Council,23-Feb-11,2914173,580.42,,24-7 Plumbing Heating & Services,98314,,Children's Services,Minor Building Repairs,A3800,,,,Revenue
http://statistics.data.gov.uk/doc/local-authority/33,Norfolk County Council,18-Feb-11,2903917,1923.28,,4Sports,192818,,Children's Services,Equipment Purchases,40850,,,,Revenue
http://statistics.data.gov.uk/doc/local-authority/33,Norfolk County Council,25-Feb-11,2910122,478.55,,4Sports,192818,,Children's Services,Equipment Purchases,40850,,,,Revenue
http://statistics.data.gov.uk/doc/local-authority/33,Norfolk County Council,10-Feb-11,2891719,702,,99.9 Radio Norwich Ltd,123780,,Resources,Marketing Design Costs,47090,,,,Revenue
http://statistics.data.gov.uk/doc/local-authority/33,Norfolk County Council,17-Feb-11,2901588,528,,A & W Cushion Ltd (Gyd),80263,,Environment Transport & Development,Materials Purchases,42160,,,,Revenue
http://statistics.data.gov.uk/doc/local-authority/33,Norfolk County Council,18-Feb-11,2922520,916.56,,A W Eastons Coaches Limited,65798,,Environment Transport & Development,Contract Transport  Hire,34900,,,,Revenue
http://statistics.data.gov.uk/doc/local-authority/33,Norfolk County Council,18-Feb-11,2922521,3814.82,,A W Eastons Coaches Limited,65798,,Environment Transport & Development,Contract Transport  Hire,34900,,,,Revenue
http://statistics.data.gov.uk/doc/local-authority/33,Norfolk County Council,18-Feb-11,2922522,3157.61,,A W Eastons Coaches Limited,65798,,Environment Transport & Development,Contract Transport  Hire,34900,,,,Revenue
http://statistics.data.gov.uk/doc/local-authority/33,Norfolk County Council,22-Feb-11,2925532,4704,,A1 Cabs & Travel Company,65820,,Environment Transport & Development,Contract Transport  Hire,34900,,,,Revenue
http://statistics.data.gov.uk/doc/local-authority/33,Norfolk County Council,25-Feb-11,2935738,825,,A1 Cabs & Travel Company,65820,,Environment Transport & Development,Contract Transport  Hire,34900,,,,Revenue
http://statistics.data.gov.uk/doc/local-authority/33,Norfolk County Council,18-Feb-11,2922375,803.2,,A1 CARS (SHERINGHAM) LTD,65591,,Environment Transport & Development,Contract Transport  Hire,34900,,,,Revenue
http://statistics.data.gov.uk/doc/local-authority/33,Norfolk County Council,03-Feb-11,2878529,604.8,,Abacus Care (Norfolk & Suffolk) Ltd,65849,,Community Services,Operational - Manual,8800,,,,Revenue
http://statistics.data.gov.uk/doc/local-authority/33,Norfolk County Council,03-Feb-11,2884490,1163.75,,Abacus Care (Norfolk & Suffolk) Ltd,65849,,Community Services,Operational - Manual,8800,,,,Revenue
http://statistics.data.gov.uk/doc/local-authority/33,Norfolk County Council,03-Feb-11,2891902,1296.04,,Abacus Care (Norfolk & Suffolk) Ltd,65849,,Community Services,Operational Staff - Scale A to J,8600,,,,Revenue
http://statistics.data.gov.uk/doc/local-authority/33,Norfolk County Council,04-Feb-11,2885929,1114.75,,Abacus Care (Norfolk & Suffolk) Ltd,65849,,Community Services,Agency Staff - Panel Funded Staff,8110,,,,Revenue
http://statistics.data.gov.uk/doc/local-authority/33,Norfolk County Council,07-Feb-11,2891985,2711.43,,Abacus Care (Norfolk & Suffolk) Ltd,65849,,Community Services,Operational Staff - Scale A to J,8600,,,,Revenue
http://statistics.data.gov.uk/doc/local-authority/33,Norfolk County Council,09-Feb-11,2888139,760.12,,Abacus Care (Norfolk & Suffolk) Ltd,65849,,Community Services,Operational - Manual,8800,,,,Revenue
http://statistics.data.gov.uk/doc/local-authority/33,Norfolk County Council,10-Feb-11,2887045,1018.85,,Abacus Care (Norfolk & Suffolk) Ltd,65849,,Community Services,Operational - Manual,8800,,,,Revenue
http://statistics.data.gov.uk/doc/local-authority/33,Norfolk County Council,11-Feb-11,2883361,542.7,,Abacus Care (Norfolk & Suffolk) Ltd,65849,,Community Services,Operational - Manual,8800,,,,Revenue
http://statistics.data.gov.uk/doc/local-authority/33,Norfolk County Council,11-Feb-11,2890335,644.53,,Abacus Care (Norfolk & Suffolk) Ltd,65849,,Community Services,Operational - Manual,8800,,,,Revenue
http://statistics.data.gov.uk/doc/local-authority/33,Norfolk County Council,11-Feb-11,2891990,2480.98,,Abacus Care (Norfolk & Suffolk) Ltd,65849,,Community Services,Operational Staff - Scale A to J,8600,,,,Revenue
http://statistics.data.gov.uk/doc/local-authority/33,Norfolk County Council,11-Feb-11,2903977,563.5,,Abacus Care (Norfolk & Suffolk) Ltd,65849,,Community Services,Agency Staff - Operational - Manual,8810,,,,Revenue
http://statistics.data.gov.uk/doc/local-authority/33,Norfolk County Council,18-Feb-11,2906151,1446.81,,Abacus Care (Norfolk & Suffolk) Ltd,65849,,Community Services,Operational - Manual,8800,,,,Revenue
http://statistics.data.gov.uk/doc/local-authority/33,Norfolk County Council,18-Feb-11,2912979,2304.44,,Abacus Care (Norfolk & Suffolk) Ltd,65849,,Community Services,Operational Staff - Scale A to J,8600,,,,Revenue
http://statistics.data.gov.uk/doc/local-authority/33,Norfolk County Council,23-Feb-11,2908656,869.95,,Abacus Care (Norfolk & Suffolk) Ltd,65849,,Community Services,Operational - Manual,8800,,,,Revenue
http://statistics.data.gov.uk/doc/local-authority/33,Norfolk County Council,25-Feb-11,2908564,985.36,,Abacus Care (Norfolk & Suffolk) Ltd,65849,,Community Services,Operational - Manual,8800,,,,Revenue
http://statistics.data.gov.uk/doc/local-authority/33,Norfolk County Council,02-Feb-11,2905650,-8574.86,,Abbeville  RCH Ltd,124609,,Community Services,Short Term Residential Care,50210,,,,Revenue
http://statistics.data.gov.uk/doc/local-authority/33,Norfolk County Council,02-Feb-11,2905664,7372.29,,Abbeville  RCH Ltd,124609,,Community Services,Long Term Residential Care,52070,,,,Revenue
http://statistics.data.gov.uk/doc/local-authority/33,Norfolk County Council,02-Feb-11,2905665,1719.29,,Abbeville  RCH Ltd,124609,,Community Services,Short Term Residential Care,50210,,,,Revenue
http://statistics.data.gov.uk/doc/local-authority/33,Norfolk County Council,23-Feb-11,2929853,1464,,Abbeville  RCH Ltd,124609,,Community Services,Long Term Residential Care,52070,,,,Revenue
http://statistics.data.gov.uk/doc/local-authority/33,Norfolk County Council,23-Feb-11,2930063,1464,,Abbeville  RCH Ltd,124609,,Community Services,Long Term Residential Care,52070,,,,Revenue
http://statistics.data.gov.uk/doc/local-authority/33,Norfolk County Council,23-Feb-11,2930699,1464,,Abbeville  RCH Ltd,124609,,Community Services,Long Term Residential Care,52070,,,,Revenue
http://statistics.data.gov.uk/doc/local-authority/33,Norfolk County Council,23-Feb-11,2931300,1464,,Abbeville  RCH Ltd,124609,,Community Services,Long Term Residential Care,52070,,,,Revenue
http://statistics.data.gov.uk/doc/local-authority/33,Norfolk County Council,23-Feb-11,2931457,1464,,Abbeville  RCH Ltd,124609,,Community Services,Long Term Residential Care,52070,,,,Revenue
http://statistics.data.gov.uk/doc/local-authority/33,Norfolk County Council,23-Feb-11,2931538,1660,,Abbeville  RCH Ltd,124609,,Community Services,Long Term Residential Care,52070,,,,Revenue
http://statistics.data.gov.uk/doc/local-authority/33,Norfolk County Council,23-Feb-11,2931911,1464,,Abbeville  RCH Ltd,124609,,Community Services,Long Term Residential Care,52070,,,,Revenue
http://statistics.data.gov.uk/doc/local-authority/33,Norfolk County Council,23-Feb-11,2932619,1464,,Abbeville  RCH Ltd,124609,,Community Services,Long Term Residential Care,52070,,,,Revenue
http://statistics.data.gov.uk/doc/local-authority/33,Norfolk County Council,23-Feb-11,2932649,1464,,Abbeville  RCH Ltd,124609,,Community Services,Long Term Residential Care,52070,,,,Revenue
http://statistics.data.gov.uk/doc/local-authority/33,Norfolk County Council,23-Feb-11,2932787,1464,,Abbeville  RCH Ltd,124609,,Community Services,Long Term Residential Care,52070,,,,Revenue
http://statistics.data.gov.uk/doc/local-authority/33,Norfolk County Council,23-Feb-11,2933252,1228,,Abbeville  RCH Ltd,124609,,Community Services,Long Term Residential Care,52070,,,,Revenue
http://statistics.data.gov.uk/doc/local-authority/33,Norfolk County Council,23-Feb-11,2933277,1228,,Abbeville  RCH Ltd,124609,,Community Services,Long Term Residential Care,52070,,,,Revenue
http://statistics.data.gov.uk/doc/local-authority/33,Norfolk County Council,23-Feb-11,2933720,1464,,Abbeville  RCH Ltd,124609,,Community Services,Long Term Residential Care,52070,,,,Revenue
http://statistics.data.gov.uk/doc/local-authority/33,Norfolk County Council,03-Feb-11,2907152,15.51,,Abbeygate Garages Ltd,80458,,Environment Transport & Development,Materials Purchases,42160,,,,Revenue
http://statistics.data.gov.uk/doc/local-authority/33,Norfolk County Council,03-Feb-11,2907152,92.17,,Abbeygate Garages Ltd,80458,,Environment Transport & Development,Materials Purchases,42160,,,,Revenue
http://statistics.data.gov.uk/doc/local-authority/33,Norfolk County Council,03-Feb-11,2907152,74.87,,Abbeygate Garages Ltd,80458,,Environment Transport & Development,Materials Purchases,42160,,,,Revenue
http://statistics.data.gov.uk/doc/local-authority/33,Norfolk County Council,03-Feb-11,2907152,80.61,,Abbeygate Garages Ltd,80458,,Environment Transport & Development,Materials Purchases,42160,,,,Revenue
http://statistics.data.gov.uk/doc/local-authority/33,Norfolk County Council,03-Feb-11,2907152,94.52,,Abbeygate Garages Ltd,80458,,Environment Transport & Development,Materials Purchases,42160,,,,Revenue
http://statistics.data.gov.uk/doc/local-authority/33,Norfolk County Council,03-Feb-11,2907152,1266.18,,Abbeygate Garages Ltd,80458,,Environment Transport & Development,Materials Purchases,42160,,,,Revenue
http://statistics.data.gov.uk/doc/local-authority/33,Norfolk County Council,23-Feb-11,2930114,2040,,Abbottswood Lodge Ltd,118002,,Community Services,Purchase Residential Preserved Rights,50190,,,,Revenue
http://statistics.data.gov.uk/doc/local-authority/33,Norfolk County Council,23-Feb-11,2930391,1996,,Abbottswood Lodge Ltd,118002,,Community Services,Long Term Residential Care,52070,,,,Revenue
http://statistics.data.gov.uk/doc/local-authority/33,Norfolk County Council,23-Feb-11,2930494,1500,,Abbottswood Lodge Ltd,118002,,Community Services,Purchase Residential Preserved Rights,50190,,,,Revenue
http://statistics.data.gov.uk/doc/local-authority/33,Norfolk County Council,23-Feb-11,2930804,2232,,Abbottswood Lodge Ltd,118002,,Community Services,Long Term Residential Care,52070,,,,Revenue
http://statistics.data.gov.uk/doc/local-authority/33,Norfolk County Council,23-Feb-11,2931158,1520,,Abbottswood Lodge Ltd,118002,,Community Services,Purchase Residential Preserved Rights,50190,,,,Revenue
http://statistics.data.gov.uk/doc/local-authority/33,Norfolk County Council,23-Feb-11,2931546,2248,,Abbottswood Lodge Ltd,118002,,Community Services,Long Term Residential Care,52070,,,,Revenue
http://statistics.data.gov.uk/doc/local-authority/33,Norfolk County Council,23-Feb-11,2931728,2273.6,,Abbottswood Lodge Ltd,118002,,Community Services,Long Term Residential Care,52070,,,,Revenue
http://statistics.data.gov.uk/doc/local-authority/33,Norfolk County Council,23-Feb-11,2931923,2196,,Abbottswood Lodge Ltd,118002,,Community Services,Purchase Residential Preserved Rights,50190,,,,Revenue
http://statistics.data.gov.uk/doc/local-authority/33,Norfolk County Council,23-Feb-11,2932092,1500,,Abbottswood Lodge Ltd,118002,,Community Services,Purchase Residential Preserved Rights,50190,,,,Revenue
http://statistics.data.gov.uk/doc/local-authority/33,Norfolk County Council,23-Feb-11,2932343,1500,,Abbottswood Lodge Ltd,118002,,Community Services,Long Term Residential Care,52070,,,,Revenue
http://statistics.data.gov.uk/doc/local-authority/33,Norfolk County Council,23-Feb-11,2932354,1644,,Abbottswood Lodge Ltd,118002,,Community Services,Long Term Residential Care,52070,,,,Revenue
http://statistics.data.gov.uk/doc/local-authority/33,Norfolk County Council,23-Feb-11,2932468,1664,,Abbottswood Lodge Ltd,118002,,Community Services,Purchase Residential Preserved Rights,50190,,,,Revenue
http://statistics.data.gov.uk/doc/local-authority/33,Norfolk County Council,23-Feb-11,2932682,1764,,Abbottswood Lodge Ltd,118002,,Community Services,Purchase Residential Preserved Rights,50190,,,,Revenue
http://statistics.data.gov.uk/doc/local-authority/33,Norfolk County Council,23-Feb-11,2932914,2268,,Abbottswood Lodge Ltd,118002,,Community Services,Long Term Residential Care,52070,,,,Revenue
http://statistics.data.gov.uk/doc/local-authority/33,Norfolk County Council,23-Feb-11,2933563,1776.16,,Abbottswood Lodge Ltd,118002,,Community Services,Long Term Residential Care,52070,,,,Revenue
http://statistics.data.gov.uk/doc/local-authority/33,Norfolk County Council,23-Feb-11,2933937,2056,,Abbottswood Lodge Ltd,118002,,Community Services,Purchase Residential Preserved Rights,50190,,,,Revenue
http://statistics.data.gov.uk/doc/local-authority/33,Norfolk County Council,16-Feb-11,2920584,2014.54,,Able Community Care,65878,,Community Services,Domiciliary Care,51610,,,,Revenue
http://statistics.data.gov.uk/doc/local-authority/33,Norfolk County Council,16-Feb-11,2920584,2014.54,,Able Community Care,65878,,Community Services,Domiciliary Care,51610,,,,Revenue
http://statistics.data.gov.uk/doc/local-authority/33,Norfolk County Council,16-Feb-11,2920596,3659.16,,Able Community Care,65878,,Community Services,Domiciliary Care,51610,,,,Revenue
http://statistics.data.gov.uk/doc/local-authority/33,Norfolk County Council,16-Feb-11,2920598,3241,,Able Community Care,65878,,Community Services,Domiciliary Care,51610,,,,Revenue
http://statistics.data.gov.uk/doc/local-authority/33,Norfolk County Council,17-Feb-11,2921927,16949.8,,Able Healthcare Limited,379045,,Children's Services,Payments to Organisations Providing Services To NCC,52000,,,,Revenue
http://statistics.data.gov.uk/doc/local-authority/33,Norfolk County Council,17-Feb-11,2921932,16949.8,,Able Healthcare Limited,379045,,Children's Services,Payments to Organisations Providing Services To NCC,52000,,,,Revenue
http://statistics.data.gov.uk/doc/local-authority/33,Norfolk County Council,18-Feb-11,2922669,5337.8,,Able Taxis Ltd,80467,,Environment Transport & Development,Contract Transport  Hire,34900,,,,Revenue
http://statistics.data.gov.uk/doc/local-authority/33,Norfolk County Council,18-Feb-11,2922670,8845,,Able Taxis Ltd,80467,,Environment Transport & Development,Contract Transport  Hire,34900,,,,Revenue
http://statistics.data.gov.uk/doc/local-authority/33,Norfolk County Council,18-Feb-11,2922671,3134.5,,Able Taxis Ltd,80467,,Environment Transport & Development,Contract Transport  Hire,34900,,,,Revenue
http://statistics.data.gov.uk/doc/local-authority/33,Norfolk County Council,18-Feb-11,2922672,2058,,Able Taxis Ltd,80467,,Environment Transport & Development,Contract Transport  Hire,34900,,,,Revenue
http://statistics.data.gov.uk/doc/local-authority/33,Norfolk County Council,18-Feb-11,2922673,506,,Able Taxis Ltd,80467,,Environment Transport & Development,Contract Transport  Hire,34900,,,,Revenue
http://statistics.data.gov.uk/doc/local-authority/33,Norfolk County Council,22-Feb-11,2925529,8802.56,,Able Taxis Ltd,80467,,Environment Transport & Development,Contract Transport  Hire,34900,,,,Revenue
http://statistics.data.gov.uk/doc/local-authority/33,Norfolk County Council,22-Feb-11,2925530,8878.68,,Able Taxis Ltd,80467,,Environment Transport & Development,Contract Transport  Hire,34900,,,,Revenue
http://statistics.data.gov.uk/doc/local-authority/33,Norfolk County Council,28-Feb-11,2938565,482411.58,,Academy Services (Norwich) Limited,117456,,Children's Services,Other Hired & Contracted Services,44810,,,,Revenue
http://statistics.data.gov.uk/doc/local-authority/33,Norfolk County Council,11-Feb-11,2912641,995,,Accora,305698,,Community Services,Equipment For Disabled People,41320,,,,Revenue
http://statistics.data.gov.uk/doc/local-authority/33,Norfolk County Council,11-Feb-11,2912645,1170,,Accora,305698,,Community Services,Equipment For Disabled People,41320,,,,Revenue
http://statistics.data.gov.uk/doc/local-authority/33,Norfolk County Council,18-Feb-11,2892765,1500,,ACIS,65957,,Environment Transport & Development,Telephone Rental & Calls,43200,,,,Revenue
http://statistics.data.gov.uk/doc/local-authority/33,Norfolk County Council,18-Feb-11,2898381,12837.5,,ACIS,65957,,Environment Transport & Development,Construction Costs - Roads - Management,C2500,,,,Capital
http://statistics.data.gov.uk/doc/local-authority/33,Norfolk County Council,18-Feb-11,2910614,-12837.5,,ACIS,65957,,Environment Transport & Development,Construction Costs - Roads - Management,C2500,,,,Capital
http://statistics.data.gov.uk/doc/local-authority/33,Norfolk County Council,23-Feb-11,2929981,3788,,Active Care Partnership,68383,,Community Services,Long Term Residential Care,52070,,,,Revenue
http://statistics.data.gov.uk/doc/local-authority/33,Norfolk County Council,23-Feb-11,2930013,1726,,Active Care Partnership,68383,,Community Services,Long Term Residential Care,52070,,,,Revenue
http://statistics.data.gov.uk/doc/local-authority/33,Norfolk County Council,23-Feb-11,2930831,4288.68,,Active Care Partnership,68383,,Community Services,Long Term Residential Care,52070,,,,Revenue
http://statistics.data.gov.uk/doc/local-authority/33,Norfolk County Council,23-Feb-11,2931957,2542,,Active Care Partnership,68383,,Community Services,Long Term Residential Care,52070,,,,Revenue
http://statistics.data.gov.uk/doc/local-authority/33,Norfolk County Council,23-Feb-11,2933502,3684,,Active Care Partnership,68383,,Community Services,Long Term Residential Care,52070,,,,Revenue
http://statistics.data.gov.uk/doc/local-authority/33,Norfolk County Council,23-Feb-11,2933530,5824.32,,Active Care Partnership,68383,,Community Services,Long Term Residential Care,52070,,,,Revenue
http://statistics.data.gov.uk/doc/local-authority/33,Norfolk County Council,23-Feb-11,2930748,1844,,Active Care Partnerships,68383,,Community Services,Purchase Residential Preserved Rights,50190,,,,Revenue
http://statistics.data.gov.uk/doc/local-authority/33,Norfolk County Council,23-Feb-11,2934063,2432,,Active Care Partnerships,68383,,Community Services,Purchase Residential Preserved Rights,50190,,,,Revenue
http://statistics.data.gov.uk/doc/local-authority/33,Norfolk County Council,04-Feb-11,2870550,4530.5,,Adamson Publishing Ltd,65938,,Children's Services,Cost of Licenses & Subscriptions,49020,,,,Revenue
http://statistics.data.gov.uk/doc/local-authority/33,Norfolk County Council,18-Feb-11,2903748,2580,,Adem Ltd,65946,,Community Services,Office Equipment & Supplies,40000,,,,Revenue
http://statistics.data.gov.uk/doc/local-authority/33,Norfolk County Council,23-Feb-11,2932319,3507.96,,Aden House Ltd,113411,,Community Services,Long Term Residential Care,52070,,,,Revenue
http://statistics.data.gov.uk/doc/local-authority/33,Norfolk County Council,10-Feb-11,2915335,436.84,,Admiral Civil Engineering Ltd,132632,,Children's Services,Building Repairs,A3780,,,,Revenue
http://statistics.data.gov.uk/doc/local-authority/33,Norfolk County Council,11-Feb-11,2891138,1460,,Admiral Civil Engineering Ltd,132632,,Children's Services,Building Repairs,A3780,,,,Revenue
http://statistics.data.gov.uk/doc/local-authority/33,Norfolk County Council,11-Feb-11,2891144,1784,,Admiral Civil Engineering Ltd,132632,,Children's Services,Building Repairs,A3780,,,,Revenue
http://statistics.data.gov.uk/doc/local-authority/33,Norfolk County Council,11-Feb-11,2903354,573,,Admiral Civil Engineering Ltd,132632,,Children's Services,Building Repairs,A3780,,,,Revenue
http://statistics.data.gov.uk/doc/local-authority/33,Norfolk County Council,11-Feb-11,2903356,1572,,Admiral Civil Engineering Ltd,132632,,Children's Services,Building Repairs,A3780,,,,Revenue
http://statistics.data.gov.uk/doc/local-authority/33,Norfolk County Council,18-Feb-11,2903350,734.68,,Admiral Civil Engineering Ltd,132632,,Children's Services,Building Repairs,A3780,,,,Revenue
http://statistics.data.gov.uk/doc/local-authority/33,Norfolk County Council,21-Feb-11,2924303,2888.31,,ADR Care Homes Ltd,141326,,Community Services,Free Nursing Care,55560,,,,Revenue
http://statistics.data.gov.uk/doc/local-authority/33,Norfolk County Council,21-Feb-11,2924305,4875.97,,ADR Care Homes Ltd,141326,,Community Services,Free Nursing Care,55560,,,,Revenue
http://statistics.data.gov.uk/doc/local-authority/33,Norfolk County Council,21-Feb-11,2924339,-1459.69,,ADR Care Homes Ltd,141326,,Community Services,Free Nursing Care,55560,,,,Revenue
http://statistics.data.gov.uk/doc/local-authority/33,Norfolk County Council,23-Feb-11,2929942,1536,,ADR Care Homes Ltd,141326,,Community Services,Long Term Care with Nursing,51550,,,,Revenue
http://statistics.data.gov.uk/doc/local-authority/33,Norfolk County Council,23-Feb-11,2929942,434.8,,ADR Care Homes Ltd,141326,,Community Services,Free Nursing Care,55560,,,,Revenue
http://statistics.data.gov.uk/doc/local-authority/33,Norfolk County Council,23-Feb-11,2930135,1536,,ADR Care Homes Ltd,141326,,Community Services,Long Term Care with Nursing,51550,,,,Revenue
http://statistics.data.gov.uk/doc/local-authority/33,Norfolk County Council,23-Feb-11,2930135,434.8,,ADR Care Homes Ltd,141326,,Community Services,Free Nursing Care,55560,,,,Revenue
http://statistics.data.gov.uk/doc/local-authority/33,Norfolk County Council,23-Feb-11,2931231,1536,,ADR Care Homes Ltd,141326,,Community Services,Long Term Care with Nursing,51550,,,,Revenue
http://statistics.data.gov.uk/doc/local-authority/33,Norfolk County Council,23-Feb-11,2931231,434.8,,ADR Care Homes Ltd,141326,,Community Services,Free Nursing Care,55560,,,,Revenue
http://statistics.data.gov.uk/doc/local-authority/33,Norfolk County Council,23-Feb-11,2931505,1536,,ADR Care Homes Ltd,141326,,Community Services,Long Term Care with Nursing,51550,,,,Revenue
http://statistics.data.gov.uk/doc/local-authority/33,Norfolk County Council,23-Feb-11,2931505,434.8,,ADR Care Homes Ltd,141326,,Community Services,Free Nursing Care,55560,,,,Revenue
http://statistics.data.gov.uk/doc/local-authority/33,Norfolk County Council,23-Feb-11,2931589,1536,,ADR Care Homes Ltd,141326,,Community Services,Long Term Care with Nursing,51550,,,,Revenue
http://statistics.data.gov.uk/doc/local-authority/33,Norfolk County Council,23-Feb-11,2931589,434.8,,ADR Care Homes Ltd,141326,,Community Services,Free Nursing Care,55560,,,,Revenue
http://statistics.data.gov.uk/doc/local-authority/33,Norfolk County Council,23-Feb-11,2932185,1536,,ADR Care Homes Ltd,141326,,Community Services,Long Term Care with Nursing,51550,,,,Revenue
http://statistics.data.gov.uk/doc/local-authority/33,Norfolk County Council,23-Feb-11,2932185,434.8,,ADR Care Homes Ltd,141326,,Community Services,Free Nursing Care,55560,,,,Revenue
http://statistics.data.gov.uk/doc/local-authority/33,Norfolk County Council,23-Feb-11,2932378,1676,,ADR Care Homes Ltd,141326,,Community Services,Long Term Care with Nursing,51550,,,,Revenue
http://statistics.data.gov.uk/doc/local-authority/33,Norfolk County Council,23-Feb-11,2932378,434.8,,ADR Care Homes Ltd,141326,,Community Services,Free Nursing Care,55560,,,,Revenue
http://statistics.data.gov.uk/doc/local-authority/33,Norfolk County Council,23-Feb-11,2932610,1940,,ADR Care Homes Ltd,141326,,Community Services,Long Term Residential Care,52070,,,,Revenue
http://statistics.data.gov.uk/doc/local-authority/33,Norfolk County Council,23-Feb-11,2933057,1536,,ADR Care Homes Ltd,141326,,Community Services,Long Term Care with Nursing,51550,,,,Revenue
http://statistics.data.gov.uk/doc/local-authority/33,Norfolk County Council,23-Feb-11,2933057,434.8,,ADR Care Homes Ltd,141326,,Community Services,Free Nursing Care,55560,,,,Revenue
http://statistics.data.gov.uk/doc/local-authority/33,Norfolk County Council,23-Feb-11,2934016,1970.8,,ADR Care Homes Ltd,141326,,Community Services,Long Term Care with Nursing,51550,,,,Revenue
http://statistics.data.gov.uk/doc/local-authority/33,Norfolk County Council,21-Feb-11,2924106,600,,Adult Day Care Ltd,119439,,Community Services,Day Care / Supported Activities,52160,,,,Revenue
http://statistics.data.gov.uk/doc/local-authority/33,Norfolk County Council,21-Feb-11,2924115,636,,Adult Day Care Ltd,119439,,Community Services,Day Care / Supported Activities,52160,,,,Revenue
http://statistics.data.gov.uk/doc/local-authority/33,Norfolk County Council,21-Feb-11,2924122,1100,,Adult Day Care Ltd,119439,,Community Services,Day Care / Supported Activities,52160,,,,Revenue
http://statistics.data.gov.uk/doc/local-authority/33,Norfolk County Council,21-Feb-11,2924128,636,,Adult Day Care Ltd,119439,,Community Services,Day Care / Supported Activities,52160,,,,Revenue
http://statistics.data.gov.uk/doc/local-authority/33,Norfolk County Council,21-Feb-11,2924134,812,,Adult Day Care Ltd,119439,,Community Services,Day Care / Supported Activities,52160,,,,Revenue
http://statistics.data.gov.uk/doc/local-authority/33,Norfolk County Council,25-Feb-11,2928098,600,,Adult Day Care Ltd,119439,,Community Services,Day Care / Supported Activities,52160,,,,Revenue
http://statistics.data.gov.uk/doc/local-authority/33,Norfolk County Council,25-Feb-11,2928485,612,,Adult Day Care Ltd,119439,,Community Services,Day Care / Supported Activities,52160,,,,Revenue
http://statistics.data.gov.uk/doc/local-authority/33,Norfolk County Council,28-Feb-11,2939054,600,,Adult Day Care Ltd,119439,,Community Services,Day Care / Supported Activities,52160,,,,Revenue
http://statistics.data.gov.uk/doc/local-authority/33,Norfolk County Council,28-Feb-11,2939844,660,,Adult Day Care Ltd,119439,,Community Services,Day Care / Supported Activities,52160,,,,Revenue
http://statistics.data.gov.uk/doc/local-authority/33,Norfolk County Council,04-Feb-11,2906508,6340,,Advocacy Partners Speaking Up,475347,,Community Services,Service Level Agreement With Organisations Providing Services to NCC,52260,,,,Revenue
http://statistics.data.gov.uk/doc/local-authority/33,Norfolk County Council,03-Feb-11,2905741,2900,,Aebi Schmidt Uk Limited,358996,,Environment Transport & Development,Schedule of Rates Vehicle Maintenance,32520,,,,Revenue
http://statistics.data.gov.uk/doc/local-authority/33,Norfolk County Council,03-Feb-11,2905741,2900,,Aebi Schmidt Uk Limited,358996,,Environment Transport & Development,Schedule of Rates Vehicle Maintenance,32520,,,,Revenue
http://statistics.data.gov.uk/doc/local-authority/33,Norfolk County Council,03-Feb-11,2905741,2900,,Aebi Schmidt Uk Limited,358996,,Environment Transport & Development,Schedule of Rates Vehicle Maintenance,32520,,,,Revenue
http://statistics.data.gov.uk/doc/local-authority/33,Norfolk County Council,03-Feb-11,2905741,2900,,Aebi Schmidt Uk Limited,358996,,Environment Transport & Development,Schedule of Rates Vehicle Maintenance,32520,,,,Revenue
http://statistics.data.gov.uk/doc/local-authority/33,Norfolk County Council,03-Feb-11,2905741,2900,,Aebi Schmidt Uk Limited,358996,,Environment Transport & Development,Schedule of Rates Vehicle Maintenance,32520,,,,Revenue
http://statistics.data.gov.uk/doc/local-authority/33,Norfolk County Council,03-Feb-11,2905741,2900,,Aebi Schmidt Uk Limited,358996,,Environment Transport & Development,Schedule of Rates Vehicle Maintenance,32520,,,,Revenue
http://statistics.data.gov.uk/doc/local-authority/33,Norfolk County Council,03-Feb-11,2905741,2900,,Aebi Schmidt Uk Limited,358996,,Environment Transport & Development,Schedule of Rates Vehicle Maintenance,32520,,,,Revenue
http://statistics.data.gov.uk/doc/local-authority/33,Norfolk County Council,02-Feb-11,2905549,5464.29,,Aermid Health Care UK Ltd,118522,,Community Services,Long Term Residential Care,52070,,,,Revenue
http://statistics.data.gov.uk/doc/local-authority/33,Norfolk County Council,16-Feb-11,2919888,3276.43,,Aermid Health Care UK Ltd,118522,,Community Services,Long Term Residential Care,52070,,,,Revenue
http://statistics.data.gov.uk/doc/local-authority/33,Norfolk County Council,23-Feb-11,2929967,1700,,Aermid Health Care UK Ltd,118522,,Community Services,Long Term Residential Care,52070,,,,Revenue
http://statistics.data.gov.uk/doc/local-authority/33,Norfolk County Council,23-Feb-11,2930289,1608,,Aermid Health Care UK Ltd,118522,,Community Services,Long Term Residential Care,52070,,,,Revenue
http://statistics.data.gov.uk/doc/local-authority/33,Norfolk County Council,23-Feb-11,2930323,1668,,Aermid Health Care UK Ltd,118522,,Community Services,Long Term Residential Care,52070,,,,Revenue
http://statistics.data.gov.uk/doc/local-authority/33,Norfolk County Council,23-Feb-11,2930612,1372,,Aermid Health Care UK Ltd,118522,,Community Services,Long Term Residential Care,52070,,,,Revenue
http://statistics.data.gov.uk/doc/local-authority/33,Norfolk County Council,23-Feb-11,2930644,1668,,Aermid Health Care UK Ltd,118522,,Community Services,Purchase Residential Preserved Rights,50190,,,,Revenue
http://statistics.data.gov.uk/doc/local-authority/33,Norfolk County Council,23-Feb-11,2931085,1668,,Aermid Health Care UK Ltd,118522,,Community Services,Long Term Residential Care,52070,,,,Revenue
http://statistics.data.gov.uk/doc/local-authority/33,Norfolk County Council,23-Feb-11,2931531,1668,,Aermid Health Care UK Ltd,118522,,Community Services,Long Term Residential Care,52070,,,,Revenue
http://statistics.data.gov.uk/doc/local-authority/33,Norfolk County Council,23-Feb-11,2932453,1668,,Aermid Health Care UK Ltd,118522,,Community Services,Long Term Residential Care,52070,,,,Revenue
http://statistics.data.gov.uk/doc/local-authority/33,Norfolk County Council,23-Feb-11,2932584,1668,,Aermid Health Care UK Ltd,118522,,Community Services,Long Term Residential Care,52070,,,,Revenue
http://statistics.data.gov.uk/doc/local-authority/33,Norfolk County Council,23-Feb-11,2932832,1668,,Aermid Health Care UK Ltd,118522,,Community Services,Long Term Residential Care,52070,,,,Revenue
http://statistics.data.gov.uk/doc/local-authority/33,Norfolk County Council,23-Feb-11,2933144,1792,,Aermid Health Care UK Ltd,118522,,Community Services,Long Term Residential Care,52070,,,,Revenue
http://statistics.data.gov.uk/doc/local-authority/33,Norfolk County Council,23-Feb-11,2933190,1668,,Aermid Health Care UK Ltd,118522,,Community Services,Long Term Residential Care,52070,,,,Revenue
http://statistics.data.gov.uk/doc/local-authority/33,Norfolk County Council,23-Feb-11,2898476,-9068.76,,Affinity Trust,185008,,Community Services,Supported Living,52140,,,,Revenue
http://statistics.data.gov.uk/doc/local-authority/33,Norfolk County Council,23-Feb-11,2903303,996,,Affinity Trust,185008,,Community Services,Supported Living,52140,,,,Revenue
http://statistics.data.gov.uk/doc/local-authority/33,Norfolk County Council,23-Feb-11,2908459,996,,Affinity Trust,185008,,Community Services,Supported Living,52140,,,,Revenue
http://statistics.data.gov.uk/doc/local-authority/33,Norfolk County Council,23-Feb-11,2929130,4074.16,,Affinity Trust,185008,,Community Services,Supported Living,52140,,,,Revenue
http://statistics.data.gov.uk/doc/local-authority/33,Norfolk County Council,23-Feb-11,2929141,3168.08,,Affinity Trust,185008,,Community Services,Supported Living,52140,,,,Revenue
http://statistics.data.gov.uk/doc/local-authority/33,Norfolk County Council,23-Feb-11,2929144,7826.32,,Affinity Trust,185008,,Community Services,Supported Living,52140,,,,Revenue
http://statistics.data.gov.uk/doc/local-authority/33,Norfolk County Council,23-Feb-11,2929160,5195.76,,Affinity Trust,185008,,Community Services,Payments to Organisations Providing Services To NCC,52000,,,,Revenue
http://statistics.data.gov.uk/doc/local-authority/33,Norfolk County Council,23-Feb-11,2929186,4074.16,,Affinity Trust,185008,,Community Services,Supported Living,52140,,,,Revenue
http://statistics.data.gov.uk/doc/local-authority/33,Norfolk County Council,23-Feb-11,2929208,7222.32,,Affinity Trust,185008,,Community Services,Supported Living,52140,,,,Revenue
http://statistics.data.gov.uk/doc/local-authority/33,Norfolk County Council,23-Feb-11,2929237,4052.64,,Affinity Trust,185008,,Community Services,Supported Living,52140,,,,Revenue
http://statistics.data.gov.uk/doc/local-authority/33,Norfolk County Council,23-Feb-11,2929268,11817.96,,Affinity Trust,185008,,Community Services,Supported Living,52140,,,,Revenue
http://statistics.data.gov.uk/doc/local-authority/33,Norfolk County Council,23-Feb-11,2929273,13301.92,,Affinity Trust,185008,,Community Services,Supported Living,52140,,,,Revenue
http://statistics.data.gov.uk/doc/local-authority/33,Norfolk County Council,23-Feb-11,2929300,2844.64,,Affinity Trust,185008,,Community Services,Supported Living,52140,,,,Revenue
http://statistics.data.gov.uk/doc/local-authority/33,Norfolk County Council,23-Feb-11,2929334,4074.16,,Affinity Trust,185008,,Community Services,Supported Living,52140,,,,Revenue
http://statistics.data.gov.uk/doc/local-authority/33,Norfolk County Council,23-Feb-11,2929391,7164.68,,Affinity Trust,185008,,Community Services,Supported Living,52140,,,,Revenue
http://statistics.data.gov.uk/doc/local-authority/33,Norfolk County Council,23-Feb-11,2929421,6253.32,,Affinity Trust,185008,,Community Services,Supported Living,52140,,,,Revenue
http://statistics.data.gov.uk/doc/local-authority/33,Norfolk County Council,23-Feb-11,2929427,7222.32,,Affinity Trust,185008,,Community Services,Supported Living,52140,,,,Revenue
http://statistics.data.gov.uk/doc/local-authority/33,Norfolk County Council,23-Feb-11,2929471,5330.4,,Affinity Trust,185008,,Community Services,Supported Living,52140,,,,Revenue
http://statistics.data.gov.uk/doc/local-authority/33,Norfolk County Council,23-Feb-11,2929489,3000,,Affinity Trust,185008,,Community Services,Supported Living,52140,,,,Revenue
http://statistics.data.gov.uk/doc/local-authority/33,Norfolk County Council,23-Feb-11,2929636,4052.64,,Affinity Trust,185008,,Community Services,Supported Living,52140,,,,Revenue
http://statistics.data.gov.uk/doc/local-authority/33,Norfolk County Council,23-Feb-11,2929642,8328,,Affinity Trust,185008,,Community Services,Supported Living,52140,,,,Revenue
http://statistics.data.gov.uk/doc/local-authority/33,Norfolk County Council,23-Feb-11,2929667,4074.16,,Affinity Trust,185008,,Community Services,Supported Living,52140,,,,Revenue
http://statistics.data.gov.uk/doc/local-authority/33,Norfolk County Council,23-Feb-11,2929681,6253.32,,Affinity Trust,185008,,Community Services,Supported Living,52140,,,,Revenue
http://statistics.data.gov.uk/doc/local-authority/33,Norfolk County Council,23-Feb-11,2929727,3717.48,,Affinity Trust,185008,,Community Services,Supported Living,52140,,,,Revenue
http://statistics.data.gov.uk/doc/local-authority/33,Norfolk County Council,23-Feb-11,2929762,1208,,Affinity Trust,185008,,Community Services,Supported Living,52140,,,,Revenue
http://statistics.data.gov.uk/doc/local-authority/33,Norfolk County Council,23-Feb-11,2929776,1208,,Affinity Trust,185008,,Community Services,Supported Living,52140,,,,Revenue
http://statistics.data.gov.uk/doc/local-authority/33,Norfolk County Council,23-Feb-11,2929777,5330.4,,Affinity Trust,185008,,Community Services,Supported Living,52140,,,,Revenue
http://statistics.data.gov.uk/doc/local-authority/33,Norfolk County Council,23-Feb-11,2929779,6253.32,,Affinity Trust,185008,,Community Services,Supported Living,52140,,,,Revenue
http://statistics.data.gov.uk/doc/local-authority/33,Norfolk County Council,11-Feb-11,2891850,512.12,,Age UK Norfolk,404032,,Community Services,Day Care / Supported Activities,52160,,,,Revenue
http://statistics.data.gov.uk/doc/local-authority/33,Norfolk County Council,11-Feb-11,2912856,988.14,,Age UK Norfolk,404032,,Community Services,Domiciliary Care,51610,,,,Revenue
http://statistics.data.gov.uk/doc/local-authority/33,Norfolk County Council,11-Feb-11,2912858,2123.51,,Age UK Norfolk,404032,,Community Services,Domiciliary Care,51610,,,,Revenue
http://statistics.data.gov.uk/doc/local-authority/33,Norfolk County Council,17-Feb-11,2921347,5913,,Agecare Eastern Ltd,95844,,Community Services,Equipment For Disabled People,41320,,,,Revenue
http://statistics.data.gov.uk/doc/local-authority/33,Norfolk County Council,23-Feb-11,2904815,1200,,Aidapt Bathrooms Ltd,65985,,Community Services,General Equipment,41480,,,,Revenue
http://statistics.data.gov.uk/doc/local-authority/33,Norfolk County Council,23-Feb-11,2906808,1072,,Aidapt Bathrooms Ltd,65985,,Community Services,Equipment For Disabled People,41320,,,,Revenue
http://statistics.data.gov.uk/doc/local-authority/33,Norfolk County Council,23-Feb-11,2910561,-40,,Aidapt Bathrooms Ltd,65985,,Community Services,Equipment For Disabled People,41320,,,,Revenue
http://statistics.data.gov.uk/doc/local-authority/33,Norfolk County Council,24-Feb-11,2904818,40,,Aidapt Bathrooms Ltd,65985,,Community Services,Equipment For Disabled People,41320,,,,Revenue
http://statistics.data.gov.uk/doc/local-authority/33,Norfolk County Council,22-Feb-11,2927690,1200,,Alan R Cross & Son,65998,,Community Services,"Certificate - Electricity, Power & Light",C2780,,,,Capital
http://statistics.data.gov.uk/doc/local-authority/33,Norfolk County Council,22-Feb-11,2927695,2594.89,,Alan R Cross & Son,65998,,Community Services,"Certificate - Electricity, Power & Light",C2780,,,,Capital
http://statistics.data.gov.uk/doc/local-authority/33,Norfolk County Council,18-Feb-11,2903431,675,,Alarm,65999,,Resources,Cost of Licenses & Subscriptions,49020,,,,Revenue
http://statistics.data.gov.uk/doc/local-authority/33,Norfolk County Council,04-Feb-11,2885617,499,,Alarm Company (Norwich) Ltd,66000,,Environment Transport & Development,Security System,23710,,,,Revenue
http://statistics.data.gov.uk/doc/local-authority/33,Norfolk County Council,18-Feb-11,2898147,587.5,,Alarm Company (Norwich) Ltd,66000,,Children's Services,Estate / Site Management Costs,22550,,,,Revenue
http://statistics.data.gov.uk/doc/local-authority/33,Norfolk County Council,10-Feb-11,2914769,1330,,Alasdair Cant & Associates Ltd,116679,,Community Services,Substance Misuse Budget,47290,,,,Revenue
http://statistics.data.gov.uk/doc/local-authority/33,Norfolk County Council,10-Feb-11,2914784,665,,Alasdair Cant & Associates Ltd,116679,,Community Services,Substance Misuse Budget,47290,,,,Revenue
http://statistics.data.gov.uk/doc/local-authority/33,Norfolk County Council,03-Feb-11,2906957,960,,Albies Taxis,66006,,Children's Services,Contract Taxi Hire,35400,,,,Revenue
http://statistics.data.gov.uk/doc/local-authority/33,Norfolk County Council,11-Feb-11,2890476,1920,,Albies Taxis,66006,,Children's Services,Contract Taxi Hire,35400,,,,Revenue
http://statistics.data.gov.uk/doc/local-authority/33,Norfolk County Council,11-Feb-11,2916502,30070,,Albies Taxis,66006,,Environment Transport & Development,Contract Transport  Hire,34900,,,,Revenue
http://statistics.data.gov.uk/doc/local-authority/33,Norfolk County Council,18-Feb-11,2922409,2425,,Albies Taxis,66006,,Environment Transport & Development,Contract Transport  Hire,34900,,,,Revenue
http://statistics.data.gov.uk/doc/local-authority/33,Norfolk County Council,18-Feb-11,2922417,800,,Albies Taxis,66006,,Environment Transport & Development,Contract Transport  Hire,34900,,,,Revenue
http://statistics.data.gov.uk/doc/local-authority/33,Norfolk County Council,18-Feb-11,2922418,1900,,Albies Taxis,66006,,Environment Transport & Development,Contract Transport  Hire,34900,,,,Revenue
http://statistics.data.gov.uk/doc/local-authority/33,Norfolk County Council,18-Feb-11,2922638,2970,,Albies Taxis,66006,,Environment Transport & Development,Contract Transport  Hire,34900,,,,Revenue
http://statistics.data.gov.uk/doc/local-authority/33,Norfolk County Council,18-Feb-11,2922639,1710,,Albies Taxis,66006,,Environment Transport & Development,Contract Transport  Hire,34900,,,,Revenue
http://statistics.data.gov.uk/doc/local-authority/33,Norfolk County Council,18-Feb-11,2922640,9390,,Albies Taxis,66006,,Environment Transport & Development,Contract Transport  Hire,34900,,,,Revenue
http://statistics.data.gov.uk/doc/local-authority/33,Norfolk County Council,18-Feb-11,2922641,3600,,Albies Taxis,66006,,Environment Transport & Development,Contract Transport  Hire,34900,,,,Revenue
http://statistics.data.gov.uk/doc/local-authority/33,Norfolk County Council,18-Feb-11,2922642,2570,,Albies Taxis,66006,,Environment Transport & Development,Contract Transport  Hire,34900,,,,Revenue
http://statistics.data.gov.uk/doc/local-authority/33,Norfolk County Council,18-Feb-11,2922643,3110,,Albies Taxis,66006,,Environment Transport & Development,Contract Transport  Hire,34900,,,,Revenue
http://statistics.data.gov.uk/doc/local-authority/33,Norfolk County Council,18-Feb-11,2922660,684,,Albies Taxis,66006,,Environment Transport & Development,Contract Transport  Hire,34900,,,,Revenue
http://statistics.data.gov.uk/doc/local-authority/33,Norfolk County Council,18-Feb-11,2922661,2344,,Albies Taxis,66006,,Environment Transport & Development,Contract Transport  Hire,34900,,,,Revenue
http://statistics.data.gov.uk/doc/local-authority/33,Norfolk County Council,18-Feb-11,2922662,3420,,Albies Taxis,66006,,Environment Transport & Development,Contract Transport  Hire,34900,,,,Revenue
http://statistics.data.gov.uk/doc/local-authority/33,Norfolk County Council,18-Feb-11,2922663,1260,,Albies Taxis,66006,,Environment Transport & Development,Contract Transport  Hire,34900,,,,Revenue
http://statistics.data.gov.uk/doc/local-authority/33,Norfolk County Council,18-Feb-11,2922664,480,,Albies Taxis,66006,,Environment Transport & Development,Contract Transport  Hire,34900,,,,Revenue
http://statistics.data.gov.uk/doc/local-authority/33,Norfolk County Council,18-Feb-11,2922666,29441.45,,Albies Taxis,66006,,Environment Transport & Development,Contract Transport  Hire,34900,,,,Revenue
http://statistics.data.gov.uk/doc/local-authority/33,Norfolk County Council,25-Feb-11,2912485,840,,Albies Taxis,66006,,Children's Services,Contract Taxi Hire,35400,,,,Revenue
http://statistics.data.gov.uk/doc/local-authority/33,Norfolk County Council,17-Feb-11,2890689,708.5,,ALcontrol UK Ltd,66013,,Environment Transport & Development,Other Hired & Contracted Services,44810,,,,Revenue
http://statistics.data.gov.uk/doc/local-authority/33,Norfolk County Council,11-Feb-11,2903601,752.58,,Aldney Services Ltd,260637,,Children's Services,Minor Building Repairs,A3800,,,,Revenue
http://statistics.data.gov.uk/doc/local-authority/33,Norfolk County Council,25-Feb-11,2928058,2005,,Aldous Electrical Ltd,138100,,Environment Transport & Development,Estate / Site Management Costs,22550,,,,Revenue
http://statistics.data.gov.uk/doc/local-authority/33,Norfolk County Council,04-Feb-11,2907825,3871.21,,All Hallows HealthCare Trust Nursing Home,181585,,Community Services,Long Term Care with Nursing,51550,,,,Revenue
http://statistics.data.gov.uk/doc/local-authority/33,Norfolk County Council,04-Feb-11,2907826,-854.07,,All Hallows HealthCare Trust Nursing Home,181585,,Community Services,Long Term Care with Nursing,51550,,,,Revenue
http://statistics.data.gov.uk/doc/local-authority/33,Norfolk County Council,21-Feb-11,2924585,1859,,All Hallows HealthCare Trust Nursing Home,181585,,Community Services,Day Care / Supported Activities,52160,,,,Revenue
http://statistics.data.gov.uk/doc/local-authority/33,Norfolk County Council,23-Feb-11,2929998,1536,,All Hallows HealthCare Trust Nursing Home,181585,,Community Services,Long Term Care with Nursing,51550,,,,Revenue
http://statistics.data.gov.uk/doc/local-authority/33,Norfolk County Council,23-Feb-11,2930148,1494,,All Hallows HealthCare Trust Nursing Home,181585,,Community Services,Long Term Care with Nursing,51550,,,,Revenue
http://statistics.data.gov.uk/doc/local-authority/33,Norfolk County Council,23-Feb-11,2930351,1536,,All Hallows HealthCare Trust Nursing Home,181585,,Community Services,Long Term Care with Nursing,51550,,,,Revenue
http://statistics.data.gov.uk/doc/local-authority/33,Norfolk County Council,23-Feb-11,2930525,1536,,All Hallows HealthCare Trust Nursing Home,181585,,Community Services,Long Term Care with Nursing,51550,,,,Revenue
http://statistics.data.gov.uk/doc/local-authority/33,Norfolk County Council,23-Feb-11,2930609,1536,,All Hallows HealthCare Trust Nursing Home,181585,,Community Services,Long Term Care with Nursing,51550,,,,Revenue
http://statistics.data.gov.uk/doc/local-authority/33,Norfolk County Council,23-Feb-11,2930868,1536,,All Hallows HealthCare Trust Nursing Home,181585,,Community Services,Long Term Care with Nursing,51550,,,,Revenue
http://statistics.data.gov.uk/doc/local-authority/33,Norfolk County Council,23-Feb-11,2931144,1536,,All Hallows HealthCare Trust Nursing Home,181585,,Community Services,Long Term Care with Nursing,51550,,,,Revenue
http://statistics.data.gov.uk/doc/local-authority/33,Norfolk County Council,23-Feb-11,2931384,1536,,All Hallows HealthCare Trust Nursing Home,181585,,Community Services,Long Term Care with Nursing,51550,,,,Revenue
http://statistics.data.gov.uk/doc/local-authority/33,Norfolk County Council,23-Feb-11,2931450,1536,,All Hallows HealthCare Trust Nursing Home,181585,,Community Services,Long Term Care with Nursing,51550,,,,Revenue
http://statistics.data.gov.uk/doc/local-authority/33,Norfolk County Council,23-Feb-11,2931945,1536,,All Hallows HealthCare Trust Nursing Home,181585,,Community Services,Long Term Care with Nursing,51550,,,,Revenue
http://statistics.data.gov.uk/doc/local-authority/33,Norfolk County Council,23-Feb-11,2932240,1536,,All Hallows HealthCare Trust Nursing Home,181585,,Community Services,Long Term Care with Nursing,51550,,,,Revenue
http://statistics.data.gov.uk/doc/local-authority/33,Norfolk County Council,23-Feb-11,2933246,1970.8,,All Hallows HealthCare Trust Nursing Home,181585,,Community Services,Long Term Care with Nursing,51550,,,,Revenue
http://statistics.data.gov.uk/doc/local-authority/33,Norfolk County Council,23-Feb-11,2933246,-434.8,,All Hallows HealthCare Trust Nursing Home,181585,,Community Services,Free Nursing Care,55560,,,,Revenue
http://statistics.data.gov.uk/doc/local-authority/33,Norfolk County Council,23-Feb-11,2933302,1536,,All Hallows HealthCare Trust Nursing Home,181585,,Community Services,Long Term Care with Nursing,51550,,,,Revenue
http://statistics.data.gov.uk/doc/local-authority/33,Norfolk County Council,23-Feb-11,2934141,1536,,All Hallows HealthCare Trust Nursing Home,181585,,Community Services,Long Term Care with Nursing,51550,,,,Revenue
http://statistics.data.gov.uk/doc/local-authority/33,Norfolk County Council,01-Feb-11,2903978,68100,,All Trades Training Ltd,148475,,Environment Transport & Development,Grant Payments,49090,,,,Revenue
http://statistics.data.gov.uk/doc/local-authority/33,Norfolk County Council,01-Feb-11,2903980,36300,,All Trades Training Ltd,148475,,Environment Transport & Development,Fees & Charges,44500,,,,Revenue
http://statistics.data.gov.uk/doc/local-authority/33,Norfolk County Council,11-Feb-11,2916281,28350,,All Trades Training Ltd,148475,,Environment Transport & Development,Fees & Charges,44500,,,,Revenue
http://statistics.data.gov.uk/doc/local-authority/33,Norfolk County Council,22-Feb-11,2928215,54600,,All Trades Training Ltd,148475,,Environment Transport & Development,Fees & Charges,44500,,,,Revenue
http://statistics.data.gov.uk/doc/local-authority/33,Norfolk County Council,11-Feb-11,2916278,10608,,All Trades Training Ltd,148475,,Environment Transport & Development,Grant Payments,49090,,,,Revenue
http://statistics.data.gov.uk/doc/local-authority/33,Norfolk County Council,04-Feb-11,2883977,1029.84,,Allied Healthcare Group Ltd,104517,,Community Services,Domiciliary Care,51610,,,,Revenue
http://statistics.data.gov.uk/doc/local-authority/33,Norfolk County Council,04-Feb-11,2883985,526.93,,Allied Healthcare Group Ltd,104517,,Community Services,Domiciliary Care,51610,,,,Revenue
http://statistics.data.gov.uk/doc/local-authority/33,Norfolk County Council,04-Feb-11,2888488,883.5,,Allied Healthcare Group Ltd,104517,,Community Services,Domiciliary Care,51610,,,,Revenue
http://statistics.data.gov.uk/doc/local-authority/33,Norfolk County Council,11-Feb-11,2883921,2585.92,,Allied Healthcare Group Ltd,104517,,Community Services,Domiciliary Care,51610,,,,Revenue
http://statistics.data.gov.uk/doc/local-authority/33,Norfolk County Council,11-Feb-11,2901042,983.87,,Allied Healthcare Group Ltd,104517,,Community Services,Operational - Manual,8800,,,,Revenue
http://statistics.data.gov.uk/doc/local-authority/33,Norfolk County Council,14-Feb-11,2891715,1581,,Allied Healthcare Group Ltd,104517,,Community Services,Domiciliary Care,51610,,,,Revenue
http://statistics.data.gov.uk/doc/local-authority/33,Norfolk County Council,16-Feb-11,2920061,33735.54,,Allied Healthcare Group Ltd,104517,,Community Services,Domiciliary Care,51610,,,,Revenue
http://statistics.data.gov.uk/doc/local-authority/33,Norfolk County Council,16-Feb-11,2920065,6382.1,,Allied Healthcare Group Ltd,104517,,Community Services,Domiciliary Care,51610,,,,Revenue
http://statistics.data.gov.uk/doc/local-authority/33,Norfolk County Council,16-Feb-11,2920553,600.62,,Allied Healthcare Group Ltd,104517,,Community Services,Domiciliary Care,51610,,,,Revenue
http://statistics.data.gov.uk/doc/local-authority/33,Norfolk County Council,16-Feb-11,2920566,1029.84,,Allied Healthcare Group Ltd,104517,,Community Services,Domiciliary Care,51610,,,,Revenue
http://statistics.data.gov.uk/doc/local-authority/33,Norfolk County Council,16-Feb-11,2920568,1029.84,,Allied Healthcare Group Ltd,104517,,Community Services,Domiciliary Care,51610,,,,Revenue
http://statistics.data.gov.uk/doc/local-authority/33,Norfolk County Council,16-Feb-11,2920572,1029.84,,Allied Healthcare Group Ltd,104517,,Community Services,Domiciliary Care,51610,,,,Revenue
http://statistics.data.gov.uk/doc/local-authority/33,Norfolk County Council,18-Feb-11,2898140,930,,Allied Healthcare Group Ltd,104517,,Community Services,Domiciliary Care,51610,,,,Revenue
http://statistics.data.gov.uk/doc/local-authority/33,Norfolk County Council,18-Feb-11,2898337,759.5,,Allied Healthcare Group Ltd,104517,,Community Services,Domiciliary Care,51610,,,,Revenue
http://statistics.data.gov.uk/doc/local-authority/33,Norfolk County Council,18-Feb-11,2914263,2629.88,,Allied Healthcare Group Ltd,104517,,Community Services,Domiciliary Care,51610,,,,Revenue
http://statistics.data.gov.uk/doc/local-authority/33,Norfolk County Council,18-Feb-11,2920519,1029.84,,Allied Healthcare Group Ltd,104517,,Community Services,Domiciliary Care,51610,,,,Revenue
http://statistics.data.gov.uk/doc/local-authority/33,Norfolk County Council,18-Feb-11,2920528,1029.84,,Allied Healthcare Group Ltd,104517,,Community Services,Domiciliary Care,51610,,,,Revenue
http://statistics.data.gov.uk/doc/local-authority/33,Norfolk County Council,25-Feb-11,2920564,1029.84,,Allied Healthcare Group Ltd,104517,,Community Services,Domiciliary Care,51610,,,,Revenue
http://statistics.data.gov.uk/doc/local-authority/33,Norfolk County Council,25-Feb-11,2920567,1029.84,,Allied Healthcare Group Ltd,104517,,Community Services,Domiciliary Care,51610,,,,Revenue
http://statistics.data.gov.uk/doc/local-authority/33,Norfolk County Council,25-Feb-11,2928517,682,,Allied Healthcare Group Ltd,104517,,Community Services,Domiciliary Care,51610,,,,Revenue
http://statistics.data.gov.uk/doc/local-authority/33,Norfolk County Council,11-Feb-11,2916585,6098,,Allstar Trust Taxis Limited,66062,,Environment Transport & Development,Contract Transport  Hire,34900,,,,Revenue
http://statistics.data.gov.uk/doc/local-authority/33,Norfolk County Council,10-Feb-11,2881530,2785.4,,Alpha Roofing Services Limited,66066,,Children's Services,Reroofing,A3000,,,,Revenue
http://statistics.data.gov.uk/doc/local-authority/33,Norfolk County Council,10-Feb-11,2881530,1268.4,,Alpha Roofing Services Limited,66066,,Children's Services,Certificate - Building Fabric,C2560,,,,Capital
http://statistics.data.gov.uk/doc/local-authority/33,Norfolk County Council,02-Feb-11,2905540,-1112.41,,Alphacare Management Services Ltd,110574,,Community Services,Long Term Residential Care,52070,,,,Revenue
http://statistics.data.gov.uk/doc/local-authority/33,Norfolk County Council,02-Feb-11,2905568,1638.57,,Alphacare Management Services Ltd,110574,,Community Services,Long Term Residential Care,52070,,,,Revenue
http://statistics.data.gov.uk/doc/local-authority/33,Norfolk County Council,02-Feb-11,2905569,6557.14,,Alphacare Management Services Ltd,110574,,Community Services,Long Term Residential Care,52070,,,,Revenue
http://statistics.data.gov.uk/doc/local-authority/33,Norfolk County Council,02-Feb-11,2905570,5142.86,,Alphacare Management Services Ltd,110574,,Community Services,Long Term Residential Care,52070,,,,Revenue
http://statistics.data.gov.uk/doc/local-authority/33,Norfolk County Council,23-Feb-11,2928663,-1722.98,,Alphacare Management Services Ltd,110574,,Community Services,Long Term Residential Care,52070,,,,Revenue
http://statistics.data.gov.uk/doc/local-authority/33,Norfolk County Council,23-Feb-11,2928664,-3999.29,,Alphacare Management Services Ltd,110574,,Community Services,Long Term Residential Care,52070,,,,Revenue
http://statistics.data.gov.uk/doc/local-authority/33,Norfolk County Council,23-Feb-11,2930018,1849.12,,Alphacare Management Services Ltd,110574,,Community Services,Long Term Residential Care,52070,,,,Revenue
http://statistics.data.gov.uk/doc/local-authority/33,Norfolk County Council,23-Feb-11,2930213,1800,,Alphacare Management Services Ltd,110574,,Community Services,Long Term Residential Care,52070,,,,Revenue
http://statistics.data.gov.uk/doc/local-authority/33,Norfolk County Council,23-Feb-11,2930219,1816,,Alphacare Management Services Ltd,110574,,Community Services,Long Term Residential Care,52070,,,,Revenue
http://statistics.data.gov.uk/doc/local-authority/33,Norfolk County Council,23-Feb-11,2930229,1480,,Alphacare Management Services Ltd,110574,,Community Services,Long Term Residential Care,52070,,,,Revenue
http://statistics.data.gov.uk/doc/local-authority/33,Norfolk County Council,23-Feb-11,2930303,1849.12,,Alphacare Management Services Ltd,110574,,Community Services,Long Term Residential Care,52070,,,,Revenue
http://statistics.data.gov.uk/doc/local-authority/33,Norfolk County Council,23-Feb-11,2930373,1843.92,,Alphacare Management Services Ltd,110574,,Community Services,Long Term Residential Care,52070,,,,Revenue
http://statistics.data.gov.uk/doc/local-authority/33,Norfolk County Council,23-Feb-11,2930422,1834.68,,Alphacare Management Services Ltd,110574,,Community Services,Long Term Residential Care,52070,,,,Revenue
http://statistics.data.gov.uk/doc/local-authority/33,Norfolk County Council,23-Feb-11,2930471,2059.2,,Alphacare Management Services Ltd,110574,,Community Services,Long Term Residential Care,52070,,,,Revenue
http://statistics.data.gov.uk/doc/local-authority/33,Norfolk County Council,23-Feb-11,2930538,1956,,Alphacare Management Services Ltd,110574,,Community Services,Long Term Residential Care,52070,,,,Revenue
http://statistics.data.gov.uk/doc/local-authority/33,Norfolk County Council,23-Feb-11,2930567,1900,,Alphacare Management Services Ltd,110574,,Community Services,Long Term Residential Care,52070,,,,Revenue
http://statistics.data.gov.uk/doc/local-authority/33,Norfolk County Council,23-Feb-11,2930861,2036,,Alphacare Management Services Ltd,110574,,Community Services,Long Term Residential Care,52070,,,,Revenue
http://statistics.data.gov.uk/doc/local-authority/33,Norfolk County Council,23-Feb-11,2930967,2216,,Alphacare Management Services Ltd,110574,,Community Services,Long Term Residential Care,52070,,,,Revenue
http://statistics.data.gov.uk/doc/local-authority/33,Norfolk County Council,23-Feb-11,2931185,1836,,Alphacare Management Services Ltd,110574,,Community Services,Long Term Residential Care,52070,,,,Revenue
http://statistics.data.gov.uk/doc/local-authority/33,Norfolk County Council,23-Feb-11,2931396,1716,,Alphacare Management Services Ltd,110574,,Community Services,Long Term Residential Care,52070,,,,Revenue
http://statistics.data.gov.uk/doc/local-authority/33,Norfolk County Council,23-Feb-11,2931398,2036,,Alphacare Management Services Ltd,110574,,Community Services,Long Term Residential Care,52070,,,,Revenue
http://statistics.data.gov.uk/doc/local-authority/33,Norfolk County Council,23-Feb-11,2931491,2019.48,,Alphacare Management Services Ltd,110574,,Community Services,Long Term Residential Care,52070,,,,Revenue
http://statistics.data.gov.uk/doc/local-authority/33,Norfolk County Council,23-Feb-11,2932252,1900,,Alphacare Management Services Ltd,110574,,Community Services,Long Term Residential Care,52070,,,,Revenue
http://statistics.data.gov.uk/doc/local-authority/33,Norfolk County Council,23-Feb-11,2932273,1817.24,,Alphacare Management Services Ltd,110574,,Community Services,Long Term Residential Care,52070,,,,Revenue
http://statistics.data.gov.uk/doc/local-authority/33,Norfolk County Council,23-Feb-11,2932388,1716,,Alphacare Management Services Ltd,110574,,Community Services,Long Term Residential Care,52070,,,,Revenue
http://statistics.data.gov.uk/doc/local-authority/33,Norfolk County Council,23-Feb-11,2932887,2036,,Alphacare Management Services Ltd,110574,,Community Services,Long Term Residential Care,52070,,,,Revenue
http://statistics.data.gov.uk/doc/local-authority/33,Norfolk County Council,23-Feb-11,2933283,1916,,Alphacare Management Services Ltd,110574,,Community Services,Long Term Residential Care,52070,,,,Revenue
http://statistics.data.gov.uk/doc/local-authority/33,Norfolk County Council,23-Feb-11,2933424,2048,,Alphacare Management Services Ltd,110574,,Community Services,Long Term Residential Care,52070,,,,Revenue
http://statistics.data.gov.uk/doc/local-authority/33,Norfolk County Council,23-Feb-11,2933627,2000,,Alphacare Management Services Ltd,110574,,Community Services,Long Term Residential Care,52070,,,,Revenue
http://statistics.data.gov.uk/doc/local-authority/33,Norfolk County Council,23-Feb-11,2933971,1956,,Alphacare Management Services Ltd,110574,,Community Services,Long Term Residential Care,52070,,,,Revenue
http://statistics.data.gov.uk/doc/local-authority/33,Norfolk County Council,23-Feb-11,2934002,1855.52,,Alphacare Management Services Ltd,110574,,Community Services,Long Term Residential Care,52070,,,,Revenue
http://statistics.data.gov.uk/doc/local-authority/33,Norfolk County Council,23-Feb-11,2934094,2028,,Alphacare Management Services Ltd,110574,,Community Services,Long Term Residential Care,52070,,,,Revenue
http://statistics.data.gov.uk/doc/local-authority/33,Norfolk County Council,25-Feb-11,2935858,5331.86,,Alphacare Management Services Ltd,110574,,Community Services,Long Term Residential Care,52070,,,,Revenue
http://statistics.data.gov.uk/doc/local-authority/33,Norfolk County Council,04-Feb-11,2888581,807.23,,Alpheus Environmental Ltd,66071,,Environment Transport & Development,Landfill Leachate Costs,22920,,,,Revenue
http://statistics.data.gov.uk/doc/local-authority/33,Norfolk County Council,11-Feb-11,2888584,1826.84,,Alpheus Environmental Ltd,66071,,Environment Transport & Development,Landfill Leachate Costs,22920,,,,Revenue
http://statistics.data.gov.uk/doc/local-authority/33,Norfolk County Council,25-Feb-11,2907303,1051.84,,Alpheus Environmental Ltd,66071,,Environment Transport & Development,Landfill Leachate Costs,22920,,,,Revenue
http://statistics.data.gov.uk/doc/local-authority/33,Norfolk County Council,25-Feb-11,2907305,2239.15,,Alpheus Environmental Ltd,66071,,Environment Transport & Development,Landfill Leachate Costs,22920,,,,Revenue
http://statistics.data.gov.uk/doc/local-authority/33,Norfolk County Council,02-Feb-11,2905557,21889.96,,Althea Healthcare Ltd T/A Thorp House,185843,,Community Services,Long Term Care with Nursing,51550,,,,Revenue
http://statistics.data.gov.uk/doc/local-authority/33,Norfolk County Council,02-Feb-11,2905558,4829.39,,Althea Healthcare Ltd T/A Thorp House,185843,,Community Services,Free Nursing Care,55560,,,,Revenue
http://statistics.data.gov.uk/doc/local-authority/33,Norfolk County Council,02-Feb-11,2905559,-4829.39,,Althea Healthcare Ltd T/A Thorp House,185843,,Community Services,Long Term Care with Nursing,51550,,,,Revenue
http://statistics.data.gov.uk/doc/local-authority/33,Norfolk County Council,02-Feb-11,2905678,-18942.86,,Althea Healthcare Ltd T/A Thorp House,185843,,Community Services,Long Term Residential Care,52070,,,,Revenue
http://statistics.data.gov.uk/doc/local-authority/33,Norfolk County Council,16-Feb-11,2919856,-1913.4,,Althea Healthcare Ltd T/A Thorp House,185843,,Community Services,Free Nursing Care,55560,,,,Revenue
http://statistics.data.gov.uk/doc/local-authority/33,Norfolk County Council,16-Feb-11,2919883,2928,,Althea Healthcare Ltd T/A Thorp House,185843,,Community Services,Long Term Residential Care,52070,,,,Revenue
http://statistics.data.gov.uk/doc/local-authority/33,Norfolk County Council,21-Feb-11,2924283,4645.46,,Althea Healthcare Ltd T/A Thorp House,185843,,Community Services,Long Term Care with Nursing,51550,,,,Revenue
http://statistics.data.gov.uk/doc/local-authority/33,Norfolk County Council,21-Feb-11,2924284,1024.89,,Althea Healthcare Ltd T/A Thorp House,185843,,Community Services,Free Nursing Care,55560,,,,Revenue
http://statistics.data.gov.uk/doc/local-authority/33,Norfolk County Council,21-Feb-11,2924285,-1024.89,,Althea Healthcare Ltd T/A Thorp House,185843,,Community Services,Long Term Care with Nursing,51550,,,,Revenue
http://statistics.data.gov.uk/doc/local-authority/33,Norfolk County Council,23-Feb-11,2930004,1464,,Althea Healthcare Ltd T/A Thorp House,185843,,Community Services,Long Term Residential Care,52070,,,,Revenue
http://statistics.data.gov.uk/doc/local-authority/33,Norfolk County Council,23-Feb-11,2930132,1536,,Althea Healthcare Ltd T/A Thorp House,185843,,Community Services,Long Term Care with Nursing,51550,,,,Revenue
http://statistics.data.gov.uk/doc/local-authority/33,Norfolk County Council,23-Feb-11,2930132,434.8,,Althea Healthcare Ltd T/A Thorp House,185843,,Community Services,Free Nursing Care,55560,,,,Revenue
http://statistics.data.gov.uk/doc/local-authority/33,Norfolk County Council,23-Feb-11,2930548,1772,,Althea Healthcare Ltd T/A Thorp House,185843,,Community Services,Long Term Care with Nursing,51550,,,,Revenue
http://statistics.data.gov.uk/doc/local-authority/33,Norfolk County Council,23-Feb-11,2930548,434.8,,Althea Healthcare Ltd T/A Thorp House,185843,,Community Services,Free Nursing Care,55560,,,,Revenue
http://statistics.data.gov.uk/doc/local-authority/33,Norfolk County Council,23-Feb-11,2930583,1700,,Althea Healthcare Ltd T/A Thorp House,185843,,Community Services,Long Term Residential Care,52070,,,,Revenue
http://statistics.data.gov.uk/doc/local-authority/33,Norfolk County Council,23-Feb-11,2930953,1536,,Althea Healthcare Ltd T/A Thorp House,185843,,Community Services,Long Term Care with Nursing,51550,,,,Revenue
http://statistics.data.gov.uk/doc/local-authority/33,Norfolk County Council,23-Feb-11,2930953,434.8,,Althea Healthcare Ltd T/A Thorp House,185843,,Community Services,Free Nursing Care,55560,,,,Revenue
http://statistics.data.gov.uk/doc/local-authority/33,Norfolk County Council,23-Feb-11,2931021,1536,,Althea Healthcare Ltd T/A Thorp House,185843,,Community Services,Long Term Care with Nursing,51550,,,,Revenue
http://statistics.data.gov.uk/doc/local-authority/33,Norfolk County Council,23-Feb-11,2931021,434.8,,Althea Healthcare Ltd T/A Thorp House,185843,,Community Services,Free Nursing Care,55560,,,,Revenue
http://statistics.data.gov.uk/doc/local-authority/33,Norfolk County Council,23-Feb-11,2931094,1404,,Althea Healthcare Ltd T/A Thorp House,185843,,Community Services,Long Term Residential Care,52070,,,,Revenue
http://statistics.data.gov.uk/doc/local-authority/33,Norfolk County Council,23-Feb-11,2931233,1536,,Althea Healthcare Ltd T/A Thorp House,185843,,Community Services,Long Term Care with Nursing,51550,,,,Revenue
http://statistics.data.gov.uk/doc/local-authority/33,Norfolk County Council,23-Feb-11,2931233,434.8,,Althea Healthcare Ltd T/A Thorp House,185843,,Community Services,Free Nursing Care,55560,,,,Revenue
http://statistics.data.gov.uk/doc/local-authority/33,Norfolk County Council,23-Feb-11,2931634,1772,,Althea Healthcare Ltd T/A Thorp House,185843,,Community Services,Long Term Care with Nursing,51550,,,,Revenue
http://statistics.data.gov.uk/doc/local-authority/33,Norfolk County Council,23-Feb-11,2931634,434.8,,Althea Healthcare Ltd T/A Thorp House,185843,,Community Services,Free Nursing Care,55560,,,,Revenue
http://statistics.data.gov.uk/doc/local-authority/33,Norfolk County Council,23-Feb-11,2932086,1712,,Althea Healthcare Ltd T/A Thorp House,185843,,Community Services,Long Term Care with Nursing,51550,,,,Revenue
http://statistics.data.gov.uk/doc/local-authority/33,Norfolk County Council,23-Feb-11,2932086,434.8,,Althea Healthcare Ltd T/A Thorp House,185843,,Community Services,Free Nursing Care,55560,,,,Revenue
http://statistics.data.gov.uk/doc/local-authority/33,Norfolk County Council,23-Feb-11,2932143,1772,,Althea Healthcare Ltd T/A Thorp House,185843,,Community Services,Long Term Care with Nursing,51550,,,,Revenue
http://statistics.data.gov.uk/doc/local-authority/33,Norfolk County Council,23-Feb-11,2932143,434.8,,Althea Healthcare Ltd T/A Thorp House,185843,,Community Services,Free Nursing Care,55560,,,,Revenue
http://statistics.data.gov.uk/doc/local-authority/33,Norfolk County Council,23-Feb-11,2932290,1772,,Althea Healthcare Ltd T/A Thorp House,185843,,Community Services,Long Term Care with Nursing,51550,,,,Revenue
http://statistics.data.gov.uk/doc/local-authority/33,Norfolk County Council,23-Feb-11,2932290,434.8,,Althea Healthcare Ltd T/A Thorp House,185843,,Community Services,Free Nursing Care,55560,,,,Revenue
http://statistics.data.gov.uk/doc/local-authority/33,Norfolk County Council,23-Feb-11,2932481,1536,,Althea Healthcare Ltd T/A Thorp House,185843,,Community Services,Long Term Care with Nursing,51550,,,,Revenue
http://statistics.data.gov.uk/doc/local-authority/33,Norfolk County Council,23-Feb-11,2932481,434.8,,Althea Healthcare Ltd T/A Thorp House,185843,,Community Services,Free Nursing Care,55560,,,,Revenue
http://statistics.data.gov.uk/doc/local-authority/33,Norfolk County Council,23-Feb-11,2932876,1536,,Althea Healthcare Ltd T/A Thorp House,185843,,Community Services,Long Term Care with Nursing,51550,,,,Revenue
http://statistics.data.gov.uk/doc/local-authority/33,Norfolk County Council,23-Feb-11,2932876,434.8,,Althea Healthcare Ltd T/A Thorp House,185843,,Community Services,Free Nursing Care,55560,,,,Revenue
http://statistics.data.gov.uk/doc/local-authority/33,Norfolk County Council,23-Feb-11,2933079,1772,,Althea Healthcare Ltd T/A Thorp House,185843,,Community Services,Long Term Care with Nursing,51550,,,,Revenue
http://statistics.data.gov.uk/doc/local-authority/33,Norfolk County Council,23-Feb-11,2933079,434.8,,Althea Healthcare Ltd T/A Thorp House,185843,,Community Services,Free Nursing Care,55560,,,,Revenue
http://statistics.data.gov.uk/doc/local-authority/33,Norfolk County Council,23-Feb-11,2933216,1464,,Althea Healthcare Ltd T/A Thorp House,185843,,Community Services,Supported Living,52140,,,,Revenue
http://statistics.data.gov.uk/doc/local-authority/33,Norfolk County Council,23-Feb-11,2933776,1700,,Althea Healthcare Ltd T/A Thorp House,185843,,Community Services,Long Term Residential Care,52070,,,,Revenue
http://statistics.data.gov.uk/doc/local-authority/33,Norfolk County Council,23-Feb-11,2930812,1700,,Alton Manor Ltd,416120,,Community Services,Long Term Residential Care,52070,,,,Revenue
http://statistics.data.gov.uk/doc/local-authority/33,Norfolk County Council,04-Feb-11,2908035,3480.8,,Ambassador Travel (Anglia) Limited,66082,,Environment Transport & Development,Contract Transport  Hire,34900,,,,Revenue
http://statistics.data.gov.uk/doc/local-authority/33,Norfolk County Council,04-Feb-11,2908036,3480.8,,Ambassador Travel (Anglia) Limited,66082,,Environment Transport & Development,Contract Transport  Hire,34900,,,,Revenue
http://statistics.data.gov.uk/doc/local-authority/33,Norfolk County Council,04-Feb-11,2908037,2641,,Ambassador Travel (Anglia) Limited,66082,,Environment Transport & Development,Contract Transport  Hire,34900,,,,Revenue
http://statistics.data.gov.uk/doc/local-authority/33,Norfolk County Council,18-Feb-11,2922539,3664.2,,Ambassador Travel (Anglia) Limited,66082,,Environment Transport & Development,Contract Transport  Hire,34900,,,,Revenue
http://statistics.data.gov.uk/doc/local-authority/33,Norfolk County Council,18-Feb-11,2922539,1741.32,,Ambassador Travel (Anglia) Limited,66082,,Environment Transport & Development,Private Contractor Subsidy Payments,52500,,,,Revenue
http://statistics.data.gov.uk/doc/local-authority/33,Norfolk County Council,18-Feb-11,2922540,3640,,Ambassador Travel (Anglia) Limited,66082,,Environment Transport & Development,Contract Transport  Hire,34900,,,,Revenue
http://statistics.data.gov.uk/doc/local-authority/33,Norfolk County Council,18-Feb-11,2922540,1643.6,,Ambassador Travel (Anglia) Limited,66082,,Environment Transport & Development,Private Contractor Subsidy Payments,52500,,,,Revenue
http://statistics.data.gov.uk/doc/local-authority/33,Norfolk County Council,18-Feb-11,2922541,5049,,Ambassador Travel (Anglia) Limited,66082,,Environment Transport & Development,Contract Transport  Hire,34900,,,,Revenue
http://statistics.data.gov.uk/doc/local-authority/33,Norfolk County Council,18-Feb-11,2922541,102,,Ambassador Travel (Anglia) Limited,66082,,Environment Transport & Development,Private Contractor Subsidy Payments,52500,,,,Revenue
http://statistics.data.gov.uk/doc/local-authority/33,Norfolk County Council,18-Feb-11,2922542,3986.4,,Ambassador Travel (Anglia) Limited,66082,,Environment Transport & Development,Private Contractor Subsidy Payments,52500,,,,Revenue
http://statistics.data.gov.uk/doc/local-authority/33,Norfolk County Council,18-Feb-11,2922543,2779.7,,Ambassador Travel (Anglia) Limited,66082,,Environment Transport & Development,Contract Transport  Hire,34900,,,,Revenue
http://statistics.data.gov.uk/doc/local-authority/33,Norfolk County Council,18-Feb-11,2922543,716.3,,Ambassador Travel (Anglia) Limited,66082,,Environment Transport & Development,Private Contractor Subsidy Payments,52500,,,,Revenue
http://statistics.data.gov.uk/doc/local-authority/33,Norfolk County Council,18-Feb-11,2922544,3591,,Ambassador Travel (Anglia) Limited,66082,,Environment Transport & Development,Contract Transport  Hire,34900,,,,Revenue
http://statistics.data.gov.uk/doc/local-authority/33,Norfolk County Council,18-Feb-11,2922545,3496,,Ambassador Travel (Anglia) Limited,66082,,Environment Transport & Development,Contract Transport  Hire,34900,,,,Revenue
http://statistics.data.gov.uk/doc/local-authority/33,Norfolk County Council,18-Feb-11,2922546,1766.3,,Ambassador Travel (Anglia) Limited,66082,,Environment Transport & Development,Private Contractor Subsidy Payments,52500,,,,Revenue
http://statistics.data.gov.uk/doc/local-authority/33,Norfolk County Council,16-Feb-11,2920675,4668.16,,Amber Care (East Anglia) Ltd,79453,,Community Services,Day Care / Supported Activities,52160,,,,Revenue
http://statistics.data.gov.uk/doc/local-authority/33,Norfolk County Council,16-Feb-11,2920681,968.2,,Amber Care (East Anglia) Ltd,79453,,Community Services,Day Care / Supported Activities,52160,,,,Revenue
http://statistics.data.gov.uk/doc/local-authority/33,Norfolk County Council,16-Feb-11,2920684,2334.08,,Amber Care (East Anglia) Ltd,79453,,Community Services,Day Care / Supported Activities,52160,,,,Revenue
http://statistics.data.gov.uk/doc/local-authority/33,Norfolk County Council,23-Feb-11,2931164,6636,,Amber Care (East Anglia) Ltd,79453,,Community Services,Long Term Residential Care,52070,,,,Revenue
http://statistics.data.gov.uk/doc/local-authority/33,Norfolk County Council,23-Feb-11,2931735,9856,,Amber Care (East Anglia) Ltd,79453,,Community Services,Long Term Residential Care,52070,,,,Revenue
http://statistics.data.gov.uk/doc/local-authority/33,Norfolk County Council,23-Feb-11,2932174,10472,,Amber Care (East Anglia) Ltd,79453,,Community Services,Long Term Residential Care,52070,,,,Revenue
http://statistics.data.gov.uk/doc/local-authority/33,Norfolk County Council,23-Feb-11,2932369,1508,,Amber Care (East Anglia) Ltd,79453,,Community Services,Long Term Residential Care,52070,,,,Revenue
http://statistics.data.gov.uk/doc/local-authority/33,Norfolk County Council,21-Feb-11,2925051,2113.16,,Amber Care East Anglia Ltd,79453,,Community Services,Day Care / Supported Activities,52160,,,,Revenue
http://statistics.data.gov.uk/doc/local-authority/33,Norfolk County Council,21-Feb-11,2925062,-557.05,,Amber Care East Anglia Ltd,79453,,Community Services,Day Care / Supported Activities,52160,,,,Revenue
http://statistics.data.gov.uk/doc/local-authority/33,Norfolk County Council,11-Feb-11,2916072,42.91,,Amey LG Ltd,166086,,Environment Transport & Development,Vandalism Under 500,23340,,,,Revenue
http://statistics.data.gov.uk/doc/local-authority/33,Norfolk County Council,11-Feb-11,2916072,1365.11,,Amey LG Ltd,166086,,Environment Transport & Development,Highway Rechargeable Works Payments,54700,,,,Revenue
http://statistics.data.gov.uk/doc/local-authority/33,Norfolk County Council,11-Feb-11,2916287,954.8,,Amey LG Ltd,166086,,Environment Transport & Development,Highway Rechargeable Works Payments,54700,,,,Revenue
http://statistics.data.gov.uk/doc/local-authority/33,Norfolk County Council,23-Feb-11,2929831,387202.01,,Amey Lighting (Norfolk) Limited,145796,,Environment Transport & Development,Private Finance Initiative Payments,49800,,,,Revenue
http://statistics.data.gov.uk/doc/local-authority/33,Norfolk County Council,23-Feb-11,2929831,22237.69,,Amey Lighting (Norfolk) Limited,145796,,Environment Transport & Development,Highway Street Lighting Energy,59680,,,,Revenue
http://statistics.data.gov.uk/doc/local-authority/33,Norfolk County Council,23-Feb-11,2929831,3865.43,,Amey Lighting (Norfolk) Limited,145796,,Environment Transport & Development,Highway Street Lighting Non-Routine Maintenance,59690,,,,Revenue
http://statistics.data.gov.uk/doc/local-authority/33,Norfolk County Council,23-Feb-11,2929831,350,,Amey Lighting (Norfolk) Limited,145796,,Environment Transport & Development,Construction Costs - Roads - Amey,C2540,,,,Capital
http://statistics.data.gov.uk/doc/local-authority/33,Norfolk County Council,23-Feb-11,2929831,18237.81,,Amey Lighting (Norfolk) Limited,145796,,Environment Transport & Development,Construction Costs - Roads - Amey,C2540,,,,Capital
http://statistics.data.gov.uk/doc/local-authority/33,Norfolk County Council,23-Feb-11,2929831,92.8,,Amey Lighting (Norfolk) Limited,145796,,Environment Transport & Development,Construction Costs - Roads - Amey,C2540,,,,Capital
http://statistics.data.gov.uk/doc/local-authority/33,Norfolk County Council,23-Feb-11,2929831,18940.15,,Amey Lighting (Norfolk) Limited,145796,,Environment Transport & Development,Construction Costs - Roads - Amey,C2540,,,,Capital
http://statistics.data.gov.uk/doc/local-authority/33,Norfolk County Council,11-Feb-11,2901389,800,,Amitola Ltd,147137,,Environment Transport & Development,Road Maintenance Contractor Payments,45070,,,,Revenue
http://statistics.data.gov.uk/doc/local-authority/33,Norfolk County Council,18-Feb-11,2898218,450,,Amitola Ltd,147137,,Environment Transport & Development,Maintenance Of Site,22620,,,,Revenue
http://statistics.data.gov.uk/doc/local-authority/33,Norfolk County Council,18-Feb-11,2898234,650,,Amitola Ltd,147137,,Environment Transport & Development,Maintenance Of Site,22620,,,,Revenue
http://statistics.data.gov.uk/doc/local-authority/33,Norfolk County Council,18-Feb-11,2901653,1400,,Amitola Ltd,147137,,Environment Transport & Development,Road Maintenance Contractor Payments,45070,,,,Revenue
http://statistics.data.gov.uk/doc/local-authority/33,Norfolk County Council,18-Feb-11,2901654,1000,,Amitola Ltd,147137,,Environment Transport & Development,Road Maintenance Contractor Payments,45070,,,,Revenue
http://statistics.data.gov.uk/doc/local-authority/33,Norfolk County Council,18-Feb-11,2901655,2350,,Amitola Ltd,147137,,Environment Transport & Development,Road Maintenance Contractor Payments,45070,,,,Revenue
http://statistics.data.gov.uk/doc/local-authority/33,Norfolk County Council,23-Feb-11,2931230,2305.2,,AMS Care Ltd,156905,,Community Services,Long Term Care with Nursing,51550,,,,Revenue
http://statistics.data.gov.uk/doc/local-authority/33,Norfolk County Council,23-Feb-11,2932566,2356,,Anchor Trust,76613,,Community Services,Long Term Residential Care,52070,,,,Revenue
http://statistics.data.gov.uk/doc/local-authority/33,Norfolk County Council,04-Feb-11,2908498,5500,,Andrew Andrews Ltd,173396,,Children's Services,Staff Subsistence & Conference Expenses,46700,,,,Revenue
http://statistics.data.gov.uk/doc/local-authority/33,Norfolk County Council,16-Feb-11,2907813,-2657.14,,ANDREW FREDERICK CARE HOMES LTD,79457,,Community Services,Long Term Care with Nursing,51550,,,,Revenue
http://statistics.data.gov.uk/doc/local-authority/33,Norfolk County Council,16-Feb-11,2919853,12350,,ANDREW FREDERICK CARE HOMES LTD,79457,,Community Services,Short Term Residential Care,50210,,,,Revenue
http://statistics.data.gov.uk/doc/local-authority/33,Norfolk County Council,23-Feb-11,2928615,5208.54,,ANDREW FREDERICK CARE HOMES LTD,79460,,Community Services,Long Term Care with Nursing,51550,,,,Revenue
http://statistics.data.gov.uk/doc/local-authority/33,Norfolk County Council,23-Feb-11,2928616,1149.11,,ANDREW FREDERICK CARE HOMES LTD,79460,,Community Services,Free Nursing Care,55560,,,,Revenue
http://statistics.data.gov.uk/doc/local-authority/33,Norfolk County Council,23-Feb-11,2928617,-1149.11,,ANDREW FREDERICK CARE HOMES LTD,79460,,Community Services,Long Term Care with Nursing,51550,,,,Revenue
http://statistics.data.gov.uk/doc/local-authority/33,Norfolk County Council,23-Feb-11,2929855,1906.04,,ANDREW FREDERICK CARE HOMES LTD,79458,,Community Services,Long Term Residential Care,52070,,,,Revenue
http://statistics.data.gov.uk/doc/local-authority/33,Norfolk County Council,23-Feb-11,2930292,1700,,ANDREW FREDERICK CARE HOMES LTD,79457,,Community Services,Long Term Care with Nursing,51550,,,,Revenue
http://statistics.data.gov.uk/doc/local-authority/33,Norfolk County Council,23-Feb-11,2930292,434.8,,ANDREW FREDERICK CARE HOMES LTD,79457,,Community Services,Free Nursing Care,55560,,,,Revenue
http://statistics.data.gov.uk/doc/local-authority/33,Norfolk County Council,23-Feb-11,2930311,3048,,ANDREW FREDERICK CARE HOMES LTD,79458,,Community Services,Long Term Residential Care,52070,,,,Revenue
http://statistics.data.gov.uk/doc/local-authority/33,Norfolk County Council,23-Feb-11,2930478,1536,,ANDREW FREDERICK CARE HOMES LTD,79460,,Community Services,Long Term Care with Nursing,51550,,,,Revenue
http://statistics.data.gov.uk/doc/local-authority/33,Norfolk County Council,23-Feb-11,2930478,434.8,,ANDREW FREDERICK CARE HOMES LTD,79460,,Community Services,Free Nursing Care,55560,,,,Revenue
http://statistics.data.gov.uk/doc/local-authority/33,Norfolk County Council,23-Feb-11,2930573,1656,,ANDREW FREDERICK CARE HOMES LTD,79458,,Community Services,Long Term Residential Care,52070,,,,Revenue
http://statistics.data.gov.uk/doc/local-authority/33,Norfolk County Council,23-Feb-11,2930658,1984,,ANDREW FREDERICK CARE HOMES LTD,79457,,Community Services,Long Term Care with Nursing,51550,,,,Revenue
http://statistics.data.gov.uk/doc/local-authority/33,Norfolk County Council,23-Feb-11,2930658,434.8,,ANDREW FREDERICK CARE HOMES LTD,79457,,Community Services,Free Nursing Care,55560,,,,Revenue
http://statistics.data.gov.uk/doc/local-authority/33,Norfolk County Council,23-Feb-11,2930853,5132,,ANDREW FREDERICK CARE HOMES LTD,79457,,Community Services,Long Term Residential Care,52070,,,,Revenue
http://statistics.data.gov.uk/doc/local-authority/33,Norfolk County Council,23-Feb-11,2931037,1970.8,,ANDREW FREDERICK CARE HOMES LTD,79460,,Community Services,Short Term Care with Nursing,50200,,,,Revenue
http://statistics.data.gov.uk/doc/local-authority/33,Norfolk County Council,23-Feb-11,2931042,1916,,ANDREW FREDERICK CARE HOMES LTD,79458,,Community Services,Long Term Residential Care,52070,,,,Revenue
http://statistics.data.gov.uk/doc/local-authority/33,Norfolk County Council,23-Feb-11,2931054,2760,,ANDREW FREDERICK CARE HOMES LTD,79458,,Community Services,Long Term Residential Care,52070,,,,Revenue
http://statistics.data.gov.uk/doc/local-authority/33,Norfolk County Council,23-Feb-11,2931199,2800,,ANDREW FREDERICK CARE HOMES LTD,79458,,Community Services,Long Term Residential Care,52070,,,,Revenue
http://statistics.data.gov.uk/doc/local-authority/33,Norfolk County Council,23-Feb-11,2931236,1672,,ANDREW FREDERICK CARE HOMES LTD,79460,,Community Services,Long Term Care with Nursing,51550,,,,Revenue
http://statistics.data.gov.uk/doc/local-authority/33,Norfolk County Council,23-Feb-11,2931236,434.8,,ANDREW FREDERICK CARE HOMES LTD,79460,,Community Services,Free Nursing Care,55560,,,,Revenue
http://statistics.data.gov.uk/doc/local-authority/33,Norfolk County Council,23-Feb-11,2931298,2648,,ANDREW FREDERICK CARE HOMES LTD,79458,,Community Services,Long Term Residential Care,52070,,,,Revenue
http://statistics.data.gov.uk/doc/local-authority/33,Norfolk County Council,23-Feb-11,2931872,5836,,ANDREW FREDERICK CARE HOMES LTD,79457,,Community Services,Long Term Care with Nursing,51550,,,,Revenue
http://statistics.data.gov.uk/doc/local-authority/33,Norfolk County Council,23-Feb-11,2931910,4940,,ANDREW FREDERICK CARE HOMES LTD,79457,,Community Services,Long Term Care with Nursing,51550,,,,Revenue
http://statistics.data.gov.uk/doc/local-authority/33,Norfolk County Council,23-Feb-11,2931931,10087.12,,ANDREW FREDERICK CARE HOMES LTD,79457,,Community Services,Long Term Residential Care,52070,,,,Revenue
http://statistics.data.gov.uk/doc/local-authority/33,Norfolk County Council,23-Feb-11,2931940,1476,,ANDREW FREDERICK CARE HOMES LTD,79457,,Community Services,Purchase Nursing Preserved Rights,50180,,,,Revenue
http://statistics.data.gov.uk/doc/local-authority/33,Norfolk County Council,23-Feb-11,2931940,434.8,,ANDREW FREDERICK CARE HOMES LTD,79457,,Community Services,Free Nursing Care,55560,,,,Revenue
http://statistics.data.gov.uk/doc/local-authority/33,Norfolk County Council,23-Feb-11,2931970,6848,,Andrew Frederick Care Homes Ltd,92587,,Community Services,Long Term Residential Care,52070,,,,Revenue
http://statistics.data.gov.uk/doc/local-authority/33,Norfolk County Council,23-Feb-11,2932037,1396,,ANDREW FREDERICK CARE HOMES LTD,79457,,Community Services,Long Term Care with Nursing,51550,,,,Revenue
http://statistics.data.gov.uk/doc/local-authority/33,Norfolk County Council,23-Feb-11,2932037,434.8,,ANDREW FREDERICK CARE HOMES LTD,79457,,Community Services,Free Nursing Care,55560,,,,Revenue
http://statistics.data.gov.uk/doc/local-authority/33,Norfolk County Council,23-Feb-11,2932042,1728,,ANDREW FREDERICK CARE HOMES LTD,79460,,Community Services,Long Term Care with Nursing,51550,,,,Revenue
http://statistics.data.gov.uk/doc/local-authority/33,Norfolk County Council,23-Feb-11,2932042,434.8,,ANDREW FREDERICK CARE HOMES LTD,79460,,Community Services,Free Nursing Care,55560,,,,Revenue
http://statistics.data.gov.uk/doc/local-authority/33,Norfolk County Council,23-Feb-11,2932136,7021.04,,Andrew Frederick Care Homes Ltd,150148,,Community Services,Long Term Residential Care,52070,,,,Revenue
http://statistics.data.gov.uk/doc/local-authority/33,Norfolk County Council,23-Feb-11,2932141,4400,,ANDREW FREDERICK CARE HOMES LTD,79457,,Community Services,Long Term Care with Nursing,51550,,,,Revenue
http://statistics.data.gov.uk/doc/local-authority/33,Norfolk County Council,23-Feb-11,2932370,1356,,ANDREW FREDERICK CARE HOMES LTD,79457,,Community Services,Purchase Nursing Preserved Rights,50180,,,,Revenue
http://statistics.data.gov.uk/doc/local-authority/33,Norfolk County Council,23-Feb-11,2932370,434.8,,ANDREW FREDERICK CARE HOMES LTD,79457,,Community Services,Free Nursing Care,55560,,,,Revenue
http://statistics.data.gov.uk/doc/local-authority/33,Norfolk County Council,23-Feb-11,2932486,3400,,ANDREW FREDERICK CARE HOMES LTD,79458,,Community Services,Long Term Residential Care,52070,,,,Revenue
http://statistics.data.gov.uk/doc/local-authority/33,Norfolk County Council,23-Feb-11,2932487,1536,,ANDREW FREDERICK CARE HOMES LTD,79460,,Community Services,Long Term Care with Nursing,51550,,,,Revenue
http://statistics.data.gov.uk/doc/local-authority/33,Norfolk County Council,23-Feb-11,2932487,434.8,,ANDREW FREDERICK CARE HOMES LTD,79460,,Community Services,Free Nursing Care,55560,,,,Revenue
http://statistics.data.gov.uk/doc/local-authority/33,Norfolk County Council,23-Feb-11,2932685,3600,,Andrew Frederick Care Homes Ltd,150148,,Community Services,Long Term Residential Care,52070,,,,Revenue
http://statistics.data.gov.uk/doc/local-authority/33,Norfolk County Council,23-Feb-11,2932726,1476,,ANDREW FREDERICK CARE HOMES LTD,79457,,Community Services,Purchase Nursing Preserved Rights,50180,,,,Revenue
http://statistics.data.gov.uk/doc/local-authority/33,Norfolk County Council,23-Feb-11,2932726,434.8,,ANDREW FREDERICK CARE HOMES LTD,79457,,Community Services,Free Nursing Care,55560,,,,Revenue
http://statistics.data.gov.uk/doc/local-authority/33,Norfolk County Council,23-Feb-11,2932834,1536,,ANDREW FREDERICK CARE HOMES LTD,79460,,Community Services,Long Term Care with Nursing,51550,,,,Revenue
http://statistics.data.gov.uk/doc/local-authority/33,Norfolk County Council,23-Feb-11,2932834,434.8,,ANDREW FREDERICK CARE HOMES LTD,79460,,Community Services,Free Nursing Care,55560,,,,Revenue
http://statistics.data.gov.uk/doc/local-authority/33,Norfolk County Council,23-Feb-11,2932886,3626,,Andrew Frederick Care Homes Ltd,92587,,Community Services,Long Term Residential Care,52070,,,,Revenue
http://statistics.data.gov.uk/doc/local-authority/33,Norfolk County Council,23-Feb-11,2932906,1716,,ANDREW FREDERICK CARE HOMES LTD,79458,,Community Services,Long Term Residential Care,52070,,,,Revenue
http://statistics.data.gov.uk/doc/local-authority/33,Norfolk County Council,23-Feb-11,2932924,1660,,ANDREW FREDERICK CARE HOMES LTD,79460,,Community Services,Long Term Care with Nursing,51550,,,,Revenue
http://statistics.data.gov.uk/doc/local-authority/33,Norfolk County Council,23-Feb-11,2932924,434.8,,ANDREW FREDERICK CARE HOMES LTD,79460,,Community Services,Free Nursing Care,55560,,,,Revenue
http://statistics.data.gov.uk/doc/local-authority/33,Norfolk County Council,23-Feb-11,2932935,2268,,ANDREW FREDERICK CARE HOMES LTD,79457,,Community Services,Long Term Care with Nursing,51550,,,,Revenue
http://statistics.data.gov.uk/doc/local-authority/33,Norfolk County Council,23-Feb-11,2932935,434.8,,ANDREW FREDERICK CARE HOMES LTD,79457,,Community Services,Free Nursing Care,55560,,,,Revenue
http://statistics.data.gov.uk/doc/local-authority/33,Norfolk County Council,23-Feb-11,2932970,1500,,Andrew Frederick Care Homes Ltd,92587,,Community Services,Long Term Residential Care,52070,,,,Revenue
http://statistics.data.gov.uk/doc/local-authority/33,Norfolk County Council,23-Feb-11,2933025,5600,,ANDREW FREDERICK CARE HOMES LTD,79457,,Community Services,Supported Living,52140,,,,Revenue
http://statistics.data.gov.uk/doc/local-authority/33,Norfolk County Council,23-Feb-11,2933329,2800,,ANDREW FREDERICK CARE HOMES LTD,79458,,Community Services,Long Term Residential Care,52070,,,,Revenue
http://statistics.data.gov.uk/doc/local-authority/33,Norfolk County Council,23-Feb-11,2933411,3200,,ANDREW FREDERICK CARE HOMES LTD,79458,,Community Services,Long Term Residential Care,52070,,,,Revenue
http://statistics.data.gov.uk/doc/local-authority/33,Norfolk County Council,23-Feb-11,2933466,2400,,ANDREW FREDERICK CARE HOMES LTD,79458,,Community Services,Long Term Residential Care,52070,,,,Revenue
http://statistics.data.gov.uk/doc/local-authority/33,Norfolk County Council,23-Feb-11,2933592,1656,,ANDREW FREDERICK CARE HOMES LTD,79458,,Community Services,Long Term Residential Care,52070,,,,Revenue
http://statistics.data.gov.uk/doc/local-authority/33,Norfolk County Council,23-Feb-11,2933596,1876,,ANDREW FREDERICK CARE HOMES LTD,79457,,Community Services,Long Term Care with Nursing,51550,,,,Revenue
http://statistics.data.gov.uk/doc/local-authority/33,Norfolk County Council,23-Feb-11,2933596,434.8,,ANDREW FREDERICK CARE HOMES LTD,79457,,Community Services,Free Nursing Care,55560,,,,Revenue
http://statistics.data.gov.uk/doc/local-authority/33,Norfolk County Council,23-Feb-11,2933644,4960,,ANDREW FREDERICK CARE HOMES LTD,79457,,Community Services,Long Term Residential Care,52070,,,,Revenue
http://statistics.data.gov.uk/doc/local-authority/33,Norfolk County Council,23-Feb-11,2933722,5787.16,,ANDREW FREDERICK CARE HOMES LTD,79457,,Community Services,Long Term Care with Nursing,51550,,,,Revenue
http://statistics.data.gov.uk/doc/local-authority/33,Norfolk County Council,23-Feb-11,2933783,6532,,Andrew Frederick Care Homes Ltd,92587,,Community Services,Long Term Residential Care,52070,,,,Revenue
http://statistics.data.gov.uk/doc/local-authority/33,Norfolk County Council,23-Feb-11,2933834,4868,,Andrew Frederick Care Homes Ltd,92587,,Community Services,Long Term Residential Care,52070,,,,Revenue
http://statistics.data.gov.uk/doc/local-authority/33,Norfolk County Council,23-Feb-11,2933873,5012,,ANDREW FREDERICK CARE HOMES LTD,79457,,Community Services,Long Term Residential Care,52070,,,,Revenue
http://statistics.data.gov.uk/doc/local-authority/33,Norfolk County Council,23-Feb-11,2933924,2163,,Andrew Frederick Care Homes Ltd,92587,,Community Services,Long Term Residential Care,52070,,,,Revenue
http://statistics.data.gov.uk/doc/local-authority/33,Norfolk County Council,23-Feb-11,2934070,8227.48,,ANDREW FREDERICK CARE HOMES LTD,79457,,Community Services,Long Term Residential Care,52070,,,,Revenue
http://statistics.data.gov.uk/doc/local-authority/33,Norfolk County Council,23-Feb-11,2929312,850.12,,ANDREW FREDERICK HOMES LTD,79462,,Community Services,Supported Living,52140,,,,Revenue
http://statistics.data.gov.uk/doc/local-authority/33,Norfolk County Council,23-Feb-11,2929333,1174.84,,ANDREW FREDERICK HOMES LTD,79462,,Community Services,Supported Living,52140,,,,Revenue
http://statistics.data.gov.uk/doc/local-authority/33,Norfolk County Council,23-Feb-11,2929345,656,,ANDREW FREDERICK HOMES LTD,79462,,Community Services,Supported Living,52140,,,,Revenue
http://statistics.data.gov.uk/doc/local-authority/33,Norfolk County Council,23-Feb-11,2929407,1232,,ANDREW FREDERICK HOMES LTD,79462,,Community Services,Supported Living,52140,,,,Revenue
http://statistics.data.gov.uk/doc/local-authority/33,Norfolk County Council,23-Feb-11,2929511,976,,ANDREW FREDERICK HOMES LTD,79462,,Community Services,Supported Living,52140,,,,Revenue
http://statistics.data.gov.uk/doc/local-authority/33,Norfolk County Council,23-Feb-11,2929540,1042.12,,ANDREW FREDERICK HOMES LTD,79462,,Community Services,Supported Living,52140,,,,Revenue
http://statistics.data.gov.uk/doc/local-authority/33,Norfolk County Council,23-Feb-11,2929707,594.12,,ANDREW FREDERICK HOMES LTD,79462,,Community Services,Supported Living,52140,,,,Revenue
http://statistics.data.gov.uk/doc/local-authority/33,Norfolk County Council,23-Feb-11,2929712,1298.12,,ANDREW FREDERICK HOMES LTD,79462,,Community Services,Supported Living,52140,,,,Revenue
http://statistics.data.gov.uk/doc/local-authority/33,Norfolk County Council,23-Feb-11,2929759,1168,,ANDREW FREDERICK HOMES LTD,79462,,Community Services,Supported Living,52140,,,,Revenue
http://statistics.data.gov.uk/doc/local-authority/33,Norfolk County Council,23-Feb-11,2930326,1332,,ANDREW FREDERICK HOMES LTD,79462,,Community Services,Long Term Residential Care,52070,,,,Revenue
http://statistics.data.gov.uk/doc/local-authority/33,Norfolk County Council,23-Feb-11,2930365,3648,,ANDREW FREDERICK HOMES LTD,79462,,Community Services,Long Term Residential Care,52070,,,,Revenue
http://statistics.data.gov.uk/doc/local-authority/33,Norfolk County Council,23-Feb-11,2930519,4020,,ANDREW FREDERICK HOMES LTD,79462,,Community Services,Long Term Residential Care,52070,,,,Revenue
http://statistics.data.gov.uk/doc/local-authority/33,Norfolk County Council,23-Feb-11,2930623,1332,,ANDREW FREDERICK HOMES LTD,79462,,Community Services,Long Term Residential Care,52070,,,,Revenue
http://statistics.data.gov.uk/doc/local-authority/33,Norfolk County Council,23-Feb-11,2930700,1332,,ANDREW FREDERICK HOMES LTD,79462,,Community Services,Long Term Residential Care,52070,,,,Revenue
http://statistics.data.gov.uk/doc/local-authority/33,Norfolk County Council,23-Feb-11,2931009,1332,,ANDREW FREDERICK HOMES LTD,79462,,Community Services,Long Term Residential Care,52070,,,,Revenue
http://statistics.data.gov.uk/doc/local-authority/33,Norfolk County Council,23-Feb-11,2931069,2298,,ANDREW FREDERICK HOMES LTD,79462,,Community Services,Purchase Residential Preserved Rights,50190,,,,Revenue
http://statistics.data.gov.uk/doc/local-authority/33,Norfolk County Council,23-Feb-11,2931159,1332,,ANDREW FREDERICK HOMES LTD,79462,,Community Services,Purchase Residential Preserved Rights,50190,,,,Revenue
http://statistics.data.gov.uk/doc/local-authority/33,Norfolk County Council,23-Feb-11,2931169,1332,,ANDREW FREDERICK HOMES LTD,79462,,Community Services,Purchase Residential Preserved Rights,50190,,,,Revenue
http://statistics.data.gov.uk/doc/local-authority/33,Norfolk County Council,23-Feb-11,2931362,1252,,ANDREW FREDERICK HOMES LTD,79462,,Community Services,Purchase Residential Preserved Rights,50190,,,,Revenue
http://statistics.data.gov.uk/doc/local-authority/33,Norfolk County Council,23-Feb-11,2931621,1332,,ANDREW FREDERICK HOMES LTD,79462,,Community Services,Purchase Residential Preserved Rights,50190,,,,Revenue
http://statistics.data.gov.uk/doc/local-authority/33,Norfolk County Council,23-Feb-11,2931828,2744,,ANDREW FREDERICK HOMES LTD,79462,,Community Services,Long Term Residential Care,52070,,,,Revenue
http://statistics.data.gov.uk/doc/local-authority/33,Norfolk County Council,23-Feb-11,2931926,1332,,ANDREW FREDERICK HOMES LTD,79462,,Community Services,Long Term Residential Care,52070,,,,Revenue
http://statistics.data.gov.uk/doc/local-authority/33,Norfolk County Council,23-Feb-11,2932479,1332,,ANDREW FREDERICK HOMES LTD,79462,,Community Services,Long Term Residential Care,52070,,,,Revenue
http://statistics.data.gov.uk/doc/local-authority/33,Norfolk County Council,23-Feb-11,2932516,2728,,ANDREW FREDERICK HOMES LTD,79462,,Community Services,Long Term Residential Care,52070,,,,Revenue
http://statistics.data.gov.uk/doc/local-authority/33,Norfolk County Council,23-Feb-11,2932850,3420,,ANDREW FREDERICK HOMES LTD,79462,,Community Services,Long Term Residential Care,52070,,,,Revenue
http://statistics.data.gov.uk/doc/local-authority/33,Norfolk County Council,23-Feb-11,2932873,1252,,ANDREW FREDERICK HOMES LTD,79462,,Community Services,Long Term Residential Care,52070,,,,Revenue
http://statistics.data.gov.uk/doc/local-authority/33,Norfolk County Council,23-Feb-11,2932877,1332,,ANDREW FREDERICK HOMES LTD,79462,,Community Services,Purchase Residential Preserved Rights,50190,,,,Revenue
http://statistics.data.gov.uk/doc/local-authority/33,Norfolk County Council,23-Feb-11,2933128,3648,,ANDREW FREDERICK HOMES LTD,79462,,Community Services,Long Term Residential Care,52070,,,,Revenue
http://statistics.data.gov.uk/doc/local-authority/33,Norfolk County Council,23-Feb-11,2933259,1252,,ANDREW FREDERICK HOMES LTD,79462,,Community Services,Long Term Residential Care,52070,,,,Revenue
http://statistics.data.gov.uk/doc/local-authority/33,Norfolk County Council,23-Feb-11,2933671,1332,,ANDREW FREDERICK HOMES LTD,79462,,Community Services,Long Term Residential Care,52070,,,,Revenue
http://statistics.data.gov.uk/doc/local-authority/33,Norfolk County Council,23-Feb-11,2933814,3104,,ANDREW FREDERICK HOMES LTD,79462,,Community Services,Long Term Residential Care,52070,,,,Revenue
http://statistics.data.gov.uk/doc/local-authority/33,Norfolk County Council,23-Feb-11,2934014,1332,,ANDREW FREDERICK HOMES LTD,79462,,Community Services,Long Term Residential Care,52070,,,,Revenue
http://statistics.data.gov.uk/doc/local-authority/33,Norfolk County Council,23-Feb-11,2934147,1316,,ANDREW FREDERICK HOMES LTD,79462,,Community Services,Long Term Residential Care,52070,,,,Revenue
http://statistics.data.gov.uk/doc/local-authority/33,Norfolk County Council,25-Feb-11,2935855,2016,,ANDREW FREDERICK HOMES LTD,79462,,Community Services,Supported Living,52140,,,,Revenue
http://statistics.data.gov.uk/doc/local-authority/33,Norfolk County Council,23-Feb-11,2933016,1527.76,,Angel Care Homes Ltd,119544,,Community Services,Long Term Residential Care,52070,,,,Revenue
http://statistics.data.gov.uk/doc/local-authority/33,Norfolk County Council,10-Feb-11,2903988,5766.75,,Anglia Air Conditioning Ltd,80619,,Resources,Boiler Servicing,A1660,,,,Revenue
http://statistics.data.gov.uk/doc/local-authority/33,Norfolk County Council,25-Feb-11,2905303,458.56,,Anglia Air Conditioning Ltd,80619,,Resources,Minor Building Repairs,A1800,,,,Revenue
http://statistics.data.gov.uk/doc/local-authority/33,Norfolk County Council,25-Feb-11,2924990,3379,,Anglia Air Conditioning Ltd,80619,,Children's Services,Purchase Of IT,C3200,,,,Capital
http://statistics.data.gov.uk/doc/local-authority/33,Norfolk County Council,24-Feb-11,2909294,544,,Anglia DNA Services Ltd,128049,,Resources,Witnesses Expenses and Reports,46860,,,,Revenue
http://statistics.data.gov.uk/doc/local-authority/33,Norfolk County Council,15-Feb-11,2919052,3188.35,,Anglia Fostering Agency Ltd,302666,,Children's Services,Payments to Organisations Providing Services To NCC,52000,,,,Revenue
http://statistics.data.gov.uk/doc/local-authority/33,Norfolk County Council,15-Feb-11,2919054,3036.76,,Anglia Fostering Agency Ltd,302666,,Children's Services,Payments to Organisations Providing Services To NCC,52000,,,,Revenue
http://statistics.data.gov.uk/doc/local-authority/33,Norfolk County Council,15-Feb-11,2919056,3036.76,,Anglia Fostering Agency Ltd,302666,,Children's Services,Payments to Organisations Providing Services To NCC,52000,,,,Revenue
http://statistics.data.gov.uk/doc/local-authority/33,Norfolk County Council,15-Feb-11,2919058,3036.76,,Anglia Fostering Agency Ltd,302666,,Children's Services,Payments to Organisations Providing Services To NCC,52000,,,,Revenue
http://statistics.data.gov.uk/doc/local-authority/33,Norfolk County Council,15-Feb-11,2919061,3188.35,,Anglia Fostering Agency Ltd,302666,,Children's Services,Payments to Organisations Providing Services To NCC,52000,,,,Revenue
http://statistics.data.gov.uk/doc/local-authority/33,Norfolk County Council,15-Feb-11,2919063,3188.35,,Anglia Fostering Agency Ltd,302666,,Children's Services,Payments to Organisations Providing Services To NCC,52000,,,,Revenue
http://statistics.data.gov.uk/doc/local-authority/33,Norfolk County Council,15-Feb-11,2919066,3188.35,,Anglia Fostering Agency Ltd,302666,,Children's Services,Payments to Organisations Providing Services To NCC,52000,,,,Revenue
http://statistics.data.gov.uk/doc/local-authority/33,Norfolk County Council,15-Feb-11,2919069,3100,,Anglia Fostering Agency Ltd,302666,,Children's Services,Payments to Organisations Providing Services To NCC,52000,,,,Revenue
http://statistics.data.gov.uk/doc/local-authority/33,Norfolk County Council,15-Feb-11,2919086,3100,,Anglia Fostering Agency Ltd,302666,,Children's Services,Payments to Organisations Providing Services To NCC,52000,,,,Revenue
http://statistics.data.gov.uk/doc/local-authority/33,Norfolk County Council,15-Feb-11,2919088,3188.35,,Anglia Fostering Agency Ltd,302666,,Children's Services,Payments to Organisations Providing Services To NCC,52000,,,,Revenue
http://statistics.data.gov.uk/doc/local-authority/33,Norfolk County Council,15-Feb-11,2919091,3033.35,,Anglia Fostering Agency Ltd,302666,,Children's Services,Payments to Organisations Providing Services To NCC,52000,,,,Revenue
http://statistics.data.gov.uk/doc/local-authority/33,Norfolk County Council,15-Feb-11,2919094,3033.35,,Anglia Fostering Agency Ltd,302666,,Children's Services,Payments to Organisations Providing Services To NCC,52000,,,,Revenue
http://statistics.data.gov.uk/doc/local-authority/33,Norfolk County Council,15-Feb-11,2919095,3036.45,,Anglia Fostering Agency Ltd,302666,,Children's Services,Payments to Organisations Providing Services To NCC,52000,,,,Revenue
http://statistics.data.gov.uk/doc/local-authority/33,Norfolk County Council,15-Feb-11,2919096,3036.45,,Anglia Fostering Agency Ltd,302666,,Children's Services,Payments to Organisations Providing Services To NCC,52000,,,,Revenue
http://statistics.data.gov.uk/doc/local-authority/33,Norfolk County Council,15-Feb-11,2919098,3188.35,,Anglia Fostering Agency Ltd,302666,,Children's Services,Payments to Organisations Providing Services To NCC,52000,,,,Revenue
http://statistics.data.gov.uk/doc/local-authority/33,Norfolk County Council,15-Feb-11,2919100,3100,,Anglia Fostering Agency Ltd,302666,,Children's Services,Payments to Organisations Providing Services To NCC,52000,,,,Revenue
http://statistics.data.gov.uk/doc/local-authority/33,Norfolk County Council,15-Feb-11,2919104,3100,,Anglia Fostering Agency Ltd,302666,,Children's Services,Payments to Organisations Providing Services To NCC,52000,,,,Revenue
http://statistics.data.gov.uk/doc/local-authority/33,Norfolk County Council,15-Feb-11,2919107,3100,,Anglia Fostering Agency Ltd,302666,,Children's Services,Payments to Organisations Providing Services To NCC,52000,,,,Revenue
http://statistics.data.gov.uk/doc/local-authority/33,Norfolk County Council,15-Feb-11,2919114,3100,,Anglia Fostering Agency Ltd,302666,,Children's Services,Payments to Organisations Providing Services To NCC,52000,,,,Revenue
http://statistics.data.gov.uk/doc/local-authority/33,Norfolk County Council,15-Feb-11,2919118,3036.45,,Anglia Fostering Agency Ltd,302666,,Children's Services,Payments to Organisations Providing Services To NCC,52000,,,,Revenue
http://statistics.data.gov.uk/doc/local-authority/33,Norfolk County Council,15-Feb-11,2919123,3036.76,,Anglia Fostering Agency Ltd,302666,,Children's Services,Payments to Organisations Providing Services To NCC,52000,,,,Revenue
http://statistics.data.gov.uk/doc/local-authority/33,Norfolk County Council,15-Feb-11,2919125,3100,,Anglia Fostering Agency Ltd,302666,,Children's Services,Payments to Organisations Providing Services To NCC,52000,,,,Revenue
http://statistics.data.gov.uk/doc/local-authority/33,Norfolk County Council,22-Feb-11,2928201,1300,,Anglia Fostering Agency Ltd,302666,,Children's Services,Payments to Organisations Providing Services To NCC,52000,,,,Revenue
http://statistics.data.gov.uk/doc/local-authority/33,Norfolk County Council,22-Feb-11,2928202,1300,,Anglia Fostering Agency Ltd,302666,,Children's Services,Payments to Organisations Providing Services To NCC,52000,,,,Revenue
http://statistics.data.gov.uk/doc/local-authority/33,Norfolk County Council,22-Feb-11,2928203,1300,,Anglia Fostering Agency Ltd,302666,,Children's Services,Payments to Organisations Providing Services To NCC,52000,,,,Revenue
http://statistics.data.gov.uk/doc/local-authority/33,Norfolk County Council,23-Feb-11,2928722,1273.48,,Anglia Fostering Agency Ltd,302666,,Children's Services,Payments to Organisations Providing Services To NCC,52000,,,,Revenue
http://statistics.data.gov.uk/doc/local-authority/33,Norfolk County Council,23-Feb-11,2928731,1300,,Anglia Fostering Agency Ltd,302666,,Children's Services,Payments to Organisations Providing Services To NCC,52000,,,,Revenue
http://statistics.data.gov.uk/doc/local-authority/33,Norfolk County Council,23-Feb-11,2928733,1337.05,,Anglia Fostering Agency Ltd,302666,,Children's Services,Payments to Organisations Providing Services To NCC,52000,,,,Revenue
http://statistics.data.gov.uk/doc/local-authority/33,Norfolk County Council,23-Feb-11,2928736,1273.48,,Anglia Fostering Agency Ltd,302666,,Children's Services,Payments to Organisations Providing Services To NCC,52000,,,,Revenue
http://statistics.data.gov.uk/doc/local-authority/33,Norfolk County Council,23-Feb-11,2928739,1273.48,,Anglia Fostering Agency Ltd,302666,,Children's Services,Payments to Organisations Providing Services To NCC,52000,,,,Revenue
http://statistics.data.gov.uk/doc/local-authority/33,Norfolk County Council,23-Feb-11,2928966,1273.48,,Anglia Fostering Agency Ltd,302666,,Children's Services,Payments to Organisations Providing Services To NCC,52000,,,,Revenue
http://statistics.data.gov.uk/doc/local-authority/33,Norfolk County Council,23-Feb-11,2928971,1337.05,,Anglia Fostering Agency Ltd,302666,,Children's Services,Payments to Organisations Providing Services To NCC,52000,,,,Revenue
http://statistics.data.gov.uk/doc/local-authority/33,Norfolk County Council,23-Feb-11,2928975,1272.05,,Anglia Fostering Agency Ltd,302666,,Children's Services,Payments to Organisations Providing Services To NCC,52000,,,,Revenue
http://statistics.data.gov.uk/doc/local-authority/33,Norfolk County Council,23-Feb-11,2928984,1337.05,,Anglia Fostering Agency Ltd,302666,,Children's Services,Payments to Organisations Providing Services To NCC,52000,,,,Revenue
http://statistics.data.gov.uk/doc/local-authority/33,Norfolk County Council,23-Feb-11,2928987,1337.05,,Anglia Fostering Agency Ltd,302666,,Children's Services,Payments to Organisations Providing Services To NCC,52000,,,,Revenue
http://statistics.data.gov.uk/doc/local-authority/33,Norfolk County Council,23-Feb-11,2929022,1300,,Anglia Fostering Agency Ltd,302666,,Children's Services,Payments to Organisations Providing Services To NCC,52000,,,,Revenue
http://statistics.data.gov.uk/doc/local-authority/33,Norfolk County Council,23-Feb-11,2929029,1337.05,,Anglia Fostering Agency Ltd,302666,,Children's Services,Payments to Organisations Providing Services To NCC,52000,,,,Revenue
http://statistics.data.gov.uk/doc/local-authority/33,Norfolk County Council,23-Feb-11,2929032,1272.05,,Anglia Fostering Agency Ltd,302666,,Children's Services,Payments to Organisations Providing Services To NCC,52000,,,,Revenue
http://statistics.data.gov.uk/doc/local-authority/33,Norfolk County Council,23-Feb-11,2929036,1272.05,,Anglia Fostering Agency Ltd,302666,,Children's Services,Payments to Organisations Providing Services To NCC,52000,,,,Revenue
http://statistics.data.gov.uk/doc/local-authority/33,Norfolk County Council,23-Feb-11,2929038,1273.35,,Anglia Fostering Agency Ltd,302666,,Children's Services,Payments to Organisations Providing Services To NCC,52000,,,,Revenue
http://statistics.data.gov.uk/doc/local-authority/33,Norfolk County Council,23-Feb-11,2929046,1273.35,,Anglia Fostering Agency Ltd,302666,,Children's Services,Payments to Organisations Providing Services To NCC,52000,,,,Revenue
http://statistics.data.gov.uk/doc/local-authority/33,Norfolk County Council,23-Feb-11,2929050,1337.05,,Anglia Fostering Agency Ltd,302666,,Children's Services,Payments to Organisations Providing Services To NCC,52000,,,,Revenue
http://statistics.data.gov.uk/doc/local-authority/33,Norfolk County Council,23-Feb-11,2929061,1300,,Anglia Fostering Agency Ltd,302666,,Children's Services,Payments to Organisations Providing Services To NCC,52000,,,,Revenue
http://statistics.data.gov.uk/doc/local-authority/33,Norfolk County Council,24-Feb-11,2934715,1337.05,,Anglia Fostering Agency Ltd,302666,,Children's Services,Payments to Organisations Providing Services To NCC,52000,,,,Revenue
http://statistics.data.gov.uk/doc/local-authority/33,Norfolk County Council,24-Feb-11,2934718,1337.05,,Anglia Fostering Agency Ltd,302666,,Children's Services,Payments to Organisations Providing Services To NCC,52000,,,,Revenue
http://statistics.data.gov.uk/doc/local-authority/33,Norfolk County Council,24-Feb-11,2934854,1300,,Anglia Fostering Agency Ltd,302666,,Children's Services,Payments to Organisations Providing Services To NCC,52000,,,,Revenue
http://statistics.data.gov.uk/doc/local-authority/33,Norfolk County Council,24-Feb-11,2934905,1234.2,,Anglia Fostering Agency Ltd,302666,,Children's Services,Payments to Organisations Providing Services To NCC,52000,,,,Revenue
http://statistics.data.gov.uk/doc/local-authority/33,Norfolk County Council,24-Feb-11,2934909,1174.2,,Anglia Fostering Agency Ltd,302666,,Children's Services,Payments to Organisations Providing Services To NCC,52000,,,,Revenue
http://statistics.data.gov.uk/doc/local-authority/33,Norfolk County Council,24-Feb-11,2934912,1337.05,,Anglia Fostering Agency Ltd,302666,,Children's Services,Payments to Organisations Providing Services To NCC,52000,,,,Revenue
http://statistics.data.gov.uk/doc/local-authority/33,Norfolk County Council,24-Feb-11,2934913,1234.2,,Anglia Fostering Agency Ltd,302666,,Children's Services,Payments to Organisations Providing Services To NCC,52000,,,,Revenue
http://statistics.data.gov.uk/doc/local-authority/33,Norfolk County Council,25-Feb-11,2935902,1131.35,,Anglia Fostering Agency Ltd,302666,,Children's Services,Payments to Organisations Providing Services To NCC,52000,,,,Revenue
http://statistics.data.gov.uk/doc/local-authority/33,Norfolk County Council,25-Feb-11,2935914,1100,,Anglia Fostering Agency Ltd,302666,,Children's Services,Payments to Organisations Providing Services To NCC,52000,,,,Revenue
http://statistics.data.gov.uk/doc/local-authority/33,Norfolk County Council,25-Feb-11,2936431,1542.75,,Anglia Fostering Agency Ltd,302666,,Children's Services,Payments to Organisations Providing Services To NCC,52000,,,,Revenue
http://statistics.data.gov.uk/doc/local-authority/33,Norfolk County Council,01-Feb-11,2904780,844.82,,Anglia Freight Limited,66122,,Community Services,Delivery/Collection,32360,,,,Revenue
http://statistics.data.gov.uk/doc/local-authority/33,Norfolk County Council,04-Feb-11,2882406,132.93,,Anglia Freight Limited,66122,,Community Services,Delivery/Collection,32360,,,,Revenue
http://statistics.data.gov.uk/doc/local-authority/33,Norfolk County Council,04-Feb-11,2882406,395.63,,Anglia Freight Limited,66122,,Community Services,Delivery/Collection,32360,,,,Revenue
http://statistics.data.gov.uk/doc/local-authority/33,Norfolk County Council,04-Feb-11,2882407,126.45,,Anglia Freight Limited,66122,,Community Services,Delivery/Collection,32360,,,,Revenue
http://statistics.data.gov.uk/doc/local-authority/33,Norfolk County Council,04-Feb-11,2882407,728.37,,Anglia Freight Limited,66122,,Community Services,Delivery/Collection,32360,,,,Revenue
http://statistics.data.gov.uk/doc/local-authority/33,Norfolk County Council,04-Feb-11,2882419,44.52,,Anglia Freight Limited,66122,,Community Services,Delivery/Collection,32360,,,,Revenue
http://statistics.data.gov.uk/doc/local-authority/33,Norfolk County Council,04-Feb-11,2882419,397.5,,Anglia Freight Limited,66122,,Community Services,Delivery/Collection,32360,,,,Revenue
http://statistics.data.gov.uk/doc/local-authority/33,Norfolk County Council,04-Feb-11,2882422,795,,Anglia Freight Limited,66122,,Community Services,Delivery/Collection,32360,,,,Revenue
http://statistics.data.gov.uk/doc/local-authority/33,Norfolk County Council,23-Feb-11,2925711,435.49,,Anglia Freight Limited,66122,,Community Services,Delivery/Collection,32360,,,,Revenue
http://statistics.data.gov.uk/doc/local-authority/33,Norfolk County Council,25-Feb-11,2925710,192.6,,Anglia Freight Limited,66122,,Community Services,Delivery/Collection,32360,,,,Revenue
http://statistics.data.gov.uk/doc/local-authority/33,Norfolk County Council,25-Feb-11,2925710,422.65,,Anglia Freight Limited,66122,,Community Services,Delivery/Collection,32360,,,,Revenue
http://statistics.data.gov.uk/doc/local-authority/33,Norfolk County Council,16-Feb-11,2920733,427.72,,Anglia Support Partnership,190520,,Community Services,Grounds Maintenance Costs,22500,,,,Revenue
http://statistics.data.gov.uk/doc/local-authority/33,Norfolk County Council,16-Feb-11,2920741,1017.2,,Anglia Support Partnership,190520,,Community Services,Grounds Maintenance Costs,22500,,,,Revenue
http://statistics.data.gov.uk/doc/local-authority/33,Norfolk County Council,16-Feb-11,2919401,860,,Anglia Survey & Design,80632,,Environment Transport & Development,Other Hired & Contracted Services,44810,,,,Revenue
http://statistics.data.gov.uk/doc/local-authority/33,Norfolk County Council,15-Feb-11,2918565,2025,,Anglia Taxis Limited,66136,,Environment Transport & Development,Contract Transport  Hire,34900,,,,Revenue
http://statistics.data.gov.uk/doc/local-authority/33,Norfolk County Council,11-Feb-11,2883077,739.81,,Anglian Archives,66143,,Resources,Fees & Charges,44500,,,,Revenue
http://statistics.data.gov.uk/doc/local-authority/33,Norfolk County Council,11-Feb-11,2883077,628.83,,Anglian Archives,66143,,Resources,Fees & Charges,44500,,,,Revenue
http://statistics.data.gov.uk/doc/local-authority/33,Norfolk County Council,11-Feb-11,2883077,6029.41,,Anglian Archives,66143,,Resources,Fees & Charges,44500,,,,Revenue
http://statistics.data.gov.uk/doc/local-authority/33,Norfolk County Council,04-Feb-11,2908001,5207.66,,Anglian Bus & Coach Limited,113981,,Environment Transport & Development,Private Contractor Subsidy Payments,52500,,,,Revenue
http://statistics.data.gov.uk/doc/local-authority/33,Norfolk County Council,04-Feb-11,2908002,3190.86,,Anglian Bus & Coach Limited,113981,,Environment Transport & Development,Contract Transport  Hire,34900,,,,Revenue
http://statistics.data.gov.uk/doc/local-authority/33,Norfolk County Council,04-Feb-11,2908002,913.72,,Anglian Bus & Coach Limited,113981,,Environment Transport & Development,Private Contractor Subsidy Payments,52500,,,,Revenue
http://statistics.data.gov.uk/doc/local-authority/33,Norfolk County Council,04-Feb-11,2908003,971.2,,Anglian Bus & Coach Limited,113981,,Environment Transport & Development,Contract Transport  Hire,34900,,,,Revenue
http://statistics.data.gov.uk/doc/local-authority/33,Norfolk County Council,04-Feb-11,2908003,911.44,,Anglian Bus & Coach Limited,113981,,Environment Transport & Development,Private Contractor Subsidy Payments,52500,,,,Revenue
http://statistics.data.gov.uk/doc/local-authority/33,Norfolk County Council,04-Feb-11,2908004,1400.9,,Anglian Bus & Coach Limited,113981,,Environment Transport & Development,Private Contractor Subsidy Payments,52500,,,,Revenue
http://statistics.data.gov.uk/doc/local-authority/33,Norfolk County Council,04-Feb-11,2908007,1467.67,,Anglian Bus & Coach Limited,113981,,Environment Transport & Development,Private Contractor Subsidy Payments,52500,,,,Revenue
http://statistics.data.gov.uk/doc/local-authority/33,Norfolk County Council,04-Feb-11,2908007,84.11,,Anglian Bus & Coach Limited,113981,,Environment Transport & Development,Private Contractor Subsidy Payments,52500,,,,Revenue
http://statistics.data.gov.uk/doc/local-authority/33,Norfolk County Council,04-Feb-11,2908008,9149.4,,Anglian Bus & Coach Limited,113981,,Environment Transport & Development,Private Contractor Subsidy Payments,52500,,,,Revenue
http://statistics.data.gov.uk/doc/local-authority/33,Norfolk County Council,04-Feb-11,2908009,3275.98,,Anglian Bus & Coach Limited,113981,,Environment Transport & Development,Contract Transport  Hire,34900,,,,Revenue
http://statistics.data.gov.uk/doc/local-authority/33,Norfolk County Council,04-Feb-11,2908010,2016,,Anglian Bus & Coach Limited,113981,,Environment Transport & Development,Private Contractor Subsidy Payments,52500,,,,Revenue
http://statistics.data.gov.uk/doc/local-authority/33,Norfolk County Council,04-Feb-11,2908010,224,,Anglian Bus & Coach Limited,113981,,Environment Transport & Development,Private Contractor Subsidy Payments,52500,,,,Revenue
http://statistics.data.gov.uk/doc/local-authority/33,Norfolk County Council,11-Feb-11,2916474,1520,,Anglian Bus & Coach Limited,113981,,Environment Transport & Development,Contract Transport  Hire,34900,,,,Revenue
http://statistics.data.gov.uk/doc/local-authority/33,Norfolk County Council,11-Feb-11,2916474,832,,Anglian Bus & Coach Limited,113981,,Environment Transport & Development,Private Contractor Subsidy Payments,52500,,,,Revenue
http://statistics.data.gov.uk/doc/local-authority/33,Norfolk County Council,11-Feb-11,2916475,1779.92,,Anglian Bus & Coach Limited,113981,,Environment Transport & Development,Contract Transport  Hire,34900,,,,Revenue
http://statistics.data.gov.uk/doc/local-authority/33,Norfolk County Council,11-Feb-11,2916475,2681.48,,Anglian Bus & Coach Limited,113981,,Environment Transport & Development,Private Contractor Subsidy Payments,52500,,,,Revenue
http://statistics.data.gov.uk/doc/local-authority/33,Norfolk County Council,11-Feb-11,2916476,2243.33,,Anglian Bus & Coach Limited,113981,,Environment Transport & Development,Contract Transport  Hire,34900,,,,Revenue
http://statistics.data.gov.uk/doc/local-authority/33,Norfolk County Council,11-Feb-11,2916476,3110.35,,Anglian Bus & Coach Limited,113981,,Environment Transport & Development,Private Contractor Subsidy Payments,52500,,,,Revenue
http://statistics.data.gov.uk/doc/local-authority/33,Norfolk County Council,11-Feb-11,2916477,10287.74,,Anglian Bus & Coach Limited,113981,,Environment Transport & Development,Contract Transport  Hire,34900,,,,Revenue
http://statistics.data.gov.uk/doc/local-authority/33,Norfolk County Council,11-Feb-11,2916477,14889.03,,Anglian Bus & Coach Limited,113981,,Environment Transport & Development,Private Contractor Subsidy Payments,52500,,,,Revenue
http://statistics.data.gov.uk/doc/local-authority/33,Norfolk County Council,11-Feb-11,2916477,853.23,,Anglian Bus & Coach Limited,113981,,Environment Transport & Development,Private Contractor Subsidy Payments,52500,,,,Revenue
http://statistics.data.gov.uk/doc/local-authority/33,Norfolk County Council,11-Feb-11,2916478,3760.48,,Anglian Bus & Coach Limited,113981,,Environment Transport & Development,Contract Transport  Hire,34900,,,,Revenue
http://statistics.data.gov.uk/doc/local-authority/33,Norfolk County Council,11-Feb-11,2916478,712.5,,Anglian Bus & Coach Limited,113981,,Environment Transport & Development,Private Contractor Subsidy Payments,52500,,,,Revenue
http://statistics.data.gov.uk/doc/local-authority/33,Norfolk County Council,11-Feb-11,2916478,1599.88,,Anglian Bus & Coach Limited,113981,,Environment Transport & Development,Private Contractor Subsidy Payments,52500,,,,Revenue
http://statistics.data.gov.uk/doc/local-authority/33,Norfolk County Council,11-Feb-11,2916479,2090,,Anglian Bus & Coach Limited,113981,,Environment Transport & Development,Contract Transport  Hire,34900,,,,Revenue
http://statistics.data.gov.uk/doc/local-authority/33,Norfolk County Council,11-Feb-11,2916479,2968.02,,Anglian Bus & Coach Limited,113981,,Environment Transport & Development,Private Contractor Subsidy Payments,52500,,,,Revenue
http://statistics.data.gov.uk/doc/local-authority/33,Norfolk County Council,11-Feb-11,2916479,29.98,,Anglian Bus & Coach Limited,113981,,Environment Transport & Development,Private Contractor Subsidy Payments,52500,,,,Revenue
http://statistics.data.gov.uk/doc/local-authority/33,Norfolk County Council,11-Feb-11,2916480,2090,,Anglian Bus & Coach Limited,113981,,Environment Transport & Development,Contract Transport  Hire,34900,,,,Revenue
http://statistics.data.gov.uk/doc/local-authority/33,Norfolk County Council,11-Feb-11,2916480,310,,Anglian Bus & Coach Limited,113981,,Environment Transport & Development,Private Contractor Subsidy Payments,52500,,,,Revenue
http://statistics.data.gov.uk/doc/local-authority/33,Norfolk County Council,25-Feb-11,2935716,2134.65,,Anglian Bus & Coach Limited,113981,,Environment Transport & Development,Non Staff Public Transport Costs,35510,,,,Revenue
http://statistics.data.gov.uk/doc/local-authority/33,Norfolk County Council,03-Feb-11,2907416,674.85,,Anglian Health & Safety Supplies,80639,,Environment Transport & Development,Personal Protective Equipment,42180,,,,Revenue
http://statistics.data.gov.uk/doc/local-authority/33,Norfolk County Council,04-Feb-11,2881576,756,,Anglian Health & Safety Supplies,80639,,Community Services,Personal Needs Of Client,41300,,,,Revenue
http://statistics.data.gov.uk/doc/local-authority/33,Norfolk County Council,10-Feb-11,2885411,567,,Anglian Health & Safety Supplies,80639,,Community Services,Protective Clothing and Uniforms,46350,,,,Revenue
http://statistics.data.gov.uk/doc/local-authority/33,Norfolk County Council,14-Feb-11,2918040,40.8,,Anglian Health & Safety Supplies,80639,,Environment Transport & Development,Equipment Purchases,40850,,,,Revenue
http://statistics.data.gov.uk/doc/local-authority/33,Norfolk County Council,14-Feb-11,2918040,428.6,,Anglian Health & Safety Supplies,80639,,Environment Transport & Development,Personal Protective Equipment,42180,,,,Revenue
http://statistics.data.gov.uk/doc/local-authority/33,Norfolk County Council,18-Feb-11,2898155,448.5,,Anglian Health & Safety Supplies,80639,,Community Services,Protective Clothing and Uniforms,46350,,,,Revenue
http://statistics.data.gov.uk/doc/local-authority/33,Norfolk County Council,18-Feb-11,2898158,458,,Anglian Health & Safety Supplies,80639,,Community Services,Personal Needs Of Client,41300,,,,Revenue
http://statistics.data.gov.uk/doc/local-authority/33,Norfolk County Council,18-Feb-11,2898179,710,,Anglian Health & Safety Supplies,80639,,Community Services,Protective Clothing and Uniforms,46350,,,,Revenue
http://statistics.data.gov.uk/doc/local-authority/33,Norfolk County Council,16-Feb-11,2881458,2250,,Anglian Pest Solutions Ltd,333984,,Environment Transport & Development,Pest Control,48100,,,,Revenue
http://statistics.data.gov.uk/doc/local-authority/33,Norfolk County Council,01-Feb-11,2904141,538.53,,Anglian Water Services Ltd,80641,,Community Services,Water Services,24820,,,,Revenue
http://statistics.data.gov.uk/doc/local-authority/33,Norfolk County Council,02-Feb-11,2905718,3007.99,,Anglian Water Services Ltd,80641,,Community Services,Water Services,24820,,,,Revenue
http://statistics.data.gov.uk/doc/local-authority/33,Norfolk County Council,04-Feb-11,2906661,1932.07,,Anglian Water Services Ltd,80641,,Community Services,Water and Sewerage Costs,24810,,,,Revenue
http://statistics.data.gov.uk/doc/local-authority/33,Norfolk County Council,04-Feb-11,2906743,908.24,,Anglian Water Services Ltd,80641,,Community Services,Water and Sewerage Costs,24810,,,,Revenue
http://statistics.data.gov.uk/doc/local-authority/33,Norfolk County Council,04-Feb-11,2908803,857.01,,Anglian Water Services Ltd,80641,,Environment Transport & Development,Water and Sewerage Costs,24810,,,,Revenue
http://statistics.data.gov.uk/doc/local-authority/33,Norfolk County Council,07-Feb-11,2909433,1222.23,,Anglian Water Services Ltd,80641,,Community Services,Water Services,24820,,,,Revenue
http://statistics.data.gov.uk/doc/local-authority/33,Norfolk County Council,07-Feb-11,2910165,1652.89,,Anglian Water Services Ltd,80641,,Community Services,Water Services,24820,,,,Revenue
http://statistics.data.gov.uk/doc/local-authority/33,Norfolk County Council,07-Feb-11,2910292,1583.19,,Anglian Water Services Ltd,80641,,Community Services,Water and Sewerage Costs,24810,,,,Revenue
http://statistics.data.gov.uk/doc/local-authority/33,Norfolk County Council,07-Feb-11,2910292,128.37,,Anglian Water Services Ltd,80641,,Community Services,Water and Sewerage Costs,24810,,,,Revenue
http://statistics.data.gov.uk/doc/local-authority/33,Norfolk County Council,07-Feb-11,2910332,1385.5,,Anglian Water Services Ltd,80641,,Community Services,Water and Sewerage Costs,24810,,,,Revenue
http://statistics.data.gov.uk/doc/local-authority/33,Norfolk County Council,07-Feb-11,2910706,489.97,,Anglian Water Services Ltd,80641,,Community Services,Water Services,24820,,,,Revenue
http://statistics.data.gov.uk/doc/local-authority/33,Norfolk County Council,08-Feb-11,2910863,929.41,,Anglian Water Services Ltd,80641,,Fire & Rescue,Water and Sewerage Costs,24810,,,,Revenue
http://statistics.data.gov.uk/doc/local-authority/33,Norfolk County Council,08-Feb-11,2912522,4506.7,,Anglian Water Services Ltd,80641,,Community Services,Water and Sewerage Costs,24810,,,,Revenue
http://statistics.data.gov.uk/doc/local-authority/33,Norfolk County Council,08-Feb-11,2912527,1750.97,,Anglian Water Services Ltd,80641,,Community Services,Water and Sewerage Costs,24810,,,,Revenue
http://statistics.data.gov.uk/doc/local-authority/33,Norfolk County Council,10-Feb-11,2914753,1875.86,,Anglian Water Services Ltd,80641,,Fire & Rescue,Water Charges Unmetered,24800,,,,Revenue
http://statistics.data.gov.uk/doc/local-authority/33,Norfolk County Council,10-Feb-11,2914844,714.18,,Anglian Water Services Ltd,80641,,Community Services,Water Services,24820,,,,Revenue
http://statistics.data.gov.uk/doc/local-authority/33,Norfolk County Council,10-Feb-11,2914941,1877.94,,Anglian Water Services Ltd,80641,,Community Services,Water Services,24820,,,,Revenue
http://statistics.data.gov.uk/doc/local-authority/33,Norfolk County Council,16-Feb-11,2920504,818.08,,Anglian Water Services Ltd,80641,,Resources,Water and Sewerage Costs,24810,,,,Revenue
http://statistics.data.gov.uk/doc/local-authority/33,Norfolk County Council,18-Feb-11,2922207,1037.32,,Anglian Water Services Ltd,80641,,Community Services,Water and Sewerage Costs,24810,,,,Revenue
http://statistics.data.gov.uk/doc/local-authority/33,Norfolk County Council,18-Feb-11,2922866,669.64,,Anglian Water Services Ltd,80641,,Children's Services,Water and Sewerage Costs,24810,,,,Revenue
http://statistics.data.gov.uk/doc/local-authority/33,Norfolk County Council,18-Feb-11,2922912,1654.4,,Anglian Water Services Ltd,80641,,Children's Services,Water and Sewerage Costs,24810,,,,Revenue
http://statistics.data.gov.uk/doc/local-authority/33,Norfolk County Council,21-Feb-11,2924235,766,,Anglian Water Services Ltd,80641,,Fire & Rescue,Equipment Purchases,40850,,,,Revenue
http://statistics.data.gov.uk/doc/local-authority/33,Norfolk County Council,21-Feb-11,2924249,766,,Anglian Water Services Ltd,80641,,Fire & Rescue,Equipment Purchases,40850,,,,Revenue
http://statistics.data.gov.uk/doc/local-authority/33,Norfolk County Council,21-Feb-11,2924258,766,,Anglian Water Services Ltd,80641,,Fire & Rescue,Equipment Purchases,40850,,,,Revenue
http://statistics.data.gov.uk/doc/local-authority/33,Norfolk County Council,21-Feb-11,2924266,766,,Anglian Water Services Ltd,80641,,Fire & Rescue,Equipment Purchases,40850,,,,Revenue
http://statistics.data.gov.uk/doc/local-authority/33,Norfolk County Council,22-Feb-11,2924213,-1662.79,,Anglian Water Services Ltd,80641,,Fire & Rescue,Water Charges Unmetered,24800,,,,Revenue
http://statistics.data.gov.uk/doc/local-authority/33,Norfolk County Council,22-Feb-11,2925657,1232.79,,Anglian Water Services Ltd,80641,,Community Services,Water Services,24820,,,,Revenue
http://statistics.data.gov.uk/doc/local-authority/33,Norfolk County Council,22-Feb-11,2925733,1200,,Anglian Water Services Ltd,80641,,Community Services,Water and Sewerage Costs,24810,,,,Revenue
http://statistics.data.gov.uk/doc/local-authority/33,Norfolk County Council,22-Feb-11,2925733,940,,Anglian Water Services Ltd,80641,,Community Services,Sewerage & Environmental Services,24880,,,,Revenue
http://statistics.data.gov.uk/doc/local-authority/33,Norfolk County Council,22-Feb-11,2927970,597.95,,Anglian Water Services Ltd,80641,,Environment Transport & Development,Water and Sewerage Costs,24810,,,,Revenue
http://statistics.data.gov.uk/doc/local-authority/33,Norfolk County Council,28-Feb-11,2939025,1749.43,,Anglian Water Services Ltd,80641,,Fire & Rescue,Water Charges Unmetered,24800,,,,Revenue
http://statistics.data.gov.uk/doc/local-authority/33,Norfolk County Council,02-Feb-11,2906285,792.85,,Anglo Scottish Equipment (Southern) Limited,66161,,Children's Services,Construction Cost-Adoption/Improvement Building,C2450,,,,Capital
http://statistics.data.gov.uk/doc/local-authority/33,Norfolk County Council,02-Feb-11,2906288,819.27,,Anglo Scottish Equipment (Southern) Limited,66161,,Children's Services,Construction Cost-Adoption/Improvement Building,C2450,,,,Capital
http://statistics.data.gov.uk/doc/local-authority/33,Norfolk County Council,16-Feb-11,2920643,800,,Anglo Scottish Equipment (Southern) Limited,66161,,Children's Services,Building Alterations & Improvements,23610,,,,Revenue
http://statistics.data.gov.uk/doc/local-authority/33,Norfolk County Council,16-Feb-11,2920647,800,,Anglo Scottish Equipment (Southern) Limited,66161,,Children's Services,Building Alterations & Improvements,23610,,,,Revenue
http://statistics.data.gov.uk/doc/local-authority/33,Norfolk County Council,25-Feb-11,2932840,700,,Redacted - Personal Data,Redacted,,Children's Services,Sundry Purchases,40520,,,,Revenue
http://statistics.data.gov.uk/doc/local-authority/33,Norfolk County Council,11-Feb-11,2916282,610,,Aquapure Window Cleaners,181077,,Community Services,Window Cleaning,25220,,,,Revenue
http://statistics.data.gov.uk/doc/local-authority/33,Norfolk County Council,01-Feb-11,2887035,5919,,Archant Regional Ltd,80675,,Resources,Marketing Design Costs,47090,,,,Revenue
http://statistics.data.gov.uk/doc/local-authority/33,Norfolk County Council,01-Feb-11,2887071,4413.68,,Archant Regional Ltd,80675,,Resources,Marketing Design Costs,47090,,,,Revenue
http://statistics.data.gov.uk/doc/local-authority/33,Norfolk County Council,02-Feb-11,2892486,737.5,,Archant Regional Ltd,80675,,Community Services,Publicity,48200,,,,Revenue
http://statistics.data.gov.uk/doc/local-authority/33,Norfolk County Council,02-Feb-11,2892489,900,,Archant Regional Ltd,80675,,Community Services,Publicity,48200,,,,Revenue
http://statistics.data.gov.uk/doc/local-authority/33,Norfolk County Council,16-Feb-11,2920341,2860.25,,Archant Regional Ltd,80675,,Community Services,Marketing Design Costs,47090,,,,Revenue
http://statistics.data.gov.uk/doc/local-authority/33,Norfolk County Council,16-Feb-11,2920859,-1055,,Archant Regional Ltd,80675,,Resources,Marketing Design Costs,47090,,,,Revenue
http://statistics.data.gov.uk/doc/local-authority/33,Norfolk County Council,23-Feb-11,2931146,2380,,ARCHER CARE LTD,79466,,Community Services,Purchase Residential Preserved Rights,50190,,,,Revenue
http://statistics.data.gov.uk/doc/local-authority/33,Norfolk County Council,08-Feb-11,2905736,5333.48,,Archive Logistics,80679,,Children's Services,Archive Boxes,41870,,,,Revenue
http://statistics.data.gov.uk/doc/local-authority/33,Norfolk County Council,03-Feb-11,2907060,1633,,ARH Groundworks Ltd,411135,,Environment Transport & Development,Road Maintenance Contractor Payments,45070,,,,Revenue
http://statistics.data.gov.uk/doc/local-authority/33,Norfolk County Council,03-Feb-11,2907060,1886,,ARH Groundworks Ltd,411135,,Environment Transport & Development,Road Maintenance Contractor Payments,45070,,,,Revenue
http://statistics.data.gov.uk/doc/local-authority/33,Norfolk County Council,03-Feb-11,2907060,1955,,ARH Groundworks Ltd,411135,,Environment Transport & Development,Road Maintenance Contractor Payments,45070,,,,Revenue
http://statistics.data.gov.uk/doc/local-authority/33,Norfolk County Council,07-Feb-11,2908387,1236.39,,Arkle Finance,192856,,Community Services,Workshop Equipment,41740,,,,Revenue
http://statistics.data.gov.uk/doc/local-authority/33,Norfolk County Council,09-Feb-11,2913400,842,,ARMS ASSOCIATES LTD,79467,,Community Services,Short Term Residential Care,50210,,,,Revenue
http://statistics.data.gov.uk/doc/local-authority/33,Norfolk County Council,09-Feb-11,2913407,2999.43,,ARMS ASSOCIATES LTD,79467,,Community Services,Long Term Residential Care,52070,,,,Revenue
http://statistics.data.gov.uk/doc/local-authority/33,Norfolk County Council,09-Feb-11,2913516,16178.43,,ARMS ASSOCIATES LTD,79467,,Community Services,Long Term Residential Care,52070,,,,Revenue
http://statistics.data.gov.uk/doc/local-authority/33,Norfolk County Council,09-Feb-11,2913517,8720.71,,ARMS ASSOCIATES LTD,79467,,Community Services,Long Term Residential Care,52070,,,,Revenue
http://statistics.data.gov.uk/doc/local-authority/33,Norfolk County Council,21-Feb-11,2924429,2044.86,,Arms Associates Ltd,79467,,Community Services,Short Term Residential Care,50210,,,,Revenue
http://statistics.data.gov.uk/doc/local-authority/33,Norfolk County Council,23-Feb-11,2929902,1448,,ARMS ASSOCIATES LTD,79467,,Community Services,Long Term Residential Care,52070,,,,Revenue
http://statistics.data.gov.uk/doc/local-authority/33,Norfolk County Council,23-Feb-11,2929934,1624,,ARMS ASSOCIATES LTD,79467,,Community Services,Long Term Residential Care,52070,,,,Revenue
http://statistics.data.gov.uk/doc/local-authority/33,Norfolk County Council,23-Feb-11,2930139,1684,,Arms Associates Ltd,79467,,Community Services,Long Term Residential Care,52070,,,,Revenue
http://statistics.data.gov.uk/doc/local-authority/33,Norfolk County Council,23-Feb-11,2930394,1684,,Arms Associates Ltd,79467,,Community Services,Long Term Residential Care,52070,,,,Revenue
http://statistics.data.gov.uk/doc/local-authority/33,Norfolk County Council,23-Feb-11,2930559,1448,,ARMS ASSOCIATES LTD,79467,,Community Services,Long Term Residential Care,52070,,,,Revenue
http://statistics.data.gov.uk/doc/local-authority/33,Norfolk County Council,23-Feb-11,2930603,1684,,Arms Associates Ltd,79467,,Community Services,Long Term Residential Care,52070,,,,Revenue
http://statistics.data.gov.uk/doc/local-authority/33,Norfolk County Council,23-Feb-11,2930664,1624,,Arms Associates Ltd,79467,,Community Services,Long Term Residential Care,52070,,,,Revenue
http://statistics.data.gov.uk/doc/local-authority/33,Norfolk County Council,23-Feb-11,2930775,1684,,ARMS ASSOCIATES LTD,79467,,Community Services,Long Term Residential Care,52070,,,,Revenue
http://statistics.data.gov.uk/doc/local-authority/33,Norfolk County Council,23-Feb-11,2930782,1436,,ARMS ASSOCIATES LTD,79467,,Community Services,Long Term Residential Care,52070,,,,Revenue
http://statistics.data.gov.uk/doc/local-authority/33,Norfolk County Council,23-Feb-11,2931194,1684,,ARMS ASSOCIATES LTD,79467,,Community Services,Long Term Residential Care,52070,,,,Revenue
http://statistics.data.gov.uk/doc/local-authority/33,Norfolk County Council,23-Feb-11,2931301,1684,,ARMS ASSOCIATES LTD,79467,,Community Services,Long Term Residential Care,52070,,,,Revenue
http://statistics.data.gov.uk/doc/local-authority/33,Norfolk County Council,23-Feb-11,2931429,1684,,Arms Associates Ltd,79467,,Community Services,Long Term Residential Care,52070,,,,Revenue
http://statistics.data.gov.uk/doc/local-authority/33,Norfolk County Council,23-Feb-11,2931679,1448,,ARMS ASSOCIATES LTD,79467,,Community Services,Long Term Residential Care,52070,,,,Revenue
http://statistics.data.gov.uk/doc/local-authority/33,Norfolk County Council,23-Feb-11,2931827,1684,,ARMS ASSOCIATES LTD,79467,,Community Services,Long Term Residential Care,52070,,,,Revenue
http://statistics.data.gov.uk/doc/local-authority/33,Norfolk County Council,23-Feb-11,2932123,1684,,ARMS ASSOCIATES LTD,79467,,Community Services,Long Term Residential Care,52070,,,,Revenue
http://statistics.data.gov.uk/doc/local-authority/33,Norfolk County Council,23-Feb-11,2932200,1684,,Arms Associates Ltd,79467,,Community Services,Long Term Residential Care,52070,,,,Revenue
http://statistics.data.gov.uk/doc/local-authority/33,Norfolk County Council,23-Feb-11,2932537,1684,,ARMS ASSOCIATES LTD,79467,,Community Services,Long Term Residential Care,52070,,,,Revenue
http://statistics.data.gov.uk/doc/local-authority/33,Norfolk County Council,23-Feb-11,2932664,1624,,ARMS ASSOCIATES LTD,79467,,Community Services,Long Term Residential Care,52070,,,,Revenue
http://statistics.data.gov.uk/doc/local-authority/33,Norfolk County Council,23-Feb-11,2932757,1684,,ARMS ASSOCIATES LTD,79467,,Community Services,Long Term Residential Care,52070,,,,Revenue
http://statistics.data.gov.uk/doc/local-authority/33,Norfolk County Council,23-Feb-11,2932766,1684,,ARMS ASSOCIATES LTD,79467,,Community Services,Long Term Residential Care,52070,,,,Revenue
http://statistics.data.gov.uk/doc/local-authority/33,Norfolk County Council,23-Feb-11,2932819,1684,,Arms Associates Ltd,79467,,Community Services,Long Term Residential Care,52070,,,,Revenue
http://statistics.data.gov.uk/doc/local-authority/33,Norfolk County Council,23-Feb-11,2933257,1684,,ARMS ASSOCIATES LTD,79467,,Community Services,Long Term Residential Care,52070,,,,Revenue
http://statistics.data.gov.uk/doc/local-authority/33,Norfolk County Council,23-Feb-11,2933351,1624,,Arms Associates Ltd,79467,,Community Services,Long Term Residential Care,52070,,,,Revenue
http://statistics.data.gov.uk/doc/local-authority/33,Norfolk County Council,23-Feb-11,2933710,1684,,Arms Associates Ltd,79467,,Community Services,Long Term Residential Care,52070,,,,Revenue
http://statistics.data.gov.uk/doc/local-authority/33,Norfolk County Council,23-Feb-11,2933854,1684,,Arms Associates Ltd,79467,,Community Services,Long Term Residential Care,52070,,,,Revenue
http://statistics.data.gov.uk/doc/local-authority/33,Norfolk County Council,23-Feb-11,2934006,1684,,ARMS ASSOCIATES LTD,79467,,Community Services,Long Term Residential Care,52070,,,,Revenue
http://statistics.data.gov.uk/doc/local-authority/33,Norfolk County Council,23-Feb-11,2934072,1684,,Arms Associates Ltd,79467,,Community Services,Long Term Residential Care,52070,,,,Revenue
http://statistics.data.gov.uk/doc/local-authority/33,Norfolk County Council,25-Feb-11,2935872,8600.43,,Arms Associates Ltd,79467,,Community Services,Long Term Residential Care,52070,,,,Revenue
http://statistics.data.gov.uk/doc/local-authority/33,Norfolk County Council,11-Feb-11,2915786,2085,,Arms Associates Ltd T/as Norfolk Lodge,165605,,Community Services,Long Term Residential Care,52070,,,,Revenue
http://statistics.data.gov.uk/doc/local-authority/33,Norfolk County Council,11-Feb-11,2915787,18524,,Arms Associates Ltd T/as Norfolk Lodge,165605,,Community Services,Long Term Residential Care,52070,,,,Revenue
http://statistics.data.gov.uk/doc/local-authority/33,Norfolk County Council,11-Feb-11,2915788,3187.57,,Arms Associates Ltd T/as Norfolk Lodge,165605,,Community Services,Long Term Residential Care,52070,,,,Revenue
http://statistics.data.gov.uk/doc/local-authority/33,Norfolk County Council,11-Feb-11,2915911,2204,,Arms Associates Ltd T/as Norfolk Lodge,165605,,Community Services,Long Term Residential Care,52070,,,,Revenue
http://statistics.data.gov.uk/doc/local-authority/33,Norfolk County Council,16-Feb-11,2919919,962.29,,Arms Associates Ltd T/as Norfolk Lodge,165605,,Community Services,Personal Budget - Long Term Residential Care,60150,,,,Revenue
http://statistics.data.gov.uk/doc/local-authority/33,Norfolk County Council,16-Feb-11,2919920,1202.86,,Arms Associates Ltd T/as Norfolk Lodge,165605,,Community Services,Personal Budget - Long Term Residential Care,60150,,,,Revenue
http://statistics.data.gov.uk/doc/local-authority/33,Norfolk County Council,23-Feb-11,2929943,1684,,Arms Associates Ltd T/as Norfolk Lodge,165605,,Community Services,Personal Budget - Long Term Residential Care,60150,,,,Revenue
http://statistics.data.gov.uk/doc/local-authority/33,Norfolk County Council,23-Feb-11,2930061,1684,,Arms Associates Ltd T/as Norfolk Lodge,165605,,Community Services,Long Term Residential Care,52070,,,,Revenue
http://statistics.data.gov.uk/doc/local-authority/33,Norfolk County Council,23-Feb-11,2930167,1684,,Arms Associates Ltd T/as Norfolk Lodge,165605,,Community Services,Long Term Residential Care,52070,,,,Revenue
http://statistics.data.gov.uk/doc/local-authority/33,Norfolk County Council,23-Feb-11,2930408,1448,,Arms Associates Ltd T/as Norfolk Lodge,165605,,Community Services,Long Term Residential Care,52070,,,,Revenue
http://statistics.data.gov.uk/doc/local-authority/33,Norfolk County Council,23-Feb-11,2930429,1684,,Arms Associates Ltd T/as Norfolk Lodge,165605,,Community Services,Long Term Residential Care,52070,,,,Revenue
http://statistics.data.gov.uk/doc/local-authority/33,Norfolk County Council,23-Feb-11,2930474,1684,,Arms Associates Ltd T/as Norfolk Lodge,165605,,Community Services,Long Term Residential Care,52070,,,,Revenue
http://statistics.data.gov.uk/doc/local-authority/33,Norfolk County Council,23-Feb-11,2930807,1684,,Arms Associates Ltd T/as Norfolk Lodge,165605,,Community Services,Long Term Residential Care,52070,,,,Revenue
http://statistics.data.gov.uk/doc/local-authority/33,Norfolk County Council,23-Feb-11,2930874,1684,,Arms Associates Ltd T/as Norfolk Lodge,165605,,Community Services,Long Term Residential Care,52070,,,,Revenue
http://statistics.data.gov.uk/doc/local-authority/33,Norfolk County Council,23-Feb-11,2931307,1684,,Arms Associates Ltd T/as Norfolk Lodge,165605,,Community Services,Long Term Residential Care,52070,,,,Revenue
http://statistics.data.gov.uk/doc/local-authority/33,Norfolk County Council,23-Feb-11,2932032,1684,,Arms Associates Ltd T/as Norfolk Lodge,165605,,Community Services,Long Term Residential Care,52070,,,,Revenue
http://statistics.data.gov.uk/doc/local-authority/33,Norfolk County Council,23-Feb-11,2932285,1448,,Arms Associates Ltd T/as Norfolk Lodge,165605,,Community Services,Long Term Residential Care,52070,,,,Revenue
http://statistics.data.gov.uk/doc/local-authority/33,Norfolk County Council,23-Feb-11,2932482,1684,,Arms Associates Ltd T/as Norfolk Lodge,165605,,Community Services,Long Term Residential Care,52070,,,,Revenue
http://statistics.data.gov.uk/doc/local-authority/33,Norfolk County Council,23-Feb-11,2932589,1684,,Arms Associates Ltd T/as Norfolk Lodge,165605,,Community Services,Long Term Residential Care,52070,,,,Revenue
http://statistics.data.gov.uk/doc/local-authority/33,Norfolk County Council,23-Feb-11,2932798,1684,,Arms Associates Ltd T/as Norfolk Lodge,165605,,Community Services,Long Term Residential Care,52070,,,,Revenue
http://statistics.data.gov.uk/doc/local-authority/33,Norfolk County Council,23-Feb-11,2932848,1684,,Arms Associates Ltd T/as Norfolk Lodge,165605,,Community Services,Long Term Residential Care,52070,,,,Revenue
http://statistics.data.gov.uk/doc/local-authority/33,Norfolk County Council,23-Feb-11,2933375,1624,,Arms Associates Ltd T/as Norfolk Lodge,165605,,Community Services,Long Term Residential Care,52070,,,,Revenue
http://statistics.data.gov.uk/doc/local-authority/33,Norfolk County Council,23-Feb-11,2933531,1684,,Arms Associates Ltd T/as Norfolk Lodge,165605,,Community Services,Long Term Residential Care,52070,,,,Revenue
http://statistics.data.gov.uk/doc/local-authority/33,Norfolk County Council,23-Feb-11,2933605,1388,,Arms Associates Ltd T/as Norfolk Lodge,165605,,Community Services,Long Term Residential Care,52070,,,,Revenue
http://statistics.data.gov.uk/doc/local-authority/33,Norfolk County Council,23-Feb-11,2933825,1684,,Arms Associates Ltd T/as Norfolk Lodge,165605,,Community Services,Short Term Residential Care,50210,,,,Revenue
http://statistics.data.gov.uk/doc/local-authority/33,Norfolk County Council,23-Feb-11,2934071,1684,,Arms Associates Ltd T/as Norfolk Lodge,165605,,Community Services,Long Term Residential Care,52070,,,,Revenue
http://statistics.data.gov.uk/doc/local-authority/33,Norfolk County Council,04-Feb-11,2883303,2944,,Arqiva Limited,104556,,Fire & Rescue,Wireless - Maintenance,43660,,,,Revenue
http://statistics.data.gov.uk/doc/local-authority/33,Norfolk County Council,02-Feb-11,2906590,60,,Arval UK Ltd,80697,,Community Services,Vehicle Fuel,33420,,,,Revenue
http://statistics.data.gov.uk/doc/local-authority/33,Norfolk County Council,02-Feb-11,2906590,147.51,,Arval UK Ltd,80697,,Community Services,Vehicle Fuel,33420,,,,Revenue
http://statistics.data.gov.uk/doc/local-authority/33,Norfolk County Council,02-Feb-11,2906590,164.44,,Arval UK Ltd,80697,,Community Services,Vehicle Fuel,33420,,,,Revenue
http://statistics.data.gov.uk/doc/local-authority/33,Norfolk County Council,02-Feb-11,2906590,73.69,,Arval UK Ltd,80697,,Community Services,Vehicle Fuel,33420,,,,Revenue
http://statistics.data.gov.uk/doc/local-authority/33,Norfolk County Council,02-Feb-11,2906590,149.53,,Arval UK Ltd,80697,,Community Services,Vehicle Fuel,33420,,,,Revenue
http://statistics.data.gov.uk/doc/local-authority/33,Norfolk County Council,02-Feb-11,2906590,67.77,,Arval UK Ltd,80697,,Community Services,Vehicle Fuel,33420,,,,Revenue
http://statistics.data.gov.uk/doc/local-authority/33,Norfolk County Council,02-Feb-11,2906590,95.02,,Arval UK Ltd,80697,,Community Services,Vehicle Fuel,33420,,,,Revenue
http://statistics.data.gov.uk/doc/local-authority/33,Norfolk County Council,02-Feb-11,2906590,84.73,,Arval UK Ltd,80697,,Community Services,Vehicle Fuel,33420,,,,Revenue
http://statistics.data.gov.uk/doc/local-authority/33,Norfolk County Council,02-Feb-11,2906590,98.42,,Arval UK Ltd,80697,,Community Services,Vehicle Fuel,33420,,,,Revenue
http://statistics.data.gov.uk/doc/local-authority/33,Norfolk County Council,02-Feb-11,2906590,55,,Arval UK Ltd,80697,,Community Services,Vehicle Fuel,33420,,,,Revenue
http://statistics.data.gov.uk/doc/local-authority/33,Norfolk County Council,02-Feb-11,2906590,79.48,,Arval UK Ltd,80697,,Community Services,Vehicle Fuel,33420,,,,Revenue
http://statistics.data.gov.uk/doc/local-authority/33,Norfolk County Council,02-Feb-11,2906590,66.77,,Arval UK Ltd,80697,,Community Services,Vehicle Fuel,33420,,,,Revenue
http://statistics.data.gov.uk/doc/local-authority/33,Norfolk County Council,02-Feb-11,2906590,93.97,,Arval UK Ltd,80697,,Community Services,Vehicle Fuel,33420,,,,Revenue
http://statistics.data.gov.uk/doc/local-authority/33,Norfolk County Council,02-Feb-11,2906590,169.55,,Arval UK Ltd,80697,,Community Services,Vehicle Fuel,33420,,,,Revenue
http://statistics.data.gov.uk/doc/local-authority/33,Norfolk County Council,02-Feb-11,2906590,81.74,,Arval UK Ltd,80697,,Community Services,Vehicle Fuel,33420,,,,Revenue
http://statistics.data.gov.uk/doc/local-authority/33,Norfolk County Council,02-Feb-11,2906590,107.68,,Arval UK Ltd,80697,,Community Services,Vehicle Fuel,33420,,,,Revenue
http://statistics.data.gov.uk/doc/local-authority/33,Norfolk County Council,02-Feb-11,2906590,74.12,,Arval UK Ltd,80697,,Community Services,Vehicle Fuel,33420,,,,Revenue
http://statistics.data.gov.uk/doc/local-authority/33,Norfolk County Council,02-Feb-11,2906590,78.93,,Arval UK Ltd,80697,,Community Services,Vehicle Fuel,33420,,,,Revenue
http://statistics.data.gov.uk/doc/local-authority/33,Norfolk County Council,02-Feb-11,2906590,87.93,,Arval UK Ltd,80697,,Community Services,Vehicle Fuel,33420,,,,Revenue
http://statistics.data.gov.uk/doc/local-authority/33,Norfolk County Council,08-Feb-11,2906584,647.12,,Arval UK Ltd,80697,,Environment Transport & Development,Vehicle Fuel,33420,,,,Revenue
http://statistics.data.gov.uk/doc/local-authority/33,Norfolk County Council,11-Feb-11,2914049,4564.8,,Arval UK Ltd,80697,,Fire & Rescue,Vehicle Fuel,33420,,,,Revenue
http://statistics.data.gov.uk/doc/local-authority/33,Norfolk County Council,11-Feb-11,2914053,18665.79,,Arval UK Ltd,80697,,Fire & Rescue,Vehicle Fuel,33420,,,,Revenue
http://statistics.data.gov.uk/doc/local-authority/33,Norfolk County Council,15-Feb-11,2914033,646.66,,Arval UK Ltd,80697,,Environment Transport & Development,Vehicle Fuel,33420,,,,Revenue
http://statistics.data.gov.uk/doc/local-authority/33,Norfolk County Council,23-Feb-11,2922170,525.48,,Arval UK Ltd,80697,,Environment Transport & Development,Vehicle Fuel,33420,,,,Revenue
http://statistics.data.gov.uk/doc/local-authority/33,Norfolk County Council,28-Feb-11,2938477,142.67,,Arval UK Ltd,80697,,Community Services,Vehicle Fuel,33420,,,,Revenue
http://statistics.data.gov.uk/doc/local-authority/33,Norfolk County Council,28-Feb-11,2938477,158.5,,Arval UK Ltd,80697,,Community Services,Vehicle Fuel,33420,,,,Revenue
http://statistics.data.gov.uk/doc/local-authority/33,Norfolk County Council,28-Feb-11,2938477,168.93,,Arval UK Ltd,80697,,Community Services,Vehicle Fuel,33420,,,,Revenue
http://statistics.data.gov.uk/doc/local-authority/33,Norfolk County Council,28-Feb-11,2938477,84.34,,Arval UK Ltd,80697,,Community Services,Vehicle Fuel,33420,,,,Revenue
http://statistics.data.gov.uk/doc/local-authority/33,Norfolk County Council,28-Feb-11,2938477,86.32,,Arval UK Ltd,80697,,Community Services,Vehicle Fuel,33420,,,,Revenue
http://statistics.data.gov.uk/doc/local-authority/33,Norfolk County Council,28-Feb-11,2938477,177.1,,Arval UK Ltd,80697,,Community Services,Vehicle Fuel,33420,,,,Revenue
http://statistics.data.gov.uk/doc/local-authority/33,Norfolk County Council,28-Feb-11,2938477,103.14,,Arval UK Ltd,80697,,Community Services,Vehicle Fuel,33420,,,,Revenue
http://statistics.data.gov.uk/doc/local-authority/33,Norfolk County Council,28-Feb-11,2938477,86.37,,Arval UK Ltd,80697,,Community Services,Vehicle Fuel,33420,,,,Revenue
http://statistics.data.gov.uk/doc/local-authority/33,Norfolk County Council,28-Feb-11,2938477,70.88,,Arval UK Ltd,80697,,Community Services,Vehicle Fuel,33420,,,,Revenue
http://statistics.data.gov.uk/doc/local-authority/33,Norfolk County Council,28-Feb-11,2938477,38.42,,Arval UK Ltd,80697,,Community Services,Vehicle Fuel,33420,,,,Revenue
http://statistics.data.gov.uk/doc/local-authority/33,Norfolk County Council,28-Feb-11,2938477,72.65,,Arval UK Ltd,80697,,Community Services,Vehicle Fuel,33420,,,,Revenue
http://statistics.data.gov.uk/doc/local-authority/33,Norfolk County Council,28-Feb-11,2938477,80.37,,Arval UK Ltd,80697,,Community Services,Vehicle Fuel,33420,,,,Revenue
http://statistics.data.gov.uk/doc/local-authority/33,Norfolk County Council,28-Feb-11,2938477,63.87,,Arval UK Ltd,80697,,Community Services,Vehicle Fuel,33420,,,,Revenue
http://statistics.data.gov.uk/doc/local-authority/33,Norfolk County Council,28-Feb-11,2938477,78.42,,Arval UK Ltd,80697,,Community Services,Vehicle Fuel,33420,,,,Revenue
http://statistics.data.gov.uk/doc/local-authority/33,Norfolk County Council,28-Feb-11,2938477,86.61,,Arval UK Ltd,80697,,Community Services,Vehicle Fuel,33420,,,,Revenue
http://statistics.data.gov.uk/doc/local-authority/33,Norfolk County Council,28-Feb-11,2938477,66.44,,Arval UK Ltd,80697,,Community Services,Vehicle Fuel,33420,,,,Revenue
http://statistics.data.gov.uk/doc/local-authority/33,Norfolk County Council,28-Feb-11,2938477,74.13,,Arval UK Ltd,80697,,Community Services,Vehicle Fuel,33420,,,,Revenue
http://statistics.data.gov.uk/doc/local-authority/33,Norfolk County Council,28-Feb-11,2938477,105.26,,Arval UK Ltd,80697,,Community Services,Vehicle Fuel,33420,,,,Revenue
http://statistics.data.gov.uk/doc/local-authority/33,Norfolk County Council,28-Feb-11,2938477,130.84,,Arval UK Ltd,80697,,Community Services,Vehicle Fuel,33420,,,,Revenue
http://statistics.data.gov.uk/doc/local-authority/33,Norfolk County Council,28-Feb-11,2938477,147.15,,Arval UK Ltd,80697,,Community Services,Vehicle Fuel,33420,,,,Revenue
http://statistics.data.gov.uk/doc/local-authority/33,Norfolk County Council,04-Feb-11,2879586,680,,Asbestrip Ltd,80701,,Resources,Building Repairs,A1780,,,,Revenue
http://statistics.data.gov.uk/doc/local-authority/33,Norfolk County Council,11-Feb-11,2907481,605,,Asbestrip Ltd,80701,,Resources,Building Repairs,A1780,,,,Revenue
http://statistics.data.gov.uk/doc/local-authority/33,Norfolk County Council,11-Feb-11,2887437,655.85,,Asco Educational Supplies Limited,66250,,Children's Services,Equipment Purchases,40850,,,,Revenue
http://statistics.data.gov.uk/doc/local-authority/33,Norfolk County Council,25-Feb-11,2925717,14.95,,ASD Metal Services,273141,,Community Services,Delivery/Collection,32360,,,,Revenue
http://statistics.data.gov.uk/doc/local-authority/33,Norfolk County Council,25-Feb-11,2925717,632.5,,ASD Metal Services,273141,,Community Services,Work Centre Materials,41630,,,,Revenue
http://statistics.data.gov.uk/doc/local-authority/33,Norfolk County Council,23-Feb-11,2933379,1759.52,,Ashbourne Eton Ltd - Rose Martha Court,198045,,Community Services,Long Term Residential Care,52070,,,,Revenue
http://statistics.data.gov.uk/doc/local-authority/33,Norfolk County Council,23-Feb-11,2932295,1740,,Ashbourne Eton Ltd Middleton Manor,198045,,Community Services,Long Term Residential Care,52070,,,,Revenue
http://statistics.data.gov.uk/doc/local-authority/33,Norfolk County Council,04-Feb-11,2907933,917.71,,Ashbourne Homes Ltd,121789,,Community Services,Short Term Residential Care,50210,,,,Revenue
http://statistics.data.gov.uk/doc/local-authority/33,Norfolk County Council,23-Feb-11,2928586,-781.86,,Ashbourne Homes Ltd,80706,,Community Services,Long Term Residential Care,52070,,,,Revenue
http://statistics.data.gov.uk/doc/local-authority/33,Norfolk County Council,23-Feb-11,2929865,1684,,Ashbourne Homes Ltd,80706,,Community Services,Long Term Residential Care,52070,,,,Revenue
http://statistics.data.gov.uk/doc/local-authority/33,Norfolk County Council,23-Feb-11,2929893,1464,,Ashbourne Homes Ltd,121789,,Community Services,Long Term Residential Care,52070,,,,Revenue
http://statistics.data.gov.uk/doc/local-authority/33,Norfolk County Council,23-Feb-11,2930067,1464,,Ashbourne Homes Ltd,121789,,Community Services,Long Term Residential Care,52070,,,,Revenue
http://statistics.data.gov.uk/doc/local-authority/33,Norfolk County Council,23-Feb-11,2930307,1440,,Ashbourne Homes Ltd,80706,,Community Services,Long Term Residential Care,52070,,,,Revenue
http://statistics.data.gov.uk/doc/local-authority/33,Norfolk County Council,23-Feb-11,2930375,1464,,Ashbourne Homes Ltd,121789,,Community Services,Long Term Residential Care,52070,,,,Revenue
http://statistics.data.gov.uk/doc/local-authority/33,Norfolk County Council,23-Feb-11,2930580,1464,,Ashbourne Homes Ltd,121789,,Community Services,Long Term Residential Care,52070,,,,Revenue
http://statistics.data.gov.uk/doc/local-authority/33,Norfolk County Council,23-Feb-11,2930597,1464,,Ashbourne Homes Ltd,121789,,Community Services,Long Term Residential Care,52070,,,,Revenue
http://statistics.data.gov.uk/doc/local-authority/33,Norfolk County Council,23-Feb-11,2930734,1808,,Ashbourne Homes Ltd,80706,,Community Services,Long Term Residential Care,52070,,,,Revenue
http://statistics.data.gov.uk/doc/local-authority/33,Norfolk County Council,23-Feb-11,2930825,1684,,Ashbourne Homes Ltd,80706,,Community Services,Long Term Residential Care,52070,,,,Revenue
http://statistics.data.gov.uk/doc/local-authority/33,Norfolk County Council,23-Feb-11,2930942,1464,,Ashbourne Homes Ltd,121789,,Community Services,Long Term Residential Care,52070,,,,Revenue
http://statistics.data.gov.uk/doc/local-authority/33,Norfolk County Council,23-Feb-11,2930947,1468,,Ashbourne Homes Ltd,121789,,Community Services,Long Term Residential Care,52070,,,,Revenue
http://statistics.data.gov.uk/doc/local-authority/33,Norfolk County Council,23-Feb-11,2930993,1624,,Ashbourne Homes Ltd,80706,,Community Services,Long Term Residential Care,52070,,,,Revenue
http://statistics.data.gov.uk/doc/local-authority/33,Norfolk County Council,23-Feb-11,2931067,1684,,Ashbourne Homes Ltd,80706,,Community Services,Long Term Residential Care,52070,,,,Revenue
http://statistics.data.gov.uk/doc/local-authority/33,Norfolk County Council,23-Feb-11,2931101,1828,,Ashbourne Homes Ltd,80706,,Community Services,Long Term Residential Care,52070,,,,Revenue
http://statistics.data.gov.uk/doc/local-authority/33,Norfolk County Council,23-Feb-11,2931120,1464,,Ashbourne Homes Ltd,121789,,Community Services,Long Term Residential Care,52070,,,,Revenue
http://statistics.data.gov.uk/doc/local-authority/33,Norfolk County Council,23-Feb-11,2931166,1448,,Ashbourne Homes Ltd,80706,,Community Services,Long Term Residential Care,52070,,,,Revenue
http://statistics.data.gov.uk/doc/local-authority/33,Norfolk County Council,23-Feb-11,2931226,1808,,Ashbourne Homes Ltd,80706,,Community Services,Long Term Residential Care,52070,,,,Revenue
http://statistics.data.gov.uk/doc/local-authority/33,Norfolk County Council,23-Feb-11,2931276,1728,,Ashbourne Homes Ltd,80706,,Community Services,Long Term Residential Care,52070,,,,Revenue
http://statistics.data.gov.uk/doc/local-authority/33,Norfolk County Council,23-Feb-11,2931366,1512,,Ashbourne Homes Ltd,121789,,Community Services,Long Term Residential Care,52070,,,,Revenue
http://statistics.data.gov.uk/doc/local-authority/33,Norfolk County Council,23-Feb-11,2931382,1448,,Ashbourne Homes Ltd,80706,,Community Services,Long Term Residential Care,52070,,,,Revenue
http://statistics.data.gov.uk/doc/local-authority/33,Norfolk County Council,23-Feb-11,2931471,1464,,Ashbourne Homes Ltd,121789,,Community Services,Long Term Residential Care,52070,,,,Revenue
http://statistics.data.gov.uk/doc/local-authority/33,Norfolk County Council,23-Feb-11,2931488,1464,,Ashbourne Homes Ltd,121789,,Community Services,Long Term Residential Care,52070,,,,Revenue
http://statistics.data.gov.uk/doc/local-authority/33,Norfolk County Council,23-Feb-11,2931502,1684,,Ashbourne Homes Ltd,80706,,Community Services,Long Term Residential Care,52070,,,,Revenue
http://statistics.data.gov.uk/doc/local-authority/33,Norfolk County Council,23-Feb-11,2931645,1684,,Ashbourne Homes Ltd,80706,,Community Services,Long Term Residential Care,52070,,,,Revenue
http://statistics.data.gov.uk/doc/local-authority/33,Norfolk County Council,23-Feb-11,2931656,1464,,Ashbourne Homes Ltd,121789,,Community Services,Long Term Residential Care,52070,,,,Revenue
http://statistics.data.gov.uk/doc/local-authority/33,Norfolk County Council,23-Feb-11,2931855,1684,,Ashbourne Homes Ltd,80706,,Community Services,Long Term Residential Care,52070,,,,Revenue
http://statistics.data.gov.uk/doc/local-authority/33,Norfolk County Council,23-Feb-11,2931871,1464,,Ashbourne Homes Ltd,121789,,Community Services,Long Term Residential Care,52070,,,,Revenue
http://statistics.data.gov.uk/doc/local-authority/33,Norfolk County Council,23-Feb-11,2932006,1464,,Ashbourne Homes Ltd,121789,,Community Services,Long Term Residential Care,52070,,,,Revenue
http://statistics.data.gov.uk/doc/local-authority/33,Norfolk County Council,23-Feb-11,2932064,1684,,Ashbourne Homes Ltd,80706,,Community Services,Long Term Residential Care,52070,,,,Revenue
http://statistics.data.gov.uk/doc/local-authority/33,Norfolk County Council,23-Feb-11,2932079,1684,,Ashbourne Homes Ltd,80706,,Community Services,Long Term Residential Care,52070,,,,Revenue
http://statistics.data.gov.uk/doc/local-authority/33,Norfolk County Council,23-Feb-11,2932109,1464,,Ashbourne Homes Ltd,121789,,Community Services,Long Term Residential Care,52070,,,,Revenue
http://statistics.data.gov.uk/doc/local-authority/33,Norfolk County Council,23-Feb-11,2932253,1464,,Ashbourne Homes Ltd,121789,,Community Services,Long Term Residential Care,52070,,,,Revenue
http://statistics.data.gov.uk/doc/local-authority/33,Norfolk County Council,23-Feb-11,2932274,1684,,Ashbourne Homes Ltd,80706,,Community Services,Long Term Residential Care,52070,,,,Revenue
http://statistics.data.gov.uk/doc/local-authority/33,Norfolk County Council,23-Feb-11,2932292,1684,,Ashbourne Homes Ltd,80706,,Community Services,Long Term Residential Care,52070,,,,Revenue
http://statistics.data.gov.uk/doc/local-authority/33,Norfolk County Council,23-Feb-11,2932312,1348,,Ashbourne Homes Ltd,121789,,Community Services,Long Term Residential Care,52070,,,,Revenue
http://statistics.data.gov.uk/doc/local-authority/33,Norfolk County Council,23-Feb-11,2932475,1464,,Ashbourne Homes Ltd,121789,,Community Services,Long Term Residential Care,52070,,,,Revenue
http://statistics.data.gov.uk/doc/local-authority/33,Norfolk County Council,23-Feb-11,2932750,1464,,Ashbourne Homes Ltd,121789,,Community Services,Long Term Residential Care,52070,,,,Revenue
http://statistics.data.gov.uk/doc/local-authority/33,Norfolk County Council,23-Feb-11,2932772,1624,,Ashbourne Homes Ltd,80706,,Community Services,Long Term Residential Care,52070,,,,Revenue
http://statistics.data.gov.uk/doc/local-authority/33,Norfolk County Council,23-Feb-11,2932788,1448,,Ashbourne Homes Ltd,80706,,Community Services,Long Term Residential Care,52070,,,,Revenue
http://statistics.data.gov.uk/doc/local-authority/33,Norfolk County Council,23-Feb-11,2932815,1448,,Ashbourne Homes Ltd,80706,,Community Services,Long Term Residential Care,52070,,,,Revenue
http://statistics.data.gov.uk/doc/local-authority/33,Norfolk County Council,23-Feb-11,2933086,1684,,Ashbourne Homes Ltd,80706,,Community Services,Long Term Residential Care,52070,,,,Revenue
http://statistics.data.gov.uk/doc/local-authority/33,Norfolk County Council,23-Feb-11,2933213,1464,,Ashbourne Homes Ltd,121789,,Community Services,Long Term Residential Care,52070,,,,Revenue
http://statistics.data.gov.uk/doc/local-authority/33,Norfolk County Council,23-Feb-11,2933227,1464,,Ashbourne Homes Ltd,121789,,Community Services,Long Term Residential Care,52070,,,,Revenue
http://statistics.data.gov.uk/doc/local-authority/33,Norfolk County Council,23-Feb-11,2933269,1464,,Ashbourne Homes Ltd,121789,,Community Services,Long Term Residential Care,52070,,,,Revenue
http://statistics.data.gov.uk/doc/local-authority/33,Norfolk County Council,23-Feb-11,2933481,1464,,Ashbourne Homes Ltd,121789,,Community Services,Long Term Residential Care,52070,,,,Revenue
http://statistics.data.gov.uk/doc/local-authority/33,Norfolk County Council,23-Feb-11,2933583,1684,,Ashbourne Homes Ltd,80706,,Community Services,Long Term Residential Care,52070,,,,Revenue
http://statistics.data.gov.uk/doc/local-authority/33,Norfolk County Council,23-Feb-11,2933872,1684,,Ashbourne Homes Ltd,80706,,Community Services,Long Term Residential Care,52070,,,,Revenue
http://statistics.data.gov.uk/doc/local-authority/33,Norfolk County Council,23-Feb-11,2933879,1404,,Ashbourne Homes Ltd,121789,,Community Services,Long Term Residential Care,52070,,,,Revenue
http://statistics.data.gov.uk/doc/local-authority/33,Norfolk County Council,23-Feb-11,2933900,1682.8,,Ashbourne Homes Ltd,80706,,Community Services,Long Term Care with Nursing,51550,,,,Revenue
http://statistics.data.gov.uk/doc/local-authority/33,Norfolk County Council,23-Feb-11,2933900,434.8,,Ashbourne Homes Ltd,80706,,Community Services,Free Nursing Care,55560,,,,Revenue
http://statistics.data.gov.uk/doc/local-authority/33,Norfolk County Council,23-Feb-11,2933942,1448,,Ashbourne Homes Ltd,80706,,Community Services,Long Term Residential Care,52070,,,,Revenue
http://statistics.data.gov.uk/doc/local-authority/33,Norfolk County Council,23-Feb-11,2933943,1684,,Ashbourne Homes Ltd,80706,,Community Services,Long Term Residential Care,52070,,,,Revenue
http://statistics.data.gov.uk/doc/local-authority/33,Norfolk County Council,23-Feb-11,2933948,1684,,Ashbourne Homes Ltd,80706,,Community Services,Long Term Residential Care,52070,,,,Revenue
http://statistics.data.gov.uk/doc/local-authority/33,Norfolk County Council,23-Feb-11,2933958,1464,,Ashbourne Homes Ltd,121789,,Community Services,Long Term Residential Care,52070,,,,Revenue
http://statistics.data.gov.uk/doc/local-authority/33,Norfolk County Council,23-Feb-11,2934011,2328,,Ashbourne Homes Ltd,121789,,Community Services,Long Term Residential Care,52070,,,,Revenue
http://statistics.data.gov.uk/doc/local-authority/33,Norfolk County Council,23-Feb-11,2934140,1684,,Ashbourne Homes Ltd,80706,,Community Services,Long Term Residential Care,52070,,,,Revenue
http://statistics.data.gov.uk/doc/local-authority/33,Norfolk County Council,21-Feb-11,2924292,-661.57,,Ashbourne Homes Ltd Briar House,80706,,Community Services,Long Term Residential Care,52070,,,,Revenue
http://statistics.data.gov.uk/doc/local-authority/33,Norfolk County Council,21-Feb-11,2924394,661.57,,Ashbourne Homes Ltd Briar House,80706,,Community Services,Long Term Residential Care,52070,,,,Revenue
http://statistics.data.gov.uk/doc/local-authority/33,Norfolk County Council,21-Feb-11,2924396,2105,,Ashbourne Homes Ltd Briar House,80706,,Community Services,Short Term Residential Care,50210,,,,Revenue
http://statistics.data.gov.uk/doc/local-authority/33,Norfolk County Council,21-Feb-11,2924397,5232.43,,Ashbourne Homes Ltd Briar House,80706,,Community Services,Long Term Residential Care,52070,,,,Revenue
http://statistics.data.gov.uk/doc/local-authority/33,Norfolk County Council,23-Feb-11,2929572,1684,,Ashbourne Homes Ltd Briar House,80706,,Community Services,Long Term Residential Care,52070,,,,Revenue
http://statistics.data.gov.uk/doc/local-authority/33,Norfolk County Council,23-Feb-11,2929906,1684,,Ashbourne Homes Ltd Briar House,80706,,Community Services,Long Term Residential Care,52070,,,,Revenue
http://statistics.data.gov.uk/doc/local-authority/33,Norfolk County Council,23-Feb-11,2929921,1448,,Ashbourne Homes Ltd Briar House,80706,,Community Services,Long Term Residential Care,52070,,,,Revenue
http://statistics.data.gov.uk/doc/local-authority/33,Norfolk County Council,23-Feb-11,2929929,1448,,Ashbourne Homes Ltd Briar House,80706,,Community Services,Long Term Residential Care,52070,,,,Revenue
http://statistics.data.gov.uk/doc/local-authority/33,Norfolk County Council,23-Feb-11,2930072,1684,,Ashbourne Homes Ltd Briar House,80706,,Community Services,Long Term Residential Care,52070,,,,Revenue
http://statistics.data.gov.uk/doc/local-authority/33,Norfolk County Council,23-Feb-11,2930133,1684,,Ashbourne Homes Ltd Briar House,80706,,Community Services,Long Term Residential Care,52070,,,,Revenue
http://statistics.data.gov.uk/doc/local-authority/33,Norfolk County Council,23-Feb-11,2930319,1448,,Ashbourne Homes Ltd Briar House,80706,,Community Services,Long Term Residential Care,52070,,,,Revenue
http://statistics.data.gov.uk/doc/local-authority/33,Norfolk County Council,23-Feb-11,2930413,1448,,Ashbourne Homes Ltd Briar House,80706,,Community Services,Long Term Residential Care,52070,,,,Revenue
http://statistics.data.gov.uk/doc/local-authority/33,Norfolk County Council,23-Feb-11,2930472,1684,,Ashbourne Homes Ltd Briar House,80706,,Community Services,Long Term Residential Care,52070,,,,Revenue
http://statistics.data.gov.uk/doc/local-authority/33,Norfolk County Council,23-Feb-11,2930576,1448,,Ashbourne Homes Ltd Briar House,80706,,Community Services,Long Term Residential Care,52070,,,,Revenue
http://statistics.data.gov.uk/doc/local-authority/33,Norfolk County Council,23-Feb-11,2930657,1448,,Ashbourne Homes Ltd Briar House,80706,,Community Services,Long Term Residential Care,52070,,,,Revenue
http://statistics.data.gov.uk/doc/local-authority/33,Norfolk County Council,23-Feb-11,2930695,1684,,Ashbourne Homes Ltd Briar House,80706,,Community Services,Long Term Residential Care,52070,,,,Revenue
http://statistics.data.gov.uk/doc/local-authority/33,Norfolk County Council,23-Feb-11,2930741,1684,,Ashbourne Homes Ltd Briar House,80706,,Community Services,Long Term Residential Care,52070,,,,Revenue
http://statistics.data.gov.uk/doc/local-authority/33,Norfolk County Council,23-Feb-11,2930765,1827.76,,Ashbourne Homes Ltd Briar House,80706,,Community Services,Long Term Residential Care,52070,,,,Revenue
http://statistics.data.gov.uk/doc/local-authority/33,Norfolk County Council,23-Feb-11,2930823,1684,,Ashbourne Homes Ltd Briar House,80706,,Community Services,Long Term Residential Care,52070,,,,Revenue
http://statistics.data.gov.uk/doc/local-authority/33,Norfolk County Council,23-Feb-11,2930895,1684,,Ashbourne Homes Ltd Briar House,80706,,Community Services,Long Term Residential Care,52070,,,,Revenue
http://statistics.data.gov.uk/doc/local-authority/33,Norfolk County Council,23-Feb-11,2931108,1684,,Ashbourne Homes Ltd Briar House,80706,,Community Services,Long Term Residential Care,52070,,,,Revenue
http://statistics.data.gov.uk/doc/local-authority/33,Norfolk County Council,23-Feb-11,2931154,1684,,Ashbourne Homes Ltd Briar House,80706,,Community Services,Long Term Residential Care,52070,,,,Revenue
http://statistics.data.gov.uk/doc/local-authority/33,Norfolk County Council,23-Feb-11,2931297,1684,,Ashbourne Homes Ltd Briar House,80706,,Community Services,Long Term Residential Care,52070,,,,Revenue
http://statistics.data.gov.uk/doc/local-authority/33,Norfolk County Council,23-Feb-11,2931354,1632,,Ashbourne Homes Ltd Briar House,80706,,Community Services,Long Term Residential Care,52070,,,,Revenue
http://statistics.data.gov.uk/doc/local-authority/33,Norfolk County Council,23-Feb-11,2931401,1684,,Ashbourne Homes Ltd Briar House,80706,,Community Services,Long Term Residential Care,52070,,,,Revenue
http://statistics.data.gov.uk/doc/local-authority/33,Norfolk County Council,23-Feb-11,2931896,1684,,Ashbourne Homes Ltd Briar House,80706,,Community Services,Long Term Residential Care,52070,,,,Revenue
http://statistics.data.gov.uk/doc/local-authority/33,Norfolk County Council,23-Feb-11,2932013,1684,,Ashbourne Homes Ltd Briar House,80706,,Community Services,Long Term Residential Care,52070,,,,Revenue
http://statistics.data.gov.uk/doc/local-authority/33,Norfolk County Council,23-Feb-11,2932415,1448,,Ashbourne Homes Ltd Briar House,80706,,Community Services,Long Term Residential Care,52070,,,,Revenue
http://statistics.data.gov.uk/doc/local-authority/33,Norfolk County Council,23-Feb-11,2932420,1684,,Ashbourne Homes Ltd Briar House,80706,,Community Services,Long Term Residential Care,52070,,,,Revenue
http://statistics.data.gov.uk/doc/local-authority/33,Norfolk County Council,23-Feb-11,2932483,1684,,Ashbourne Homes Ltd Briar House,80706,,Community Services,Long Term Residential Care,52070,,,,Revenue
http://statistics.data.gov.uk/doc/local-authority/33,Norfolk County Council,23-Feb-11,2932528,1684,,Ashbourne Homes Ltd Briar House,80706,,Community Services,Long Term Residential Care,52070,,,,Revenue
http://statistics.data.gov.uk/doc/local-authority/33,Norfolk County Council,23-Feb-11,2932647,1684,,Ashbourne Homes Ltd Briar House,80706,,Community Services,Long Term Residential Care,52070,,,,Revenue
http://statistics.data.gov.uk/doc/local-authority/33,Norfolk County Council,23-Feb-11,2932727,1684,,Ashbourne Homes Ltd Briar House,80706,,Community Services,Long Term Residential Care,52070,,,,Revenue
http://statistics.data.gov.uk/doc/local-authority/33,Norfolk County Council,23-Feb-11,2932779,1684,,Ashbourne Homes Ltd Briar House,80706,,Community Services,Long Term Residential Care,52070,,,,Revenue
http://statistics.data.gov.uk/doc/local-authority/33,Norfolk County Council,23-Feb-11,2932852,1448,,Ashbourne Homes Ltd Briar House,80706,,Community Services,Long Term Residential Care,52070,,,,Revenue
http://statistics.data.gov.uk/doc/local-authority/33,Norfolk County Council,23-Feb-11,2933177,1448,,Ashbourne Homes Ltd Briar House,80706,,Community Services,Long Term Residential Care,52070,,,,Revenue
http://statistics.data.gov.uk/doc/local-authority/33,Norfolk County Council,23-Feb-11,2933318,1448,,Ashbourne Homes Ltd Briar House,80706,,Community Services,Long Term Residential Care,52070,,,,Revenue
http://statistics.data.gov.uk/doc/local-authority/33,Norfolk County Council,23-Feb-11,2933326,1684,,Ashbourne Homes Ltd Briar House,80706,,Community Services,Long Term Residential Care,52070,,,,Revenue
http://statistics.data.gov.uk/doc/local-authority/33,Norfolk County Council,23-Feb-11,2933372,1684,,Ashbourne Homes Ltd Briar House,80706,,Community Services,Long Term Residential Care,52070,,,,Revenue
http://statistics.data.gov.uk/doc/local-authority/33,Norfolk County Council,23-Feb-11,2933794,1684,,Ashbourne Homes Ltd Briar House,80706,,Community Services,Long Term Residential Care,52070,,,,Revenue
http://statistics.data.gov.uk/doc/local-authority/33,Norfolk County Council,23-Feb-11,2933864,1732.4,,Ashbourne Homes Ltd Briar House,80706,,Community Services,Long Term Residential Care,52070,,,,Revenue
http://statistics.data.gov.uk/doc/local-authority/33,Norfolk County Council,23-Feb-11,2933981,1448,,Ashbourne Homes Ltd Briar House,80706,,Community Services,Long Term Residential Care,52070,,,,Revenue
http://statistics.data.gov.uk/doc/local-authority/33,Norfolk County Council,23-Feb-11,2934026,1684,,Ashbourne Homes Ltd Briar House,80706,,Community Services,Long Term Residential Care,52070,,,,Revenue
http://statistics.data.gov.uk/doc/local-authority/33,Norfolk County Council,23-Feb-11,2930473,1728,,Ashbourne Homes Ltd Re Dove Court,80706,,Community Services,Long Term Residential Care,52070,,,,Revenue
http://statistics.data.gov.uk/doc/local-authority/33,Norfolk County Council,23-Feb-11,2930607,1728,,Ashbourne Homes Ltd Re Dove Court,80706,,Community Services,Long Term Residential Care,52070,,,,Revenue
http://statistics.data.gov.uk/doc/local-authority/33,Norfolk County Council,23-Feb-11,2930841,1593.2,,Ashbourne Homes Ltd Re Dove Court,80706,,Community Services,Long Term Care with Nursing,51550,,,,Revenue
http://statistics.data.gov.uk/doc/local-authority/33,Norfolk County Council,23-Feb-11,2931284,1728,,Ashbourne Homes Ltd Re Dove Court,80706,,Community Services,Long Term Residential Care,52070,,,,Revenue
http://statistics.data.gov.uk/doc/local-authority/33,Norfolk County Council,23-Feb-11,2931501,1728,,Ashbourne Homes Ltd Re Dove Court,80706,,Community Services,Long Term Residential Care,52070,,,,Revenue
http://statistics.data.gov.uk/doc/local-authority/33,Norfolk County Council,23-Feb-11,2931528,1728,,Ashbourne Homes Ltd Re Dove Court,80706,,Community Services,Long Term Residential Care,52070,,,,Revenue
http://statistics.data.gov.uk/doc/local-authority/33,Norfolk County Council,23-Feb-11,2932322,1728,,Ashbourne Homes Ltd Re Dove Court,80706,,Community Services,Long Term Residential Care,52070,,,,Revenue
http://statistics.data.gov.uk/doc/local-authority/33,Norfolk County Council,23-Feb-11,2932596,1836,,Ashbourne Homes Ltd Re Dove Court,80706,,Community Services,Long Term Residential Care,52070,,,,Revenue
http://statistics.data.gov.uk/doc/local-authority/33,Norfolk County Council,23-Feb-11,2933717,1728,,Ashbourne Homes Ltd Re Dove Court,80706,,Community Services,Long Term Residential Care,52070,,,,Revenue
http://statistics.data.gov.uk/doc/local-authority/33,Norfolk County Council,23-Feb-11,2933921,1728,,Ashbourne Homes Ltd Re Dove Court,80706,,Community Services,Long Term Residential Care,52070,,,,Revenue
http://statistics.data.gov.uk/doc/local-authority/33,Norfolk County Council,23-Feb-11,2930180,1700,,Ashbourne Homes Ltd T/A Alexander Court,80706,,Community Services,Long Term Residential Care,52070,,,,Revenue
http://statistics.data.gov.uk/doc/local-authority/33,Norfolk County Council,23-Feb-11,2930384,1464,,Ashbourne Homes Ltd T/A Alexander Court,80706,,Community Services,Long Term Residential Care,52070,,,,Revenue
http://statistics.data.gov.uk/doc/local-authority/33,Norfolk County Council,23-Feb-11,2930444,1464,,Ashbourne Homes Ltd T/A Alexander Court,80706,,Community Services,Long Term Residential Care,52070,,,,Revenue
http://statistics.data.gov.uk/doc/local-authority/33,Norfolk County Council,23-Feb-11,2930725,1700,,Ashbourne Homes Ltd T/A Alexander Court,80706,,Community Services,Long Term Residential Care,52070,,,,Revenue
http://statistics.data.gov.uk/doc/local-authority/33,Norfolk County Council,23-Feb-11,2930809,1464,,Ashbourne Homes Ltd T/A Alexander Court,80706,,Community Services,Long Term Residential Care,52070,,,,Revenue
http://statistics.data.gov.uk/doc/local-authority/33,Norfolk County Council,23-Feb-11,2930844,1464,,Ashbourne Homes Ltd T/A Alexander Court,80706,,Community Services,Long Term Residential Care,52070,,,,Revenue
http://statistics.data.gov.uk/doc/local-authority/33,Norfolk County Council,23-Feb-11,2931025,1464,,Ashbourne Homes Ltd T/A Alexander Court,80706,,Community Services,Long Term Residential Care,52070,,,,Revenue
http://statistics.data.gov.uk/doc/local-authority/33,Norfolk County Council,23-Feb-11,2931124,1700,,Ashbourne Homes Ltd T/A Alexander Court,80706,,Community Services,Long Term Residential Care,52070,,,,Revenue
http://statistics.data.gov.uk/doc/local-authority/33,Norfolk County Council,23-Feb-11,2931348,1700,,Ashbourne Homes Ltd T/A Alexander Court,80706,,Community Services,Long Term Residential Care,52070,,,,Revenue
http://statistics.data.gov.uk/doc/local-authority/33,Norfolk County Council,23-Feb-11,2932205,1464,,Ashbourne Homes Ltd T/A Alexander Court,80706,,Community Services,Long Term Residential Care,52070,,,,Revenue
http://statistics.data.gov.uk/doc/local-authority/33,Norfolk County Council,23-Feb-11,2932508,1700,,Ashbourne Homes Ltd T/A Alexander Court,80706,,Community Services,Long Term Residential Care,52070,,,,Revenue
http://statistics.data.gov.uk/doc/local-authority/33,Norfolk County Council,23-Feb-11,2932597,1464,,Ashbourne Homes Ltd T/A Alexander Court,80706,,Community Services,Long Term Residential Care,52070,,,,Revenue
http://statistics.data.gov.uk/doc/local-authority/33,Norfolk County Council,23-Feb-11,2932859,1700,,Ashbourne Homes Ltd T/A Alexander Court,80706,,Community Services,Long Term Residential Care,52070,,,,Revenue
http://statistics.data.gov.uk/doc/local-authority/33,Norfolk County Council,23-Feb-11,2933053,1464,,Ashbourne Homes Ltd T/A Alexander Court,80706,,Community Services,Long Term Residential Care,52070,,,,Revenue
http://statistics.data.gov.uk/doc/local-authority/33,Norfolk County Council,23-Feb-11,2933126,1700,,Ashbourne Homes Ltd T/A Alexander Court,80706,,Community Services,Long Term Residential Care,52070,,,,Revenue
http://statistics.data.gov.uk/doc/local-authority/33,Norfolk County Council,23-Feb-11,2933225,1700,,Ashbourne Homes Ltd T/A Alexander Court,80706,,Community Services,Long Term Residential Care,52070,,,,Revenue
http://statistics.data.gov.uk/doc/local-authority/33,Norfolk County Council,23-Feb-11,2933535,1700,,Ashbourne Homes Ltd T/A Alexander Court,80706,,Community Services,Long Term Residential Care,52070,,,,Revenue
http://statistics.data.gov.uk/doc/local-authority/33,Norfolk County Council,23-Feb-11,2933689,1700,,Ashbourne Homes Ltd T/A Alexander Court,80706,,Community Services,Long Term Residential Care,52070,,,,Revenue
http://statistics.data.gov.uk/doc/local-authority/33,Norfolk County Council,23-Feb-11,2933836,1700,,Ashbourne Homes Ltd T/A Alexander Court,80706,,Community Services,Long Term Residential Care,52070,,,,Revenue
http://statistics.data.gov.uk/doc/local-authority/33,Norfolk County Council,09-Feb-11,2913363,-1928.57,,Ashbourne Homes Ltd-Re Hillcrest,80706,,Community Services,Long Term Residential Care,52070,,,,Revenue
http://statistics.data.gov.uk/doc/local-authority/33,Norfolk County Council,09-Feb-11,2913364,3814.29,,Ashbourne Homes Ltd-Re Hillcrest,80706,,Community Services,Long Term Residential Care,52070,,,,Revenue
http://statistics.data.gov.uk/doc/local-authority/33,Norfolk County Council,09-Feb-11,2913366,-833.29,,Ashbourne Homes Ltd-Re Hillcrest,80706,,Community Services,Long Term Residential Care,52070,,,,Revenue
http://statistics.data.gov.uk/doc/local-authority/33,Norfolk County Council,09-Feb-11,2913370,-2954.29,,Ashbourne Homes Ltd-Re Hillcrest,80706,,Community Services,Long Term Residential Care,52070,,,,Revenue
http://statistics.data.gov.uk/doc/local-authority/33,Norfolk County Council,09-Feb-11,2913381,850,,Ashbourne Homes Ltd-Re Hillcrest,80706,,Community Services,Long Term Residential Care,52070,,,,Revenue
http://statistics.data.gov.uk/doc/local-authority/33,Norfolk County Council,09-Feb-11,2913383,699.29,,Ashbourne Homes Ltd-Re Hillcrest,80706,,Community Services,Long Term Residential Care,52070,,,,Revenue
http://statistics.data.gov.uk/doc/local-authority/33,Norfolk County Council,09-Feb-11,2913385,7056.43,,Ashbourne Homes Ltd-Re Hillcrest,80706,,Community Services,Long Term Residential Care,52070,,,,Revenue
http://statistics.data.gov.uk/doc/local-authority/33,Norfolk County Council,23-Feb-11,2929891,1700,,Ashbourne Homes Ltd-Re Hillcrest,80706,,Community Services,Long Term Residential Care,52070,,,,Revenue
http://statistics.data.gov.uk/doc/local-authority/33,Norfolk County Council,23-Feb-11,2930338,1464,,Ashbourne Homes Ltd-Re Hillcrest,80706,,Community Services,Long Term Residential Care,52070,,,,Revenue
http://statistics.data.gov.uk/doc/local-authority/33,Norfolk County Council,23-Feb-11,2930459,1700,,Ashbourne Homes Ltd-Re Hillcrest,80706,,Community Services,Long Term Residential Care,52070,,,,Revenue
http://statistics.data.gov.uk/doc/local-authority/33,Norfolk County Council,23-Feb-11,2930565,1900,,Ashbourne Homes Ltd-Re Hillcrest,80706,,Community Services,Long Term Residential Care,52070,,,,Revenue
http://statistics.data.gov.uk/doc/local-authority/33,Norfolk County Council,23-Feb-11,2930896,1700,,Ashbourne Homes Ltd-Re Hillcrest,80706,,Community Services,Long Term Residential Care,52070,,,,Revenue
http://statistics.data.gov.uk/doc/local-authority/33,Norfolk County Council,23-Feb-11,2930918,1700,,Ashbourne Homes Ltd-Re Hillcrest,80706,,Community Services,Long Term Residential Care,52070,,,,Revenue
http://statistics.data.gov.uk/doc/local-authority/33,Norfolk County Council,23-Feb-11,2930960,1700,,Ashbourne Homes Ltd-Re Hillcrest,80706,,Community Services,Long Term Residential Care,52070,,,,Revenue
http://statistics.data.gov.uk/doc/local-authority/33,Norfolk County Council,23-Feb-11,2930966,1700,,Ashbourne Homes Ltd-Re Hillcrest,80706,,Community Services,Long Term Residential Care,52070,,,,Revenue
http://statistics.data.gov.uk/doc/local-authority/33,Norfolk County Council,23-Feb-11,2931087,1792,,Ashbourne Homes Ltd-Re Hillcrest,80706,,Community Services,Long Term Residential Care,52070,,,,Revenue
http://statistics.data.gov.uk/doc/local-authority/33,Norfolk County Council,23-Feb-11,2931410,1404,,Ashbourne Homes Ltd-Re Hillcrest,80706,,Community Services,Long Term Residential Care,52070,,,,Revenue
http://statistics.data.gov.uk/doc/local-authority/33,Norfolk County Council,23-Feb-11,2931591,1700,,Ashbourne Homes Ltd-Re Hillcrest,80706,,Community Services,Long Term Residential Care,52070,,,,Revenue
http://statistics.data.gov.uk/doc/local-authority/33,Norfolk County Council,23-Feb-11,2931604,1700,,Ashbourne Homes Ltd-Re Hillcrest,80706,,Community Services,Long Term Residential Care,52070,,,,Revenue
http://statistics.data.gov.uk/doc/local-authority/33,Norfolk County Council,23-Feb-11,2931629,1700,,Ashbourne Homes Ltd-Re Hillcrest,80706,,Community Services,Long Term Residential Care,52070,,,,Revenue
http://statistics.data.gov.uk/doc/local-authority/33,Norfolk County Council,23-Feb-11,2931664,1700,,Ashbourne Homes Ltd-Re Hillcrest,80706,,Community Services,Long Term Residential Care,52070,,,,Revenue
http://statistics.data.gov.uk/doc/local-authority/33,Norfolk County Council,23-Feb-11,2931718,1464,,Ashbourne Homes Ltd-Re Hillcrest,80706,,Community Services,Long Term Residential Care,52070,,,,Revenue
http://statistics.data.gov.uk/doc/local-authority/33,Norfolk County Council,23-Feb-11,2931889,1700,,Ashbourne Homes Ltd-Re Hillcrest,80706,,Community Services,Long Term Residential Care,52070,,,,Revenue
http://statistics.data.gov.uk/doc/local-authority/33,Norfolk County Council,23-Feb-11,2931993,1228,,Ashbourne Homes Ltd-Re Hillcrest,80706,,Community Services,Long Term Residential Care,52070,,,,Revenue
http://statistics.data.gov.uk/doc/local-authority/33,Norfolk County Council,23-Feb-11,2932111,1780,,Ashbourne Homes Ltd-Re Hillcrest,80706,,Community Services,Long Term Residential Care,52070,,,,Revenue
http://statistics.data.gov.uk/doc/local-authority/33,Norfolk County Council,23-Feb-11,2932133,1464,,Ashbourne Homes Ltd-Re Hillcrest,80706,,Community Services,Long Term Residential Care,52070,,,,Revenue
http://statistics.data.gov.uk/doc/local-authority/33,Norfolk County Council,23-Feb-11,2932219,1700,,Ashbourne Homes Ltd-Re Hillcrest,80706,,Community Services,Long Term Residential Care,52070,,,,Revenue
http://statistics.data.gov.uk/doc/local-authority/33,Norfolk County Council,23-Feb-11,2932703,1404,,Ashbourne Homes Ltd-Re Hillcrest,80706,,Community Services,Long Term Residential Care,52070,,,,Revenue
http://statistics.data.gov.uk/doc/local-authority/33,Norfolk County Council,23-Feb-11,2932882,1168,,Ashbourne Homes Ltd-Re Hillcrest,80706,,Community Services,Purchase Residential Preserved Rights,50190,,,,Revenue
http://statistics.data.gov.uk/doc/local-authority/33,Norfolk County Council,23-Feb-11,2933001,1464,,Ashbourne Homes Ltd-Re Hillcrest,80706,,Community Services,Long Term Residential Care,52070,,,,Revenue
http://statistics.data.gov.uk/doc/local-authority/33,Norfolk County Council,23-Feb-11,2933089,1700,,Ashbourne Homes Ltd-Re Hillcrest,80706,,Community Services,Long Term Residential Care,52070,,,,Revenue
http://statistics.data.gov.uk/doc/local-authority/33,Norfolk County Council,23-Feb-11,2933237,1700,,Ashbourne Homes Ltd-Re Hillcrest,80706,,Community Services,Long Term Residential Care,52070,,,,Revenue
http://statistics.data.gov.uk/doc/local-authority/33,Norfolk County Council,23-Feb-11,2933387,1168,,Ashbourne Homes Ltd-Re Hillcrest,80706,,Community Services,Long Term Residential Care,52070,,,,Revenue
http://statistics.data.gov.uk/doc/local-authority/33,Norfolk County Council,23-Feb-11,2933463,1228,,Ashbourne Homes Ltd-Re Hillcrest,80706,,Community Services,Long Term Residential Care,52070,,,,Revenue
http://statistics.data.gov.uk/doc/local-authority/33,Norfolk County Council,23-Feb-11,2933470,1780,,Ashbourne Homes Ltd-Re Hillcrest,80706,,Community Services,Long Term Residential Care,52070,,,,Revenue
http://statistics.data.gov.uk/doc/local-authority/33,Norfolk County Council,23-Feb-11,2933755,1464,,Ashbourne Homes Ltd-Re Hillcrest,80706,,Community Services,Long Term Residential Care,52070,,,,Revenue
http://statistics.data.gov.uk/doc/local-authority/33,Norfolk County Council,23-Feb-11,2933762,1700,,Ashbourne Homes Ltd-Re Hillcrest,80706,,Community Services,Long Term Residential Care,52070,,,,Revenue
http://statistics.data.gov.uk/doc/local-authority/33,Norfolk County Council,23-Feb-11,2934060,1700,,Ashbourne Homes Ltd-Re Hillcrest,80706,,Community Services,Long Term Residential Care,52070,,,,Revenue
http://statistics.data.gov.uk/doc/local-authority/33,Norfolk County Council,23-Feb-11,2934067,1700,,Ashbourne Homes Ltd-Re Hillcrest,80706,,Community Services,Long Term Residential Care,52070,,,,Revenue
http://statistics.data.gov.uk/doc/local-authority/33,Norfolk County Council,23-Feb-11,2934084,1700,,Ashbourne Homes Ltd-Re Hillcrest,80706,,Community Services,Long Term Residential Care,52070,,,,Revenue
http://statistics.data.gov.uk/doc/local-authority/33,Norfolk County Council,23-Feb-11,2934118,1700,,Ashbourne Homes Ltd-Re Hillcrest,80706,,Community Services,Long Term Residential Care,52070,,,,Revenue
http://statistics.data.gov.uk/doc/local-authority/33,Norfolk County Council,09-Feb-11,2913304,12085.71,,Ashbourne/Brundall Nursing Home,80706,,Community Services,Long Term Residential Care,52070,,,,Revenue
http://statistics.data.gov.uk/doc/local-authority/33,Norfolk County Council,23-Feb-11,2924314,-6969.86,,Ashbourne/Brundall Nursing Home,80706,,Community Services,Long Term Residential Care,52070,,,,Revenue
http://statistics.data.gov.uk/doc/local-authority/33,Norfolk County Council,23-Feb-11,2928573,-2057.14,,Ashbourne/Brundall Nursing Home,80706,,Community Services,Long Term Residential Care,52070,,,,Revenue
http://statistics.data.gov.uk/doc/local-authority/33,Norfolk County Council,23-Feb-11,2930647,1800,,Ashbourne/Brundall Nursing Home,80706,,Community Services,Long Term Residential Care,52070,,,,Revenue
http://statistics.data.gov.uk/doc/local-authority/33,Norfolk County Council,23-Feb-11,2930729,1464,,Ashbourne/Brundall Nursing Home,80706,,Community Services,Long Term Residential Care,52070,,,,Revenue
http://statistics.data.gov.uk/doc/local-authority/33,Norfolk County Council,23-Feb-11,2931074,1640,,Ashbourne/Brundall Nursing Home,80706,,Community Services,Long Term Residential Care,52070,,,,Revenue
http://statistics.data.gov.uk/doc/local-authority/33,Norfolk County Council,23-Feb-11,2931426,1536,,Ashbourne/Brundall Nursing Home,80706,,Community Services,Long Term Care with Nursing,51550,,,,Revenue
http://statistics.data.gov.uk/doc/local-authority/33,Norfolk County Council,23-Feb-11,2931426,434.8,,Ashbourne/Brundall Nursing Home,80706,,Community Services,Free Nursing Care,55560,,,,Revenue
http://statistics.data.gov.uk/doc/local-authority/33,Norfolk County Council,23-Feb-11,2931838,1700,,Ashbourne/Brundall Nursing Home,80706,,Community Services,Long Term Residential Care,52070,,,,Revenue
http://statistics.data.gov.uk/doc/local-authority/33,Norfolk County Council,23-Feb-11,2931853,1536,,Ashbourne/Brundall Nursing Home,80706,,Community Services,Long Term Care with Nursing,51550,,,,Revenue
http://statistics.data.gov.uk/doc/local-authority/33,Norfolk County Council,23-Feb-11,2931853,434.8,,Ashbourne/Brundall Nursing Home,80706,,Community Services,Free Nursing Care,55560,,,,Revenue
http://statistics.data.gov.uk/doc/local-authority/33,Norfolk County Council,23-Feb-11,2931935,1536,,Ashbourne/Brundall Nursing Home,80706,,Community Services,Long Term Care with Nursing,51550,,,,Revenue
http://statistics.data.gov.uk/doc/local-authority/33,Norfolk County Council,23-Feb-11,2931935,434.8,,Ashbourne/Brundall Nursing Home,80706,,Community Services,Free Nursing Care,55560,,,,Revenue
http://statistics.data.gov.uk/doc/local-authority/33,Norfolk County Council,23-Feb-11,2931956,1536,,Ashbourne/Brundall Nursing Home,80706,,Community Services,Long Term Care with Nursing,51550,,,,Revenue
http://statistics.data.gov.uk/doc/local-authority/33,Norfolk County Council,23-Feb-11,2931956,434.8,,Ashbourne/Brundall Nursing Home,80706,,Community Services,Free Nursing Care,55560,,,,Revenue
http://statistics.data.gov.uk/doc/local-authority/33,Norfolk County Council,23-Feb-11,2932011,1700,,Ashbourne/Brundall Nursing Home,80706,,Community Services,Long Term Residential Care,52070,,,,Revenue
http://statistics.data.gov.uk/doc/local-authority/33,Norfolk County Council,23-Feb-11,2932056,1476,,Ashbourne/Brundall Nursing Home,80706,,Community Services,Long Term Care with Nursing,51550,,,,Revenue
http://statistics.data.gov.uk/doc/local-authority/33,Norfolk County Council,23-Feb-11,2932056,434.8,,Ashbourne/Brundall Nursing Home,80706,,Community Services,Free Nursing Care,55560,,,,Revenue
http://statistics.data.gov.uk/doc/local-authority/33,Norfolk County Council,23-Feb-11,2932134,1772,,Ashbourne/Brundall Nursing Home,80706,,Community Services,Long Term Care with Nursing,51550,,,,Revenue
http://statistics.data.gov.uk/doc/local-authority/33,Norfolk County Council,23-Feb-11,2932134,434.8,,Ashbourne/Brundall Nursing Home,80706,,Community Services,Free Nursing Care,55560,,,,Revenue
http://statistics.data.gov.uk/doc/local-authority/33,Norfolk County Council,23-Feb-11,2932147,1536,,Ashbourne/Brundall Nursing Home,80706,,Community Services,Long Term Care with Nursing,51550,,,,Revenue
http://statistics.data.gov.uk/doc/local-authority/33,Norfolk County Council,23-Feb-11,2932147,434.8,,Ashbourne/Brundall Nursing Home,80706,,Community Services,Free Nursing Care,55560,,,,Revenue
http://statistics.data.gov.uk/doc/local-authority/33,Norfolk County Council,23-Feb-11,2932443,1820,,Ashbourne/Brundall Nursing Home,80706,,Community Services,Long Term Residential Care,52070,,,,Revenue
http://statistics.data.gov.uk/doc/local-authority/33,Norfolk County Council,23-Feb-11,2932476,1772,,Ashbourne/Brundall Nursing Home,80706,,Community Services,Short Term Care with Nursing,50200,,,,Revenue
http://statistics.data.gov.uk/doc/local-authority/33,Norfolk County Council,23-Feb-11,2932476,434.8,,Ashbourne/Brundall Nursing Home,80706,,Community Services,Free Nursing Care,55560,,,,Revenue
http://statistics.data.gov.uk/doc/local-authority/33,Norfolk County Council,23-Feb-11,2933364,1640,,Ashbourne/Brundall Nursing Home,80706,,Community Services,Long Term Residential Care,52070,,,,Revenue
http://statistics.data.gov.uk/doc/local-authority/33,Norfolk County Council,23-Feb-11,2933445,1820,,Ashbourne/Brundall Nursing Home,80706,,Community Services,Long Term Residential Care,52070,,,,Revenue
http://statistics.data.gov.uk/doc/local-authority/33,Norfolk County Council,23-Feb-11,2933506,1800,,Ashbourne/Brundall Nursing Home,80706,,Community Services,Long Term Residential Care,52070,,,,Revenue
http://statistics.data.gov.uk/doc/local-authority/33,Norfolk County Council,23-Feb-11,2932707,1820,,Ashdene Sleaford Ltd,368002,,Community Services,Long Term Residential Care,52070,,,,Revenue
http://statistics.data.gov.uk/doc/local-authority/33,Norfolk County Council,09-Feb-11,2913389,732,,Ashley Care Homes Ltd,129288,,Community Services,Short Term Residential Care,50210,,,,Revenue
http://statistics.data.gov.uk/doc/local-authority/33,Norfolk County Council,09-Feb-11,2913396,1995.57,,Ashley Care Homes Ltd,129288,,Community Services,Long Term Residential Care,52070,,,,Revenue
http://statistics.data.gov.uk/doc/local-authority/33,Norfolk County Council,16-Feb-11,2920008,679.71,,Ashley Care Homes Ltd,129288,,Community Services,Long Term Residential Care,52070,,,,Revenue
http://statistics.data.gov.uk/doc/local-authority/33,Norfolk County Council,23-Feb-11,2930110,1528,,Ashley Care Homes Ltd,129288,,Community Services,Long Term Residential Care,52070,,,,Revenue
http://statistics.data.gov.uk/doc/local-authority/33,Norfolk County Council,23-Feb-11,2930234,1580.28,,Ashley Care Homes Ltd,129288,,Community Services,Long Term Residential Care,52070,,,,Revenue
http://statistics.data.gov.uk/doc/local-authority/33,Norfolk County Council,23-Feb-11,2930832,1668.96,,Ashley Care Homes Ltd,129288,,Community Services,Long Term Residential Care,52070,,,,Revenue
http://statistics.data.gov.uk/doc/local-authority/33,Norfolk County Council,23-Feb-11,2931170,1664,,Ashley Care Homes Ltd,129288,,Community Services,Long Term Residential Care,52070,,,,Revenue
http://statistics.data.gov.uk/doc/local-authority/33,Norfolk County Council,23-Feb-11,2931242,2380,,Ashley Care Homes Ltd,129288,,Community Services,Long Term Residential Care,52070,,,,Revenue
http://statistics.data.gov.uk/doc/local-authority/33,Norfolk County Council,23-Feb-11,2931248,1464,,Ashley Care Homes Ltd,129288,,Community Services,Long Term Residential Care,52070,,,,Revenue
http://statistics.data.gov.uk/doc/local-authority/33,Norfolk County Council,23-Feb-11,2931408,1464,,Ashley Care Homes Ltd,129288,,Community Services,Long Term Residential Care,52070,,,,Revenue
http://statistics.data.gov.uk/doc/local-authority/33,Norfolk County Council,23-Feb-11,2931696,1949.52,,Ashley Care Homes Ltd,129288,,Community Services,Long Term Residential Care,52070,,,,Revenue
http://statistics.data.gov.uk/doc/local-authority/33,Norfolk County Council,23-Feb-11,2932595,1464,,Ashley Care Homes Ltd,129288,,Community Services,Long Term Residential Care,52070,,,,Revenue
http://statistics.data.gov.uk/doc/local-authority/33,Norfolk County Council,23-Feb-11,2932907,1464,,Ashley Care Homes Ltd,129288,,Community Services,Long Term Residential Care,52070,,,,Revenue
http://statistics.data.gov.uk/doc/local-authority/33,Norfolk County Council,23-Feb-11,2933230,1464,,Ashley Care Homes Ltd,129288,,Community Services,Long Term Residential Care,52070,,,,Revenue
http://statistics.data.gov.uk/doc/local-authority/33,Norfolk County Council,23-Feb-11,2933384,1524,,Ashley Care Homes Ltd,129288,,Community Services,Long Term Residential Care,52070,,,,Revenue
http://statistics.data.gov.uk/doc/local-authority/33,Norfolk County Council,23-Feb-11,2929899,4500,,Ashlong House Ltd,183602,,Community Services,Long Term Residential Care,52070,,,,Revenue
http://statistics.data.gov.uk/doc/local-authority/33,Norfolk County Council,25-Feb-11,2917138,1852.5,,Ashwood Medico-Legal Consultancy,478434,,Resources,Witnesses Expenses and Reports,46860,,,,Revenue
http://statistics.data.gov.uk/doc/local-authority/33,Norfolk County Council,25-Feb-11,2917148,1218.75,,Ashwood Medico-Legal Consultancy,478434,,Resources,Witnesses Expenses and Reports,46860,,,,Revenue
http://statistics.data.gov.uk/doc/local-authority/33,Norfolk County Council,03-Feb-11,2887465,675.93,,Askews Library Services Ltd,91922,,Community Services,Books and Publications,40800,,,,Revenue
http://statistics.data.gov.uk/doc/local-authority/33,Norfolk County Council,04-Feb-11,2880760,798,,Askews Library Services Ltd,91922,,Community Services,Books and Publications,40800,,,,Revenue
http://statistics.data.gov.uk/doc/local-authority/33,Norfolk County Council,04-Feb-11,2880763,798,,Askews Library Services Ltd,91922,,Community Services,Books and Publications,40800,,,,Revenue
http://statistics.data.gov.uk/doc/local-authority/33,Norfolk County Council,04-Feb-11,2880785,526.68,,Askews Library Services Ltd,91922,,Community Services, Training Volunteers,46800,,,,Revenue
http://statistics.data.gov.uk/doc/local-authority/33,Norfolk County Council,04-Feb-11,2880791,798,,Askews Library Services Ltd,91922,,Community Services,Books and Publications,40800,,,,Revenue
http://statistics.data.gov.uk/doc/local-authority/33,Norfolk County Council,04-Feb-11,2880795,798,,Askews Library Services Ltd,91922,,Community Services,Books and Publications,40800,,,,Revenue
http://statistics.data.gov.uk/doc/local-authority/33,Norfolk County Council,04-Feb-11,2880802,1393,,Askews Library Services Ltd,91922,,Community Services,Books and Publications,40800,,,,Revenue
http://statistics.data.gov.uk/doc/local-authority/33,Norfolk County Council,04-Feb-11,2880809,868.21,,Askews Library Services Ltd,91922,,Community Services,Books and Publications,40800,,,,Revenue
http://statistics.data.gov.uk/doc/local-authority/33,Norfolk County Council,04-Feb-11,2880878,883.12,,Askews Library Services Ltd,91922,,Community Services,Books and Publications,40800,,,,Revenue
http://statistics.data.gov.uk/doc/local-authority/33,Norfolk County Council,04-Feb-11,2880886,543.06,,Askews Library Services Ltd,91922,,Community Services,Books and Publications,40800,,,,Revenue
http://statistics.data.gov.uk/doc/local-authority/33,Norfolk County Council,04-Feb-11,2880888,550.97,,Askews Library Services Ltd,91922,,Community Services,Books and Publications,40800,,,,Revenue
